PublisherLabel,PublisherURI,"Body name","Body","Service area","Service division","Responsible unit","Expenses type","Date","Transaction","Amount","Supplier name"
"Bracknell Forest Council","http://opendatacommunities.org/id/unitary-authority/bracknell-forest","Bracknell Forest Council","00MA","Older People (65+)","Long Term Support - Nursing","PS Older People 65+ Long Term Support - Nursing","Contracted Services",28/08/2014 00:00:00,"30250131",3290.16,"ASCOT RESIDENTIAL HOMES LTD"
"Bracknell Forest Council","http://opendatacommunities.org/id/unitary-authority/bracknell-forest","Bracknell Forest Council","00MA","Older People (65+)","Long term Support - Residential","MC Older People 65+ Long Term Support - Residential","Contracted Services",28/08/2014 00:00:00,"30250131",3400,"ASCOT RESIDENTIAL HOMES LTD"
"Bracknell Forest Council","http://opendatacommunities.org/id/unitary-authority/bracknell-forest","Bracknell Forest Council","00MA","Older People (65+)","Long Term Support - Nursing","PS Older People 65+ Long Term Support - Nursing","Contracted Services",28/08/2014 00:00:00,"30250131",3462.28,"ASCOT RESIDENTIAL HOMES LTD"
"Bracknell Forest Council","http://opendatacommunities.org/id/unitary-authority/bracknell-forest","Bracknell Forest Council","00MA","Libraries","Stock Ordering, Cataloguing & Distribution","Library Book Fund","Audio/Visual materials",14/07/2014 00:00:00,"6555616",855.54,"ASKEWS & HOLTS LIBRARY SERVICE"
"Bracknell Forest Council","http://opendatacommunities.org/id/unitary-authority/bracknell-forest","Bracknell Forest Council","00MA","Libraries","Stock Ordering, Cataloguing & Distribution","Library Book Fund","Audio/Visual materials",21/07/2014 00:00:00,"6555617",679.61,"ASKEWS & HOLTS LIBRARY SERVICE"
"Bracknell Forest Council","http://opendatacommunities.org/id/unitary-authority/bracknell-forest","Bracknell Forest Council","00MA","Libraries","Stock Ordering, Cataloguing & Distribution","Library Book Fund","Audio/Visual materials",28/07/2014 00:00:00,"6555618",652.45,"ASKEWS & HOLTS LIBRARY SERVICE"
"Bracknell Forest Council","http://opendatacommunities.org/id/unitary-authority/bracknell-forest","Bracknell Forest Council","00MA","Management and Support Services - CYPL","Holding Codes - net nil","Education Library Service - Resources","Audio/Visual materials",28/07/2014 00:00:00,"6555850",1098.44,"ASKEWS & HOLTS LIBRARY SERVICE"
"Bracknell Forest Council","http://opendatacommunities.org/id/unitary-authority/bracknell-forest","Bracknell Forest Council","00MA","Management and Support Services - CYPL","Holding Codes - net nil","Education Library Service - Resources","Audio/Visual materials",07/07/2014 00:00:00,"6556074",608.29,"ASKEWS & HOLTS LIBRARY SERVICE"
"Bracknell Forest Council","http://opendatacommunities.org/id/unitary-authority/bracknell-forest","Bracknell Forest Council","00MA","Management and Support Services - CYPL","Holding Codes - net nil","Education Library Service - Resources","Audio/Visual materials",04/08/2014 00:00:00,"6556772",1997.53,"ASKEWS & HOLTS LIBRARY SERVICE"
"Bracknell Forest Council","http://opendatacommunities.org/id/unitary-authority/bracknell-forest","Bracknell Forest Council","00MA","","","Improvements & Capitalised Repairs (Council Wide)","Construction - Contract Payments",27/06/2014 00:00:00,"6556075",1515,"ATKINS LIMITED"
"Bracknell Forest Council","http://opendatacommunities.org/id/unitary-authority/bracknell-forest","Bracknell Forest Council","00MA","Structural Maintenance","Bridges","Bridges - Other Roads","Contracted Services",13/08/2014 00:00:00,"6556341",1063.61,"ATKINS LTD"
"Bracknell Forest Council","http://opendatacommunities.org/id/unitary-authority/bracknell-forest","Bracknell Forest Council","00MA","Structural Maintenance","Bridges","Bridges","Contracted Services",13/08/2014 00:00:00,"6556341",4749.14,"ATKINS LTD"
"Bracknell Forest Council","http://opendatacommunities.org/id/unitary-authority/bracknell-forest","Bracknell Forest Council","00MA","","","Structural Maintenance of Bridges","Consultant Fees",13/08/2014 00:00:00,"6556341",5720.55,"ATKINS LTD"
"Bracknell Forest Council","http://opendatacommunities.org/id/unitary-authority/bracknell-forest","Bracknell Forest Council","00MA","","","Maintenance of Car Parks","Consultant Fees",13/08/2014 00:00:00,"6556341",1249.6,"ATKINS LTD"
"Bracknell Forest Council","http://opendatacommunities.org/id/unitary-authority/bracknell-forest","Bracknell Forest Council","00MA","Culture and Heritage","Arts Development and Support","Cultural Strategy","Other Fees for Bought-in Services",29/07/2014 00:00:00,"6555937",13375,"ATOM CREATIVE SOLUTIONS"
"Bracknell Forest Council","http://opendatacommunities.org/id/unitary-authority/bracknell-forest","Bracknell Forest Council","00MA","Culture and Heritage","Arts Development and Support","Cultural Strategy","Other Fees for Bought-in Services",29/07/2014 00:00:00,"6555937",-3049.5,"ATOM CREATIVE SOLUTIONS"
"Bracknell Forest Council","http://opendatacommunities.org/id/unitary-authority/bracknell-forest","Bracknell Forest Council","00MA","Adults (18-64)","Long term Support - Residential","LD Adults 18-64 Long Term Support - Residential","Contracted Services",28/08/2014 00:00:00,"30250131",5260.52,"AUTISM SPECIALISED CARE HOMES LTD"
"Bracknell Forest Council","http://opendatacommunities.org/id/unitary-authority/bracknell-forest","Bracknell Forest Council","00MA","Adults (18-64)","Long term Support - Residential","LD Adults 18-64 Long Term Support - Residential","Contracted Services",28/08/2014 00:00:00,"30250131",6025.84,"AVON AUTISTIC FOUNDATION"
"Bracknell Forest Council","http://opendatacommunities.org/id/unitary-authority/bracknell-forest","Bracknell Forest Council","00MA","Street Lighting (including Energy Costs)","Street Lighting","Lighting","Contracted Services",31/07/2014 00:00:00,"6556908",43564.79,"BALFOUR BEATTY INFRASTRUCTURE SERVICES"
"Bracknell Forest Council","http://opendatacommunities.org/id/unitary-authority/bracknell-forest","Bracknell Forest Council","00MA","Recreation, Sports and Leisure","Indoor Sports & Recreation Facilities","Leisure DSO - Leisure Centre Maintenance","R&M - Reactive",08/08/2014 00:00:00,"6556637",722.64,"BALLCOCK & BITS"
"Bracknell Forest Council","http://opendatacommunities.org/id/unitary-authority/bracknell-forest","Bracknell Forest Council","00MA","Recreation, Sports and Leisure","Golf Courses","Leisure DSO - Downshire Golf Course","Materials",28/07/2014 00:00:00,"6555555",635.63,"BANKS AMENITY PRODUCTS LTD"
"Bracknell Forest Council","http://opendatacommunities.org/id/unitary-authority/bracknell-forest","Bracknell Forest Council","00MA","Recreation, Sports and Leisure","Golf Courses","Leisure DSO - Downshire Golf Course","Materials",31/07/2014 00:00:00,"6556111",675.68,"BANKS AMENITY PRODUCTS LTD"
"Bracknell Forest Council","http://opendatacommunities.org/id/unitary-authority/bracknell-forest","Bracknell Forest Council","00MA","Recreation, Sports and Leisure","Golf Courses","Golf Course Management & Administration","Materials",31/07/2014 00:00:00,"6556380",1355.4,"BANKS AMENITY PRODUCTS LTD"
"Bracknell Forest Council","http://opendatacommunities.org/id/unitary-authority/bracknell-forest","Bracknell Forest Council","00MA","Central Support Services - COF","Legal","Legal Services","Office Stationery",29/08/2014 00:00:00,"30250293",-137.28,"BANNER"
"Bracknell Forest Council","http://opendatacommunities.org/id/unitary-authority/bracknell-forest","Bracknell Forest Council","00MA","Early Years","Children's Centres","The Rowans Children's Centre","Office Stationery",29/08/2014 00:00:00,"30250293",-14.56,"BANNER"
"Bracknell Forest Council","http://opendatacommunities.org/id/unitary-authority/bracknell-forest","Bracknell Forest Council","00MA","Other School Related Education Services","Learner Support","Learning & Achievement","Office Stationery",29/08/2014 00:00:00,"30250293",-12.68,"BANNER"
"Bracknell Forest Council","http://opendatacommunities.org/id/unitary-authority/bracknell-forest","Bracknell Forest Council","00MA","Democratic Representation & Management COF","Democratic Representation & Management - COF","Committee Servicing","Office Stationery",29/08/2014 00:00:00,"30250293",-12.58,"BANNER"
"Bracknell Forest Council","http://opendatacommunities.org/id/unitary-authority/bracknell-forest","Bracknell Forest Council","00MA","Central Support Services - COF","Customer Service Centre","Cashiers Services","Office Stationery",29/08/2014 00:00:00,"30250293",-12.13,"BANNER"
"Bracknell Forest Council","http://opendatacommunities.org/id/unitary-authority/bracknell-forest","Bracknell Forest Council","00MA","Services to Young People","Other Services to Young People","Coopers Hill Youth Centre","Office Stationery",29/08/2014 00:00:00,"30250293",-3.03,"BANNER"
"Bracknell Forest Council","http://opendatacommunities.org/id/unitary-authority/bracknell-forest","Bracknell Forest Council","00MA","Management & Administration","Management & Administration","Directorate","Office Stationery",29/08/2014 00:00:00,"30250293",-2.44,"BANNER"
"Bracknell Forest Council","http://opendatacommunities.org/id/unitary-authority/bracknell-forest","Bracknell Forest Council","00MA","Management and Support Services - CYPL","Holding Codes - net nil","Education Library Service","Office Stationery",29/08/2014 00:00:00,"30250293",0.07,"BANNER"
"Bracknell Forest Council","http://opendatacommunities.org/id/unitary-authority/bracknell-forest","Bracknell Forest Council","00MA","Democratic Representation & Management COF","Democratic Representation & Management - COF","Committee Servicing","Office Stationery",29/08/2014 00:00:00,"30250293",0.07,"BANNER"
"Bracknell Forest Council","http://opendatacommunities.org/id/unitary-authority/bracknell-forest","Bracknell Forest Council","00MA","Management and Support Services - CYPL","Holding Codes - net nil","Education Library Service","Office Stationery",29/08/2014 00:00:00,"30250293",0.08,"BANNER"
"Bracknell Forest Council","http://opendatacommunities.org/id/unitary-authority/bracknell-forest","Bracknell Forest Council","00MA","Family Support Services","Other family support services","Family Centre Running Costs","Office Stationery",29/08/2014 00:00:00,"30250293",0.14,"BANNER"
"Bracknell Forest Council","http://opendatacommunities.org/id/unitary-authority/bracknell-forest","Bracknell Forest Council","00MA","Central Support Services - COF","Finance","Finance Departmental Administration","Office Stationery",29/08/2014 00:00:00,"30250293",0.14,"BANNER"
"Bracknell Forest Council","http://opendatacommunities.org/id/unitary-authority/bracknell-forest","Bracknell Forest Council","00MA","Management & Administration","Management & Administration","Directorate","Office Stationery",29/08/2014 00:00:00,"30250293",0.18,"BANNER"
"Bracknell Forest Council","http://opendatacommunities.org/id/unitary-authority/bracknell-forest","Bracknell Forest Council","00MA","Central Support Services - COF","Finance","Finance Departmental Administration","Office Stationery",29/08/2014 00:00:00,"30250293",0.2,"BANNER"
"Bracknell Forest Council","http://opendatacommunities.org/id/unitary-authority/bracknell-forest","Bracknell Forest Council","00MA","Open Spaces","Countryside Recreation & Management","Countryside Sites - Maintenance","Office Stationery",29/08/2014 00:00:00,"30250293",0.26,"BANNER"
"Bracknell Forest Council","http://opendatacommunities.org/id/unitary-authority/bracknell-forest","Bracknell Forest Council","00MA","Services to Young People","Other Services to Young People","Coopers Hill Youth Centre","Office Stationery",29/08/2014 00:00:00,"30250293",0.26,"BANNER"
"Bracknell Forest Council","http://opendatacommunities.org/id/unitary-authority/bracknell-forest","Bracknell Forest Council","00MA","Central Support Services - COF","Information Technology","Information Technology - Management","Office Stationery",29/08/2014 00:00:00,"30250293",0.28,"BANNER"
"Bracknell Forest Council","http://opendatacommunities.org/id/unitary-authority/bracknell-forest","Bracknell Forest Council","00MA","Democratic Representation & Management COF","Democratic Representation & Management - COF","Committee Servicing","Office Stationery",29/08/2014 00:00:00,"30250293",0.28,"BANNER"
"Bracknell Forest Council","http://opendatacommunities.org/id/unitary-authority/bracknell-forest","Bracknell Forest Council","00MA","Social Support - Substance Misuse Support","Social Support - Substance Misuse Support","SM New Hope Running Costs","Office Stationery",29/08/2014 00:00:00,"30250293",0.28,"BANNER"
"Bracknell Forest Council","http://opendatacommunities.org/id/unitary-authority/bracknell-forest","Bracknell Forest Council","00MA","Older People (65+)","Long term Support - Residential","MC Older People 65+ Long Term Support - Residential","Contracted Services",28/08/2014 00:00:00,"30250131",2239.6,"BELAMIE GABLES"
"Bracknell Forest Council","http://opendatacommunities.org/id/unitary-authority/bracknell-forest","Bracknell Forest Council","00MA","Older People (65+)","Long Term Support - Community:Other Long Term Care","MC Older People 65+ Long Term Support - Community:Other Long Term Care","Contracted Services",02/09/2014 00:00:00,"30250461",570,"BELAMIE GABLES"
"Bracknell Forest Council","http://opendatacommunities.org/id/unitary-authority/bracknell-forest","Bracknell Forest Council","00MA","","","Improvements & Capitalised Repairs (Council Wide)","Construction - Other Direct Expenses",06/08/2014 00:00:00,"6556275",1354.32,"BELLS ENGINEERING PRODUCTS LTD"
"Bracknell Forest Council","http://opendatacommunities.org/id/unitary-authority/bracknell-forest","Bracknell Forest Council","00MA","Recreation, Sports and Leisure","Indoor Sports & Recreation Facilities","Leisure DSO - Leisure Centre Maintenance","R&M - Reactive",13/08/2014 00:00:00,"6556740",693.81,"BELLS ENGINEERING PRODUCTS LTD"
"Bracknell Forest Council","http://opendatacommunities.org/id/unitary-authority/bracknell-forest","Bracknell Forest Council","00MA","Older People (65+)","Long Term Support - Nursing","PS Older People 65+ Long Term Support - Nursing","Contracted Services",28/08/2014 00:00:00,"30250131",2368.32,"BENEDICT HOUSE NURSING HOME"
"Bracknell Forest Council","http://opendatacommunities.org/id/unitary-authority/bracknell-forest","Bracknell Forest Council","00MA","Recreation, Sports and Leisure","Indoor Sports & Recreation Facilities","Leisure DSO - Coral Reef Maintenance","R&M - Service Contracts",13/08/2014 00:00:00,"6556484",2400,"BENVILLE AND MARSH LTD"
"Bracknell Forest Council","http://opendatacommunities.org/id/unitary-authority/bracknell-forest","Bracknell Forest Council","00MA","Management & Administration","Management & Administration","MH Management & Administration","Agency",23/07/2014 00:00:00,"6554931",5596.59,"BERKS HEALTHCARE NHS FOUNDATION TRUST"
"Bracknell Forest Council","http://opendatacommunities.org/id/unitary-authority/bracknell-forest","Bracknell Forest Council","00MA","Special Schools","Centrally managed Expenditure - Special","Supporting SEN Pre 16","Strategic Health Authority",15/07/2014 00:00:00,"6555530",9518.5,"BERKS HEALTHCARE NHS FOUNDATION TRUST"
"Bracknell Forest Council","http://opendatacommunities.org/id/unitary-authority/bracknell-forest","Bracknell Forest Council","00MA","Management & Administration","Management & Administration","MH Management & Administration","Rent of Property",08/07/2014 00:00:00,"6555577",2588,"BERKS HEALTHCARE NHS FOUNDATION TRUST"
"Bracknell Forest Council","http://opendatacommunities.org/id/unitary-authority/bracknell-forest","Bracknell Forest Council","00MA","Special Schools","Centrally managed Expenditure - Special","Supporting SEN Pre 16","Other Fees for Bought-in Services",21/07/2014 00:00:00,"6555659",19033.33,"BERKS HEALTHCARE NHS FOUNDATION TRUST"
"Bracknell Forest Council","http://opendatacommunities.org/id/unitary-authority/bracknell-forest","Bracknell Forest Council","00MA","Sexual Health Services","STI testing and treatment","Sexual Health - STI Testing & Treatment (Berks)","Contracted Services",15/08/2014 00:00:00,"6557061",184172,"BERKS HEALTHCARE NHS FOUNDATION TRUST"
"Bracknell Forest Council","http://opendatacommunities.org/id/unitary-authority/bracknell-forest","Bracknell Forest Council","00MA","Children 5-19 Public Health Programmes","Children 5-19 Public Health Programmes","Public Health Children's 5-19 Programmes (Berks)","Contracted Services",15/08/2014 00:00:00,"6557061",180143,"BERKS HEALTHCARE NHS FOUNDATION TRUST"
"Bracknell Forest Council","http://opendatacommunities.org/id/unitary-authority/bracknell-forest","Bracknell Forest Council","00MA","Obesity","Adult obesity","Weight Management- Adults (Berks)","Contracted Services",15/08/2014 00:00:00,"6557061",19666,"BERKS HEALTHCARE NHS FOUNDATION TRUST"
"Bracknell Forest Council","http://opendatacommunities.org/id/unitary-authority/bracknell-forest","Bracknell Forest Council","00MA","Miscellaneous Public Health Services","Miscellaneous Public Health Services","Other Public Health Services (Berks)","Contracted Services",15/08/2014 00:00:00,"6557061",12027,"BERKS HEALTHCARE NHS FOUNDATION TRUST"
"Bracknell Forest Council","http://opendatacommunities.org/id/unitary-authority/bracknell-forest","Bracknell Forest Council","00MA","Sexual Health Services","STI testing and treatment","Sexual Health - STI Testing & Treatment (Berks)","Contracted Services",15/07/2014 00:00:00,"6557067",184172,"BERKS HEALTHCARE NHS FOUNDATION TRUST"
"Bracknell Forest Council","http://opendatacommunities.org/id/unitary-authority/bracknell-forest","Bracknell Forest Council","00MA","Children 5-19 Public Health Programmes","Children 5-19 Public Health Programmes","Public Health Children's 5-19 Programmes (Berks)","Contracted Services",15/07/2014 00:00:00,"6557067",180143,"BERKS HEALTHCARE NHS FOUNDATION TRUST"
"Bracknell Forest Council","http://opendatacommunities.org/id/unitary-authority/bracknell-forest","Bracknell Forest Council","00MA","Obesity","Adult obesity","Weight Management- Adults (Berks)","Contracted Services",15/07/2014 00:00:00,"6557067",19666,"BERKS HEALTHCARE NHS FOUNDATION TRUST"
"Bracknell Forest Council","http://opendatacommunities.org/id/unitary-authority/bracknell-forest","Bracknell Forest Council","00MA","Miscellaneous Public Health Services","Miscellaneous Public Health Services","Other Public Health Services (Berks)","Contracted Services",15/07/2014 00:00:00,"6557067",12027,"BERKS HEALTHCARE NHS FOUNDATION TRUST"
"Bracknell Forest Council","http://opendatacommunities.org/id/unitary-authority/bracknell-forest","Bracknell Forest Council","00MA","Older People (65+)","Long term Support - Community:Homecare","PS Older People 65+ Long Term Support - Community:Homecare","Contracted Services",19/08/2014 00:00:00,"30249806",197.37,"BERKSHIRE CARE LTD"
"Bracknell Forest Council","http://opendatacommunities.org/id/unitary-authority/bracknell-forest","Bracknell Forest Council","00MA","Older People (65+)","Long term Support - Community:Homecare","PS Older People 65+ Long Term Support - Community:Homecare","Contracted Services",19/08/2014 00:00:00,"30249806",301.86,"BERKSHIRE CARE LTD"
"Bracknell Forest Council","http://opendatacommunities.org/id/unitary-authority/bracknell-forest","Bracknell Forest Council","00MA","Older People (65+)","Long term Support - Community:Homecare","PS Older People 65+ Long Term Support - Community:Homecare","Contracted Services",19/08/2014 00:00:00,"30249806",349.65,"BERKSHIRE CARE LTD"
"Bracknell Forest Council","http://opendatacommunities.org/id/unitary-authority/bracknell-forest","Bracknell Forest Council","00MA","Older People (65+)","Long term Support - Community:Homecare","MC Older People 65+ Long Term Support - Community:Homecare","Contracted Services",19/08/2014 00:00:00,"30249806",351.96,"BERKSHIRE CARE LTD"
"Bracknell Forest Council","http://opendatacommunities.org/id/unitary-authority/bracknell-forest","Bracknell Forest Council","00MA","Older People (65+)","Long term Support - Community:Homecare","PS Older People 65+ Long Term Support - Community:Homecare","Contracted Services",19/08/2014 00:00:00,"30249806",576.21,"BERKSHIRE CARE LTD"
"Bracknell Forest Council","http://opendatacommunities.org/id/unitary-authority/bracknell-forest","Bracknell Forest Council","00MA","Older People (65+)","Long term Support - Community:Homecare","PS Older People 65+ Long Term Support - Community:Homecare","Contracted Services",19/08/2014 00:00:00,"30249806",581.07,"BERKSHIRE CARE LTD"
"Bracknell Forest Council","http://opendatacommunities.org/id/unitary-authority/bracknell-forest","Bracknell Forest Council","00MA","Older People (65+)","Long term Support - Community:Homecare","MC Older People 65+ Long Term Support - Community:Homecare","Contracted Services",19/08/2014 00:00:00,"30249806",730.74,"BERKSHIRE CARE LTD"
"Bracknell Forest Council","http://opendatacommunities.org/id/unitary-authority/bracknell-forest","Bracknell Forest Council","00MA","Older People (65+)","Long term Support - Community:Homecare","MC Older People 65+ Long Term Support - Community:Homecare","Contracted Services",19/08/2014 00:00:00,"30249806",1261.62,"BERKSHIRE CARE LTD"
"Bracknell Forest Council","http://opendatacommunities.org/id/unitary-authority/bracknell-forest","Bracknell Forest Council","00MA","Older People (65+)","Long term Support - Community:Homecare","PS Older People 65+ Long Term Support - Community:Homecare","Contracted Services",19/08/2014 00:00:00,"30249806",1933.14,"BERKSHIRE CARE LTD"
"Bracknell Forest Council","http://opendatacommunities.org/id/unitary-authority/bracknell-forest","Bracknell Forest Council","00MA","Adults (18-64)","Long term Support - Community:Homecare","PS Adults 18-64 Long Term Support - Community:Homecare","Contracted Services",19/08/2014 00:00:00,"30249806",1988.91,"BERKSHIRE CARE LTD"
"Bracknell Forest Council","http://opendatacommunities.org/id/unitary-authority/bracknell-forest","Bracknell Forest Council","00MA","Management and Support Services - CYPL","School Related Expenditure","HTS Interim","Taxi Fares - Home/School Transport",01/08/2014 00:00:00,"6556126",8176.96,"BERKSHIRE EDUCATION TRAVEL"
"Bracknell Forest Council","http://opendatacommunities.org/id/unitary-authority/bracknell-forest","Bracknell Forest Council","00MA","Management and Support Services - CYPL","School Related Expenditure","HTS Interim","Taxi Fares - Home/School Transport",01/08/2014 00:00:00,"6556126",1217.4,"BERKSHIRE EDUCATION TRAVEL"
"Bracknell Forest Council","http://opendatacommunities.org/id/unitary-authority/bracknell-forest","Bracknell Forest Council","00MA","Management and Support Services - CYPL","School Related Expenditure","HTS Interim","Taxi Fares - Home/School Transport",01/08/2014 00:00:00,"6556127",7444.85,"BERKSHIRE EDUCATION TRAVEL"
"Bracknell Forest Council","http://opendatacommunities.org/id/unitary-authority/bracknell-forest","Bracknell Forest Council","00MA","Management and Support Services - CYPL","School Related Expenditure","HTS Interim","Taxi Fares - Home/School Transport",01/08/2014 00:00:00,"6556128",6029.7,"BERKSHIRE EDUCATION TRAVEL"
"Bracknell Forest Council","http://opendatacommunities.org/id/unitary-authority/bracknell-forest","Bracknell Forest Council","00MA","Management and Support Services - CYPL","School Related Expenditure","HTS Interim","Taxi Fares - Home/School Transport",01/08/2014 00:00:00,"6556129",7499.25,"BERKSHIRE EDUCATION TRAVEL"
"Bracknell Forest Council","http://opendatacommunities.org/id/unitary-authority/bracknell-forest","Bracknell Forest Council","00MA","Management and Support Services - CYPL","School Related Expenditure","HTS Interim","Taxi Fares - Home/School Transport",01/08/2014 00:00:00,"6556129",820.12,"BERKSHIRE EDUCATION TRAVEL"
"Bracknell Forest Council","http://opendatacommunities.org/id/unitary-authority/bracknell-forest","Bracknell Forest Council","00MA","Management and Support Services - CYPL","School Related Expenditure","HTS Interim","Taxi Fares - Home/School Transport",01/08/2014 00:00:00,"6556130",10385.05,"BERKSHIRE EDUCATION TRAVEL"
"Bracknell Forest Council","http://opendatacommunities.org/id/unitary-authority/bracknell-forest","Bracknell Forest Council","00MA","Management and Support Services - CYPL","School Related Expenditure","HTS Interim","Taxi Fares - Home/School Transport",01/08/2014 00:00:00,"6556130",2499.75,"BERKSHIRE EDUCATION TRAVEL"
"Bracknell Forest Council","http://opendatacommunities.org/id/unitary-authority/bracknell-forest","Bracknell Forest Council","00MA","Management and Support Services - CYPL","School Related Expenditure","HTS Interim","Taxi Fares - Home/School Transport",01/08/2014 00:00:00,"6556131",6241.8,"BERKSHIRE EDUCATION TRAVEL"
"Bracknell Forest Council","http://opendatacommunities.org/id/unitary-authority/bracknell-forest","Bracknell Forest Council","00MA","Management and Support Services - CYPL","School Related Expenditure","HTS Interim","Taxi Fares - Home/School Transport",01/08/2014 00:00:00,"6556131",1200,"BERKSHIRE EDUCATION TRAVEL"
"Bracknell Forest Council","http://opendatacommunities.org/id/unitary-authority/bracknell-forest","Bracknell Forest Council","00MA","Management and Support Services - CYPL","School Related Expenditure","HTS Interim","Taxi Fares - Home/School Transport",01/08/2014 00:00:00,"6556132",12556.55,"BERKSHIRE EDUCATION TRAVEL"
"Bracknell Forest Council","http://opendatacommunities.org/id/unitary-authority/bracknell-forest","Bracknell Forest Council","00MA","Management and Support Services - CYPL","School Related Expenditure","HTS Interim","Taxi Fares - Home/School Transport",01/08/2014 00:00:00,"6556132",939.3,"BERKSHIRE EDUCATION TRAVEL"
"Bracknell Forest Council","http://opendatacommunities.org/id/unitary-authority/bracknell-forest","Bracknell Forest Council","00MA","Management and Support Services - CYPL","School Related Expenditure","HTS Interim","Taxi Fares - Home/School Transport",01/08/2014 00:00:00,"6556133",7724,"BERKSHIRE EDUCATION TRAVEL"
"Bracknell Forest Council","http://opendatacommunities.org/id/unitary-authority/bracknell-forest","Bracknell Forest Council","00MA","Management and Support Services - CYPL","School Related Expenditure","HTS Interim","Taxi Fares - Home/School Transport",01/08/2014 00:00:00,"6556133",1668.5,"BERKSHIRE EDUCATION TRAVEL"
"Bracknell Forest Council","http://opendatacommunities.org/id/unitary-authority/bracknell-forest","Bracknell Forest Council","00MA","Management and Support Services - CYPL","School Related Expenditure","HTS Interim","Taxi Fares - Home/School Transport",01/08/2014 00:00:00,"6556134",4439.15,"BERKSHIRE EDUCATION TRAVEL"
"Bracknell Forest Council","http://opendatacommunities.org/id/unitary-authority/bracknell-forest","Bracknell Forest Council","00MA","Central Support Services - COF","Fleet","Transport Services","Taxi Charges",01/08/2014 00:00:00,"6557037",1627.6,"BERKSHIRE EDUCATION TRAVEL"
"Bracknell Forest Council","http://opendatacommunities.org/id/unitary-authority/bracknell-forest","Bracknell Forest Council","00MA","Central Support Services - COF","Fleet","R-Bus","Taxi Charges",01/08/2014 00:00:00,"6557037",709.8,"BERKSHIRE EDUCATION TRAVEL"
"Bracknell Forest Council","http://opendatacommunities.org/id/unitary-authority/bracknell-forest","Bracknell Forest Council","00MA","Management and Support Services - CYPL","School Related Expenditure","Home to School Transport","Taxi Fares - Home/School Transport",01/08/2014 00:00:00,"6557037",1955.75,"BERKSHIRE EDUCATION TRAVEL"
"Bracknell Forest Council","http://opendatacommunities.org/id/unitary-authority/bracknell-forest","Bracknell Forest Council","00MA","Management and Support Services - CYPL","School Related Expenditure","Home to School Transport","Taxi Fares - Home/School Transport",01/08/2014 00:00:00,"6557037",1520,"BERKSHIRE EDUCATION TRAVEL"
"Bracknell Forest Council","http://opendatacommunities.org/id/unitary-authority/bracknell-forest","Bracknell Forest Council","00MA","","","Improvements & Capitalised Repairs (Council Wide)","Construction - Other Direct Expenses",13/08/2014 00:00:00,"6556428",746,"BERKSHIRE MECHANICAL SERVICES"
"Bracknell Forest Council","http://opendatacommunities.org/id/unitary-authority/bracknell-forest","Bracknell Forest Council","00MA","","","Improvements & Capitalised Repairs (Council Wide)","Construction - Other Direct Expenses",13/08/2014 00:00:00,"6556429",1482,"BERKSHIRE MECHANICAL SERVICES"
"Bracknell Forest Council","http://opendatacommunities.org/id/unitary-authority/bracknell-forest","Bracknell Forest Council","00MA","","","Improvements & Capitalised Repairs (Council Wide)","Construction - Contract Payments",13/08/2014 00:00:00,"6556430",4800,"BERKSHIRE MECHANICAL SERVICES"
"Bracknell Forest Council","http://opendatacommunities.org/id/unitary-authority/bracknell-forest","Bracknell Forest Council","00MA","","","Improvements & Capitalised Repairs (Council Wide)","Construction - Contract Payments",13/08/2014 00:00:00,"6556430",1000,"BERKSHIRE MECHANICAL SERVICES"
"Bracknell Forest Council","http://opendatacommunities.org/id/unitary-authority/bracknell-forest","Bracknell Forest Council","00MA","","","Improvements & Capitalised Repairs (Council Wide)","Construction - Contract Payments",16/08/2014 00:00:00,"60011832",3700,"BERKSHIRE MECHANICAL SERVICES"
"Bracknell Forest Council","http://opendatacommunities.org/id/unitary-authority/bracknell-forest","Bracknell Forest Council","00MA","","","Improvements & Capitalised Repairs (Council Wide)","Construction - Contract Payments",16/08/2014 00:00:00,"60011832",1000,"BERKSHIRE MECHANICAL SERVICES"
"Bracknell Forest Council","http://opendatacommunities.org/id/unitary-authority/bracknell-forest","Bracknell Forest Council","00MA","Central Support Services - COF","Policy Unit","Town & Country","Printing and Design",25/07/2014 00:00:00,"6555643",1440,"BERKSHIRE MEDIA GROUP"
"Bracknell Forest Council","http://opendatacommunities.org/id/unitary-authority/bracknell-forest","Bracknell Forest Council","00MA","Open Spaces","Community Parks & Open Spaces","Tree Service","Contracted Services",07/08/2014 00:00:00,"6556631",2070,"BERKSHIRE TREE CARE"
"Bracknell Forest Council","http://opendatacommunities.org/id/unitary-authority/bracknell-forest","Bracknell Forest Council","00MA","Open Spaces","Community Parks & Open Spaces","Tree Service","Contracted Services",07/08/2014 00:00:00,"6556631",1945,"BERKSHIRE TREE CARE"
"Bracknell Forest Council","http://opendatacommunities.org/id/unitary-authority/bracknell-forest","Bracknell Forest Council","00MA","Open Spaces","Community Parks & Open Spaces","Tree Service","Contracted Services",07/08/2014 00:00:00,"6556631",1765,"BERKSHIRE TREE CARE"
"Bracknell Forest Council","http://opendatacommunities.org/id/unitary-authority/bracknell-forest","Bracknell Forest Council","00MA","Supporting People","Supporting People","Supporting People Payments","Transfer Payments - Supporting People",18/08/2014 00:00:00,"6556338",12102.87,"BERKSHIRE WOMEN'S AID"
"Bracknell Forest Council","http://opendatacommunities.org/id/unitary-authority/bracknell-forest","Bracknell Forest Council","00MA","Libraries","Stock Ordering, Cataloguing & Distribution","Library Book Fund","Audio/Visual materials",16/07/2014 00:00:00,"6555621",515,"BERTRAM TRADING LTD"
"Bracknell Forest Council","http://opendatacommunities.org/id/unitary-authority/bracknell-forest","Bracknell Forest Council","00MA","Adults (18-64)","Internal Services","Glenfield","Other Fees for Bought-in Services",18/07/2014 00:00:00,"6555896",545,"BIN THERE DUMPED THAT"
"Bracknell Forest Council","http://opendatacommunities.org/id/unitary-authority/bracknell-forest","Bracknell Forest Council","00MA","Older People (65+)","Long Term Support - Nursing","PS Older People 65+ Long Term Support - Nursing","Contracted Services",28/08/2014 00:00:00,"30250131",1191.89,"BIRDSGROVE NURSING HOME"
"Bracknell Forest Council","http://opendatacommunities.org/id/unitary-authority/bracknell-forest","Bracknell Forest Council","00MA","Older People (65+)","Long Term Support - Nursing","PS Older People 65+ Long Term Support - Nursing","Contracted Services",28/08/2014 00:00:00,"30250131",2502.24,"BIRDSGROVE NURSING HOME"
"Bracknell Forest Council","http://opendatacommunities.org/id/unitary-authority/bracknell-forest","Bracknell Forest Council","00MA","Older People (65+)","Long Term Support - Nursing","MH Older People 65+ Long Term Support - Nursing","Contracted Services",28/08/2014 00:00:00,"30250131",2502.24,"BIRDSGROVE NURSING HOME"
"Bracknell Forest Council","http://opendatacommunities.org/id/unitary-authority/bracknell-forest","Bracknell Forest Council","00MA","Older People (65+)","Long Term Support - Nursing","PS Older People 65+ Long Term Support - Nursing","Contracted Services",28/08/2014 00:00:00,"30250131",2502.24,"BIRDSGROVE NURSING HOME"
"Bracknell Forest Council","http://opendatacommunities.org/id/unitary-authority/bracknell-forest","Bracknell Forest Council","00MA","Older People (65+)","Long Term Support - Nursing","PS Older People 65+ Long Term Support - Nursing","Contracted Services",28/08/2014 00:00:00,"30250131",2502.24,"BIRDSGROVE NURSING HOME"
"Bracknell Forest Council","http://opendatacommunities.org/id/unitary-authority/bracknell-forest","Bracknell Forest Council","00MA","Older People (65+)","Long Term Support - Nursing","PS Older People 65+ Long Term Support - Nursing","Contracted Services",28/08/2014 00:00:00,"30250131",2502.24,"BIRDSGROVE NURSING HOME"
"Bracknell Forest Council","http://opendatacommunities.org/id/unitary-authority/bracknell-forest","Bracknell Forest Council","00MA","Older People (65+)","Long Term Support - Nursing","MC Older People 65+ Long Term Support - Nursing","Contracted Services",28/08/2014 00:00:00,"30250131",2800.48,"BIRDSGROVE NURSING HOME"
"Bracknell Forest Council","http://opendatacommunities.org/id/unitary-authority/bracknell-forest","Bracknell Forest Council","00MA","Older People (65+)","Long Term Support - Nursing","MC Older People 65+ Long Term Support - Nursing","Contracted Services",28/08/2014 00:00:00,"30250131",2800.48,"BIRDSGROVE NURSING HOME"
"Bracknell Forest Council","http://opendatacommunities.org/id/unitary-authority/bracknell-forest","Bracknell Forest Council","00MA","Older People (65+)","Long Term Support - Nursing","PS Older People 65+ Long Term Support - Nursing","Contracted Services",28/08/2014 00:00:00,"30250131",2800.48,"BIRDSGROVE NURSING HOME"
"Bracknell Forest Council","http://opendatacommunities.org/id/unitary-authority/bracknell-forest","Bracknell Forest Council","00MA","Older People (65+)","Long Term Support - Nursing","MC Older People 65+ Long Term Support - Nursing","Contracted Services",28/08/2014 00:00:00,"30250131",2800.48,"BIRDSGROVE NURSING HOME"
"Bracknell Forest Council","http://opendatacommunities.org/id/unitary-authority/bracknell-forest","Bracknell Forest Council","00MA","Older People (65+)","Long Term Support - Nursing","MC Older People 65+ Long Term Support - Nursing","Contracted Services",28/08/2014 00:00:00,"30250131",2800.48,"BIRDSGROVE NURSING HOME"
"Bracknell Forest Council","http://opendatacommunities.org/id/unitary-authority/bracknell-forest","Bracknell Forest Council","00MA","Older People (65+)","Long Term Support - Nursing","MC Older People 65+ Long Term Support - Nursing","Contracted Services",28/08/2014 00:00:00,"30250131",2800.48,"BIRDSGROVE NURSING HOME"
"Bracknell Forest Council","http://opendatacommunities.org/id/unitary-authority/bracknell-forest","Bracknell Forest Council","00MA","Older People (65+)","Long Term Support - Nursing","MC Older People 65+ Long Term Support - Nursing","Contracted Services",28/08/2014 00:00:00,"30250131",2962.28,"BIRDSGROVE NURSING HOME"
"Bracknell Forest Council","http://opendatacommunities.org/id/unitary-authority/bracknell-forest","Bracknell Forest Council","00MA","Older People (65+)","Long Term Support - Nursing","PS Older People 65+ Long Term Support - Nursing","Contracted Services",28/08/2014 00:00:00,"30250131",5004.48,"BIRDSGROVE NURSING HOME"
"Bracknell Forest Council","http://opendatacommunities.org/id/unitary-authority/bracknell-forest","Bracknell Forest Council","00MA","Older People (65+)","Long Term Support - Nursing","MC Older People 65+ Long Term Support - Nursing","Contracted Services",28/08/2014 00:00:00,"30250131",5004.48,"BIRDSGROVE NURSING HOME"
"Bracknell Forest Council","http://opendatacommunities.org/id/unitary-authority/bracknell-forest","Bracknell Forest Council","00MA","Older People (65+)","Long Term Support - Nursing","PS Older People 65+ Long Term Support - Nursing","Contracted Services",28/08/2014 00:00:00,"30250131",5302.72,"BIRDSGROVE NURSING HOME"
"Bracknell Forest Council","http://opendatacommunities.org/id/unitary-authority/bracknell-forest","Bracknell Forest Council","00MA","Older People (65+)","Long Term Support - Nursing","MC Older People 65+ Long Term Support - Nursing","Contracted Services",28/08/2014 00:00:00,"30250131",5600.96,"BIRDSGROVE NURSING HOME"
"Bracknell Forest Council","http://opendatacommunities.org/id/unitary-authority/bracknell-forest","Bracknell Forest Council","00MA","Older People (65+)","Long Term Support - Nursing","MC Older People 65+ Long Term Support - Nursing","Contracted Services",28/08/2014 00:00:00,"30250131",5600.96,"BIRDSGROVE NURSING HOME"
"Bracknell Forest Council","http://opendatacommunities.org/id/unitary-authority/bracknell-forest","Bracknell Forest Council","00MA","Older People (65+)","Long Term Support - Nursing","MC Older People 65+ Long Term Support - Nursing","Contracted Services",28/08/2014 00:00:00,"30250131",8103.2,"BIRDSGROVE NURSING HOME"
"Bracknell Forest Council","http://opendatacommunities.org/id/unitary-authority/bracknell-forest","Bracknell Forest Council","00MA","Services to Young People","Adult and Community Learning","Adult Skills","Licences",05/08/2014 00:00:00,"6556357",1210.5,"BKSB LTD"
"Bracknell Forest Council","http://opendatacommunities.org/id/unitary-authority/bracknell-forest","Bracknell Forest Council","00MA","Children Looked After","Fostering services","Independent Fostering (Non BFBC)","Contracted Services",01/08/2014 00:00:00,"6557074",13020,"BLUE SKY FOSTERING"
"Bracknell Forest Council","http://opendatacommunities.org/id/unitary-authority/bracknell-forest","Bracknell Forest Council","00MA","Recreation, Sports and Leisure","Indoor Sports & Recreation Facilities","Leisure DSO - Leisure Centre Maintenance","R&M - Reactive",25/04/2014 00:00:00,"6555820",6247.5,"BONASYSTEMS"
"Bracknell Forest Council","http://opendatacommunities.org/id/unitary-authority/bracknell-forest","Bracknell Forest Council","00MA","Central Support Services - COF","Finance","Technical Accountancy","Computer Software Maintenance",30/04/2014 00:00:00,"6556984",4210,"BOTTOMLINE TECHNOLOGIES LIMITED"
"Bracknell Forest Council","http://opendatacommunities.org/id/unitary-authority/bracknell-forest","Bracknell Forest Council","00MA","Central Support Services - COF","Finance","Technical Accountancy","Computer Software Maintenance",30/04/2014 00:00:00,"6557035",4220.6,"BOTTOMLINE TECHNOLOGIES LIMITED"
"Bracknell Forest Council","http://opendatacommunities.org/id/unitary-authority/bracknell-forest","Bracknell Forest Council","00MA","Recreation, Sports and Leisure","Indoor Sports & Recreation Facilities","Leisure DSO - Coral Reef","Cleaning materials",28/07/2014 00:00:00,"6556211",503.22,"BOWAK LTD"
"Bracknell Forest Council","http://opendatacommunities.org/id/unitary-authority/bracknell-forest","Bracknell Forest Council","00MA","Recreation, Sports and Leisure","Indoor Sports & Recreation Facilities","Leisure DSO - Coral Reef","Cleaning materials",10/07/2014 00:00:00,"6556223",703.64,"BOWAK LTD"
"Bracknell Forest Council","http://opendatacommunities.org/id/unitary-authority/bracknell-forest","Bracknell Forest Council","00MA","Recreation, Sports and Leisure","Indoor Sports & Recreation Facilities","Leisure DSO - Coral Reef","Cleaning materials",05/08/2014 00:00:00,"6556902",1059.46,"BOWAK LTD"
"Bracknell Forest Council","http://opendatacommunities.org/id/unitary-authority/bracknell-forest","Bracknell Forest Council","00MA","Central Support Services - COF","Personnel","LSC - PSSC Grant","Training Costs",25/07/2014 00:00:00,"6555880",1475,"BRACKNELL & WOKINGHAM COLLEGE"
"Bracknell Forest Council","http://opendatacommunities.org/id/unitary-authority/bracknell-forest","Bracknell Forest Council","00MA","Central Support Services - COF","Personnel","LSC - Train to Gain Grant (T2G)","Training Costs",25/07/2014 00:00:00,"6555880",1475,"BRACKNELL & WOKINGHAM COLLEGE"
"Bracknell Forest Council","http://opendatacommunities.org/id/unitary-authority/bracknell-forest","Bracknell Forest Council","00MA","Supporting People","Supporting People","Supporting People Payments","Transfer Payments - Supporting People",18/08/2014 00:00:00,"6556325",13324.91,"BRACKNELL FOREST HOMES"
"Bracknell Forest Council","http://opendatacommunities.org/id/unitary-authority/bracknell-forest","Bracknell Forest Council","00MA","","","Community Capacity Grant","Other Direct Expenses",15/08/2014 00:00:00,"6557166",9910,"BRACKNELL FOREST HOMES"
"Bracknell Forest Council","http://opendatacommunities.org/id/unitary-authority/bracknell-forest","Bracknell Forest Council","00MA","Environmental Initiatives","Sustainable Development Strategies","Energy Management","Contracted Services",29/08/2014 00:00:00,"6557019",600,"BRACKNELL HEATING & PLUMBING"
"Bracknell Forest Council","http://opendatacommunities.org/id/unitary-authority/bracknell-forest","Bracknell Forest Council","00MA","Business Support","Premises Development","Easthampstead Park Centre - Catering","Cost of Goods Sold",30/07/2014 00:00:00,"30249073",-46.92,"BRAKE BROS FOODSERVICE LTD"
"Bracknell Forest Council","http://opendatacommunities.org/id/unitary-authority/bracknell-forest","Bracknell Forest Council","00MA","Business Support","Premises Development","Easthampstead Park Centre - Catering","Cost of Goods Sold",30/07/2014 00:00:00,"30249073",-7.27,"BRAKE BROS FOODSERVICE LTD"
"Bracknell Forest Council","http://opendatacommunities.org/id/unitary-authority/bracknell-forest","Bracknell Forest Council","00MA","Business Support","Premises Development","Easthampstead Park Centre - Catering","Cost of Goods Sold",24/07/2014 00:00:00,"30249073",2.45,"BRAKE BROS FOODSERVICE LTD"
"Bracknell Forest Council","http://opendatacommunities.org/id/unitary-authority/bracknell-forest","Bracknell Forest Council","00MA","Business Support","Premises Development","Easthampstead Park Centre - Catering","Cost of Goods Sold",30/07/2014 00:00:00,"30249073",21.02,"BRAKE BROS FOODSERVICE LTD"
"Bracknell Forest Council","http://opendatacommunities.org/id/unitary-authority/bracknell-forest","Bracknell Forest Council","00MA","Business Support","Premises Development","Easthampstead Park Centre - Catering","Cost of Goods Sold",30/07/2014 00:00:00,"30249073",58.16,"BRAKE BROS FOODSERVICE LTD"
"Bracknell Forest Council","http://opendatacommunities.org/id/unitary-authority/bracknell-forest","Bracknell Forest Council","00MA","Business Support","Premises Development","Easthampstead Park Centre - Catering","Cost of Goods Sold",22/07/2014 00:00:00,"30249073",70.23,"BRAKE BROS FOODSERVICE LTD"
"Bracknell Forest Council","http://opendatacommunities.org/id/unitary-authority/bracknell-forest","Bracknell Forest Council","00MA","Business Support","Premises Development","Easthampstead Park Centre - Catering","Cost of Goods Sold",28/07/2014 00:00:00,"30249073",90.5,"BRAKE BROS FOODSERVICE LTD"
"Bracknell Forest Council","http://opendatacommunities.org/id/unitary-authority/bracknell-forest","Bracknell Forest Council","00MA","Business Support","Premises Development","Easthampstead Park Centre - Catering","Cost of Goods Sold",23/07/2014 00:00:00,"30249073",91.08,"BRAKE BROS FOODSERVICE LTD"
"Bracknell Forest Council","http://opendatacommunities.org/id/unitary-authority/bracknell-forest","Bracknell Forest Council","00MA","Business Support","Premises Development","Easthampstead Park Centre - Catering","Cost of Goods Sold",25/07/2014 00:00:00,"30249073",108.98,"BRAKE BROS FOODSERVICE LTD"
"Bracknell Forest Council","http://opendatacommunities.org/id/unitary-authority/bracknell-forest","Bracknell Forest Council","00MA","Business Support","Premises Development","Easthampstead Park Centre - Catering","Cost of Goods Sold",30/07/2014 00:00:00,"30249073",118.16,"BRAKE BROS FOODSERVICE LTD"
"Bracknell Forest Council","http://opendatacommunities.org/id/unitary-authority/bracknell-forest","Bracknell Forest Council","00MA","Business Support","Premises Development","Easthampstead Park Centre - Catering","Cost of Goods Sold",29/07/2014 00:00:00,"30249073",165.8,"BRAKE BROS FOODSERVICE LTD"
"Bracknell Forest Council","http://opendatacommunities.org/id/unitary-authority/bracknell-forest","Bracknell Forest Council","00MA","Recreation, Sports and Leisure","Indoor Sports & Recreation Facilities","Coral Reef - Catering & Bar","Cost of Goods Sold",31/07/2014 00:00:00,"30249073",200.11,"BRAKE BROS FOODSERVICE LTD"
"Bracknell Forest Council","http://opendatacommunities.org/id/unitary-authority/bracknell-forest","Bracknell Forest Council","00MA","Other Welfare Services","Other Welfare Services","Forestcare - Operational","Office Stationery",29/08/2014 00:00:00,"30250293",0.31,"BANNER"
"Bracknell Forest Council","http://opendatacommunities.org/id/unitary-authority/bracknell-forest","Bracknell Forest Council","00MA","Other Welfare Services","Other Welfare Services","Forestcare - Operational","Office Stationery",29/08/2014 00:00:00,"30250293",0.31,"BANNER"
"Bracknell Forest Council","http://opendatacommunities.org/id/unitary-authority/bracknell-forest","Bracknell Forest Council","00MA","Management & Administration","Management & Administration","Directorate","Office Stationery",29/08/2014 00:00:00,"30250293",0.33,"BANNER"
"Bracknell Forest Council","http://opendatacommunities.org/id/unitary-authority/bracknell-forest","Bracknell Forest Council","00MA","Central Support Services - COF","Finance","Finance Departmental Administration","Office Stationery",29/08/2014 00:00:00,"30250293",0.34,"BANNER"
"Bracknell Forest Council","http://opendatacommunities.org/id/unitary-authority/bracknell-forest","Bracknell Forest Council","00MA","Service Management & Support Services","Service Management & Support Services","Departmental Office Services","Office Stationery",29/08/2014 00:00:00,"30250293",0.35,"BANNER"
"Bracknell Forest Council","http://opendatacommunities.org/id/unitary-authority/bracknell-forest","Bracknell Forest Council","00MA","Culture and Heritage","Heritage Museums & Galleries","The Look Out","Office Stationery",29/08/2014 00:00:00,"30250293",0.35,"BANNER"
"Bracknell Forest Council","http://opendatacommunities.org/id/unitary-authority/bracknell-forest","Bracknell Forest Council","00MA","Early Years","Children's Centres","The Alders Children's Centre","Office Stationery",29/08/2014 00:00:00,"30250293",0.39,"BANNER"
"Bracknell Forest Council","http://opendatacommunities.org/id/unitary-authority/bracknell-forest","Bracknell Forest Council","00MA","Management & Administration","Management & Administration","Directorate","Office Stationery",29/08/2014 00:00:00,"30250293",0.4,"BANNER"
"Bracknell Forest Council","http://opendatacommunities.org/id/unitary-authority/bracknell-forest","Bracknell Forest Council","00MA","Recreation, Sports and Leisure","Indoor Sports & Recreation Facilities","Leisure DSO - Leisure Centre","Office Stationery",29/08/2014 00:00:00,"30250293",0.46,"BANNER"
"Bracknell Forest Council","http://opendatacommunities.org/id/unitary-authority/bracknell-forest","Bracknell Forest Council","00MA","Management and Support Services - CYPL","Holding Codes - net nil","Education Library Service","Office Stationery",29/08/2014 00:00:00,"30250293",0.47,"BANNER"
"Bracknell Forest Council","http://opendatacommunities.org/id/unitary-authority/bracknell-forest","Bracknell Forest Council","00MA","Other Welfare Services","Other Welfare Services","Forestcare - Operational","Office Stationery",29/08/2014 00:00:00,"30250293",0.49,"BANNER"
"Bracknell Forest Council","http://opendatacommunities.org/id/unitary-authority/bracknell-forest","Bracknell Forest Council","00MA","Early Years","Children's Centres","The Willows Children's Centre","Office Stationery",29/08/2014 00:00:00,"30250293",0.52,"BANNER"
"Bracknell Forest Council","http://opendatacommunities.org/id/unitary-authority/bracknell-forest","Bracknell Forest Council","00MA","Services to Young People","Other Services to Young People","Coopers Hill Youth Centre","Office Stationery",29/08/2014 00:00:00,"30250293",0.52,"BANNER"
"Bracknell Forest Council","http://opendatacommunities.org/id/unitary-authority/bracknell-forest","Bracknell Forest Council","00MA","Holding Accounts in Budget Book COF","Corporate Services - Office Services","Office Services - General Expenses","Office Stationery",29/08/2014 00:00:00,"30250293",0.52,"BANNER"
"Bracknell Forest Council","http://opendatacommunities.org/id/unitary-authority/bracknell-forest","Bracknell Forest Council","00MA","Central Support Services - COF","Valuers","Property Services","Office Stationery",29/08/2014 00:00:00,"30250293",0.54,"BANNER"
"Bracknell Forest Council","http://opendatacommunities.org/id/unitary-authority/bracknell-forest","Bracknell Forest Council","00MA","Service Management & Support Services","Service Management & Support Services","Departmental Office Services","Office Stationery",29/08/2014 00:00:00,"30250293",0.54,"BANNER"
"Bracknell Forest Council","http://opendatacommunities.org/id/unitary-authority/bracknell-forest","Bracknell Forest Council","00MA","Holding Accounts in Budget Book COF","Corporate Services - Office Services","Office Services - General Expenses","Office Stationery",29/08/2014 00:00:00,"30250293",0.55,"BANNER"
"Bracknell Forest Council","http://opendatacommunities.org/id/unitary-authority/bracknell-forest","Bracknell Forest Council","00MA","Services to Young People","Other Services to Young People","Coopers Hill Youth Centre","Office Stationery",29/08/2014 00:00:00,"30250293",0.55,"BANNER"
"Bracknell Forest Council","http://opendatacommunities.org/id/unitary-authority/bracknell-forest","Bracknell Forest Council","00MA","Services to Young People","Other Services to Young People","Coopers Hill Youth Centre","Office Stationery",29/08/2014 00:00:00,"30250293",0.55,"BANNER"
"Bracknell Forest Council","http://opendatacommunities.org/id/unitary-authority/bracknell-forest","Bracknell Forest Council","00MA","Miscellaneous Public Health Services","Miscellaneous Public Health Services","Internal Public Health Project Grants","Office Stationery",29/08/2014 00:00:00,"30250293",0.55,"BANNER"
"Bracknell Forest Council","http://opendatacommunities.org/id/unitary-authority/bracknell-forest","Bracknell Forest Council","00MA","Family Support Services","Other family support services","Family Centre Running Costs","Office Stationery",29/08/2014 00:00:00,"30250293",0.55,"BANNER"
"Bracknell Forest Council","http://opendatacommunities.org/id/unitary-authority/bracknell-forest","Bracknell Forest Council","00MA","Service Management & Support Services","Service Management & Support Services","Departmental Office Services","Office Stationery",29/08/2014 00:00:00,"30250293",0.56,"BANNER"
"Bracknell Forest Council","http://opendatacommunities.org/id/unitary-authority/bracknell-forest","Bracknell Forest Council","00MA","Early Years","Children's Centres","The Alders Children's Centre","Office Stationery",29/08/2014 00:00:00,"30250293",0.57,"BANNER"
"Bracknell Forest Council","http://opendatacommunities.org/id/unitary-authority/bracknell-forest","Bracknell Forest Council","00MA","Management & Administration","Management & Administration","Directorate","Office Stationery",29/08/2014 00:00:00,"30250293",0.6,"BANNER"
"Bracknell Forest Council","http://opendatacommunities.org/id/unitary-authority/bracknell-forest","Bracknell Forest Council","00MA","Family Support Services","Other family support services","Family Centre Running Costs","Office Stationery",29/08/2014 00:00:00,"30250293",0.62,"BANNER"
"Bracknell Forest Council","http://opendatacommunities.org/id/unitary-authority/bracknell-forest","Bracknell Forest Council","00MA","Community Development","Community Development","Chief Executive Office excl Communications","Office Stationery",29/08/2014 00:00:00,"30250293",0.64,"BANNER"
"Bracknell Forest Council","http://opendatacommunities.org/id/unitary-authority/bracknell-forest","Bracknell Forest Council","00MA","Early Years","Children's Centres","The Rowans Children's Centre","Office Stationery",29/08/2014 00:00:00,"30250293",0.64,"BANNER"
"Bracknell Forest Council","http://opendatacommunities.org/id/unitary-authority/bracknell-forest","Bracknell Forest Council","00MA","Service Management & Support Services","Service Management & Support Services","Departmental Office Services","Office Stationery",29/08/2014 00:00:00,"30250293",0.65,"BANNER"
"Bracknell Forest Council","http://opendatacommunities.org/id/unitary-authority/bracknell-forest","Bracknell Forest Council","00MA","Service Management & Support Services","Service Management & Support Services","Departmental Office Services","Office Stationery",29/08/2014 00:00:00,"30250293",0.65,"BANNER"
"Bracknell Forest Council","http://opendatacommunities.org/id/unitary-authority/bracknell-forest","Bracknell Forest Council","00MA","Central Support Services - COF","Finance","Finance Departmental Administration","Office Stationery",29/08/2014 00:00:00,"30250293",0.68,"BANNER"
"Bracknell Forest Council","http://opendatacommunities.org/id/unitary-authority/bracknell-forest","Bracknell Forest Council","00MA","Central Support Services - COF","Finance","Finance Departmental Administration","Office Stationery",29/08/2014 00:00:00,"30250293",0.7,"BANNER"
"Bracknell Forest Council","http://opendatacommunities.org/id/unitary-authority/bracknell-forest","Bracknell Forest Council","00MA","Service Management & Support Services","Service Management & Support Services","Departmental Office Services","Office Stationery",29/08/2014 00:00:00,"30250293",0.7,"BANNER"
"Bracknell Forest Council","http://opendatacommunities.org/id/unitary-authority/bracknell-forest","Bracknell Forest Council","00MA","Service Management & Support Services","Service Management & Support Services","Departmental Office Services","Office Stationery",29/08/2014 00:00:00,"30250293",0.7,"BANNER"
"Bracknell Forest Council","http://opendatacommunities.org/id/unitary-authority/bracknell-forest","Bracknell Forest Council","00MA","Service Management & Support Services","Service Management & Support Services","Departmental Office Services","Office Stationery",29/08/2014 00:00:00,"30250293",0.7,"BANNER"
"Bracknell Forest Council","http://opendatacommunities.org/id/unitary-authority/bracknell-forest","Bracknell Forest Council","00MA","Democratic Representation & Management COF","Democratic Representation & Management - COF","Committee Servicing","Office Stationery",29/08/2014 00:00:00,"30250293",0.72,"BANNER"
"Bracknell Forest Council","http://opendatacommunities.org/id/unitary-authority/bracknell-forest","Bracknell Forest Council","00MA","Holding Accounts in Budget Book COF","Corporate Services - Office Services","Office Services - General Expenses","Office Stationery",29/08/2014 00:00:00,"30250293",0.75,"BANNER"
"Bracknell Forest Council","http://opendatacommunities.org/id/unitary-authority/bracknell-forest","Bracknell Forest Council","00MA","Central Support Services - COF","Valuers","Property Services","Office Stationery",29/08/2014 00:00:00,"30250293",0.78,"BANNER"
"Bracknell Forest Council","http://opendatacommunities.org/id/unitary-authority/bracknell-forest","Bracknell Forest Council","00MA","Central Support Services - COF","Information Technology","Information Technology - Management","Office Stationery",29/08/2014 00:00:00,"30250293",0.8,"BANNER"
"Bracknell Forest Council","http://opendatacommunities.org/id/unitary-authority/bracknell-forest","Bracknell Forest Council","00MA","Service Management & Support Services","Service Management & Support Services","Departmental Office Services","Office Stationery",29/08/2014 00:00:00,"30250293",0.8,"BANNER"
"Bracknell Forest Council","http://opendatacommunities.org/id/unitary-authority/bracknell-forest","Bracknell Forest Council","00MA","Management & Administration","Management & Administration","LD Employment Service","Office Stationery",29/08/2014 00:00:00,"30250293",0.88,"BANNER"
"Bracknell Forest Council","http://opendatacommunities.org/id/unitary-authority/bracknell-forest","Bracknell Forest Council","00MA","Early Years","Children's Centres","The Alders Children's Centre","Office Stationery",29/08/2014 00:00:00,"30250293",0.88,"BANNER"
"Bracknell Forest Council","http://opendatacommunities.org/id/unitary-authority/bracknell-forest","Bracknell Forest Council","00MA","Central Support Services - COF","Legal","Legal Services","Office Stationery",29/08/2014 00:00:00,"30250293",0.9,"BANNER"
"Bracknell Forest Council","http://opendatacommunities.org/id/unitary-authority/bracknell-forest","Bracknell Forest Council","00MA","Open Spaces","Countryside Recreation & Management","Countryside Sites - Maintenance","Office Stationery",29/08/2014 00:00:00,"30250293",0.9,"BANNER"
"Bracknell Forest Council","http://opendatacommunities.org/id/unitary-authority/bracknell-forest","Bracknell Forest Council","00MA","Service Management & Support Services","Service Management & Support Services","Departmental Office Services","Office Stationery",29/08/2014 00:00:00,"30250293",0.91,"BANNER"
"Bracknell Forest Council","http://opendatacommunities.org/id/unitary-authority/bracknell-forest","Bracknell Forest Council","00MA","Services to Young People","Other Services to Young People","Coopers Hill Youth Centre","Office Stationery",29/08/2014 00:00:00,"30250293",0.92,"BANNER"
"Bracknell Forest Council","http://opendatacommunities.org/id/unitary-authority/bracknell-forest","Bracknell Forest Council","00MA","Other Welfare Services","Other Welfare Services","Forestcare - Operational","Office Stationery",29/08/2014 00:00:00,"30250293",0.92,"BANNER"
"Bracknell Forest Council","http://opendatacommunities.org/id/unitary-authority/bracknell-forest","Bracknell Forest Council","00MA","Management and Support Services - CYPL","Strategy, Resources and Early Interventions","Reception & Office Services","Office Stationery",29/08/2014 00:00:00,"30250293",0.98,"BANNER"
"Bracknell Forest Council","http://opendatacommunities.org/id/unitary-authority/bracknell-forest","Bracknell Forest Council","00MA","Management and Support Services - CYPL","Holding Codes - net nil","Education Library Service","Office Stationery",29/08/2014 00:00:00,"30250293",0.99,"BANNER"
"Bracknell Forest Council","http://opendatacommunities.org/id/unitary-authority/bracknell-forest","Bracknell Forest Council","00MA","Central Support Services - COF","Valuers","Property Services","Office Stationery",29/08/2014 00:00:00,"30250293",0.99,"BANNER"
"Bracknell Forest Council","http://opendatacommunities.org/id/unitary-authority/bracknell-forest","Bracknell Forest Council","00MA","Service Management & Support Services","Service Management & Support Services","Departmental Office Services","Office Stationery",29/08/2014 00:00:00,"30250293",0.99,"BANNER"
"Bracknell Forest Council","http://opendatacommunities.org/id/unitary-authority/bracknell-forest","Bracknell Forest Council","00MA","Older People (65+)","Internal Services","Heathlands EPH","Office Stationery",29/08/2014 00:00:00,"30250293",0.99,"BANNER"
"Bracknell Forest Council","http://opendatacommunities.org/id/unitary-authority/bracknell-forest","Bracknell Forest Council","00MA","Democratic Representation & Management COF","Democratic Representation & Management - COF","Committee Servicing","Office Stationery",29/08/2014 00:00:00,"30250293",0.99,"BANNER"
"Bracknell Forest Council","http://opendatacommunities.org/id/unitary-authority/bracknell-forest","Bracknell Forest Council","00MA","Service Management & Support Services","Service Management & Support Services","Departmental Office Services","Office Stationery",29/08/2014 00:00:00,"30250293",1,"BANNER"
"Bracknell Forest Council","http://opendatacommunities.org/id/unitary-authority/bracknell-forest","Bracknell Forest Council","00MA","Miscellaneous Public Health Services","Miscellaneous Public Health Services","Internal Public Health Project Grants","Office Stationery",29/08/2014 00:00:00,"30250293",1.01,"BANNER"
"Bracknell Forest Council","http://opendatacommunities.org/id/unitary-authority/bracknell-forest","Bracknell Forest Council","00MA","Short Term Support Other","Short Term Support Other","Bridgewell Unit","Office Stationery",29/08/2014 00:00:00,"30250293",1.04,"BANNER"
"Bracknell Forest Council","http://opendatacommunities.org/id/unitary-authority/bracknell-forest","Bracknell Forest Council","00MA","Holding Accounts in Budget Book COF","Corporate Services - Office Services","Office Services - General Expenses","Office Stationery",29/08/2014 00:00:00,"30250293",1.04,"BANNER"
"Bracknell Forest Council","http://opendatacommunities.org/id/unitary-authority/bracknell-forest","Bracknell Forest Council","00MA","Management and Support Services - CYPL","Holding Codes - net nil","Education Library Service","Office Stationery",29/08/2014 00:00:00,"30250293",1.08,"BANNER"
"Bracknell Forest Council","http://opendatacommunities.org/id/unitary-authority/bracknell-forest","Bracknell Forest Council","00MA","Central Support Services - COF","Legal","Legal Services","Office Stationery",29/08/2014 00:00:00,"30250293",1.08,"BANNER"
"Bracknell Forest Council","http://opendatacommunities.org/id/unitary-authority/bracknell-forest","Bracknell Forest Council","00MA","Service Management & Support Services","Service Management & Support Services","Departmental Office Services","Office Stationery",29/08/2014 00:00:00,"30250293",1.1,"BANNER"
"Bracknell Forest Council","http://opendatacommunities.org/id/unitary-authority/bracknell-forest","Bracknell Forest Council","00MA","Open Spaces","Countryside Recreation & Management","Countryside Sites - Maintenance","Office Stationery",29/08/2014 00:00:00,"30250293",1.1,"BANNER"
"Bracknell Forest Council","http://opendatacommunities.org/id/unitary-authority/bracknell-forest","Bracknell Forest Council","00MA","Community Development","Community Development","Chief Executive Office excl Communications","Office Stationery",29/08/2014 00:00:00,"30250293",1.1,"BANNER"
"Bracknell Forest Council","http://opendatacommunities.org/id/unitary-authority/bracknell-forest","Bracknell Forest Council","00MA","Central Support Services - COF","Fleet","Integrated Transport Unit","Office Stationery",29/08/2014 00:00:00,"30250293",1.12,"BANNER"
"Bracknell Forest Council","http://opendatacommunities.org/id/unitary-authority/bracknell-forest","Bracknell Forest Council","00MA","Management & Administration","Management & Administration","Directorate","Office Stationery",29/08/2014 00:00:00,"30250293",1.13,"BANNER"
"Bracknell Forest Council","http://opendatacommunities.org/id/unitary-authority/bracknell-forest","Bracknell Forest Council","00MA","Central Support Services - COF","Finance","Finance Departmental Administration","Office Stationery",29/08/2014 00:00:00,"30250293",1.13,"BANNER"
"Bracknell Forest Council","http://opendatacommunities.org/id/unitary-authority/bracknell-forest","Bracknell Forest Council","00MA","Holding Accounts in Budget Book COF","Corporate Services - Office Services","Office Services - General Expenses","Office Stationery",29/08/2014 00:00:00,"30250293",1.14,"BANNER"
"Bracknell Forest Council","http://opendatacommunities.org/id/unitary-authority/bracknell-forest","Bracknell Forest Council","00MA","Early Years","Children's Centres","The Alders Children's Centre","Office Stationery",29/08/2014 00:00:00,"30250293",1.15,"BANNER"
"Bracknell Forest Council","http://opendatacommunities.org/id/unitary-authority/bracknell-forest","Bracknell Forest Council","00MA","Management and Support Services - CYPL","Strategy, Resources and Early Interventions","Reception & Office Services","Office Stationery",29/08/2014 00:00:00,"30250293",1.17,"BANNER"
"Bracknell Forest Council","http://opendatacommunities.org/id/unitary-authority/bracknell-forest","Bracknell Forest Council","00MA","Recreation, Sports and Leisure","Indoor Sports & Recreation Facilities","Leisure DSO - Leisure Centre","Office Stationery",29/08/2014 00:00:00,"30250293",1.2,"BANNER"
"Bracknell Forest Council","http://opendatacommunities.org/id/unitary-authority/bracknell-forest","Bracknell Forest Council","00MA","Service Management & Support Services","Service Management & Support Services","Departmental Office Services","Office Stationery",29/08/2014 00:00:00,"30250293",1.25,"BANNER"
"Bracknell Forest Council","http://opendatacommunities.org/id/unitary-authority/bracknell-forest","Bracknell Forest Council","00MA","Democratic Representation & Management COF","Democratic Representation & Management - COF","Committee Servicing","Office Stationery",29/08/2014 00:00:00,"30250293",1.25,"BANNER"
"Bracknell Forest Council","http://opendatacommunities.org/id/unitary-authority/bracknell-forest","Bracknell Forest Council","00MA","Service Management & Support Services","Service Management & Support Services","Departmental Office Services","Office Stationery",29/08/2014 00:00:00,"30250293",1.29,"BANNER"
"Bracknell Forest Council","http://opendatacommunities.org/id/unitary-authority/bracknell-forest","Bracknell Forest Council","00MA","Management and Support Services - CYPL","Unallocated Schools Budget Related Expenditure","Family Intervention Project","Office Stationery",29/08/2014 00:00:00,"30250293",1.3,"BANNER"
"Bracknell Forest Council","http://opendatacommunities.org/id/unitary-authority/bracknell-forest","Bracknell Forest Council","00MA","Central Support Services - COF","Finance","Finance Departmental Administration","Office Stationery",29/08/2014 00:00:00,"30250293",1.3,"BANNER"
"Bracknell Forest Council","http://opendatacommunities.org/id/unitary-authority/bracknell-forest","Bracknell Forest Council","00MA","Management and Support Services - CYPL","Holding Codes - net nil","Education Library Service","Office Stationery",29/08/2014 00:00:00,"30250293",1.32,"BANNER"
"Bracknell Forest Council","http://opendatacommunities.org/id/unitary-authority/bracknell-forest","Bracknell Forest Council","00MA","Services to Young People","Other Services to Young People","Coopers Hill Youth Centre","Office Stationery",29/08/2014 00:00:00,"30250293",1.32,"BANNER"
"Bracknell Forest Council","http://opendatacommunities.org/id/unitary-authority/bracknell-forest","Bracknell Forest Council","00MA","Democratic Representation & Management COF","Democratic Representation & Management - COF","Committee Servicing","Office Stationery",29/08/2014 00:00:00,"30250293",1.32,"BANNER"
"Bracknell Forest Council","http://opendatacommunities.org/id/unitary-authority/bracknell-forest","Bracknell Forest Council","00MA","Other Welfare Services","Other Welfare Services","Forestcare - Operational","Office Stationery",29/08/2014 00:00:00,"30250293",1.34,"BANNER"
"Bracknell Forest Council","http://opendatacommunities.org/id/unitary-authority/bracknell-forest","Bracknell Forest Council","00MA","Central Support Services - COF","Legal","Legal Services","Office Stationery",29/08/2014 00:00:00,"30250293",1.38,"BANNER"
"Bracknell Forest Council","http://opendatacommunities.org/id/unitary-authority/bracknell-forest","Bracknell Forest Council","00MA","Early Years","Children's Centres","The Alders Children's Centre","Office Stationery",29/08/2014 00:00:00,"30250293",1.4,"BANNER"
"Bracknell Forest Council","http://opendatacommunities.org/id/unitary-authority/bracknell-forest","Bracknell Forest Council","00MA","Early Years","Children's Centres","The Alders Children's Centre","Office Stationery",29/08/2014 00:00:00,"30250293",1.42,"BANNER"
"Bracknell Forest Council","http://opendatacommunities.org/id/unitary-authority/bracknell-forest","Bracknell Forest Council","00MA","Service Management & Support Services","Service Management & Support Services","Departmental Office Services","Office Stationery",29/08/2014 00:00:00,"30250293",1.54,"BANNER"
"Bracknell Forest Council","http://opendatacommunities.org/id/unitary-authority/bracknell-forest","Bracknell Forest Council","00MA","Services to Young People","Other Services to Young People","Coopers Hill Youth Centre","Office Stationery",29/08/2014 00:00:00,"30250293",1.54,"BANNER"
"Bracknell Forest Council","http://opendatacommunities.org/id/unitary-authority/bracknell-forest","Bracknell Forest Council","00MA","Short Term Support Other","Short Term Support Other","Bridgewell Unit","Office Stationery",29/08/2014 00:00:00,"30250293",1.56,"BANNER"
"Bracknell Forest Council","http://opendatacommunities.org/id/unitary-authority/bracknell-forest","Bracknell Forest Council","00MA","Central Support Services - COF","Finance","Finance Departmental Administration","Office Stationery",29/08/2014 00:00:00,"30250293",1.56,"BANNER"
"Bracknell Forest Council","http://opendatacommunities.org/id/unitary-authority/bracknell-forest","Bracknell Forest Council","00MA","Management and Support Services - CYPL","Holding Codes - net nil","Education Library Service","Office Stationery",29/08/2014 00:00:00,"30250293",1.59,"BANNER"
"Bracknell Forest Council","http://opendatacommunities.org/id/unitary-authority/bracknell-forest","Bracknell Forest Council","00MA","Central Support Services - COF","Customer Service Centre","Cashiers Services","Office Stationery",29/08/2014 00:00:00,"30250293",1.6,"BANNER"
"Bracknell Forest Council","http://opendatacommunities.org/id/unitary-authority/bracknell-forest","Bracknell Forest Council","00MA","Management & Administration","Management & Administration","Directorate","Office Stationery",29/08/2014 00:00:00,"30250293",1.64,"BANNER"
"Bracknell Forest Council","http://opendatacommunities.org/id/unitary-authority/bracknell-forest","Bracknell Forest Council","00MA","Central Support Services - COF","Personnel","Personnel Services","Office Stationery",29/08/2014 00:00:00,"30250293",1.74,"BANNER"
"Bracknell Forest Council","http://opendatacommunities.org/id/unitary-authority/bracknell-forest","Bracknell Forest Council","00MA","Central Support Services - COF","Information Technology","Information Technology - Management","Office Stationery",29/08/2014 00:00:00,"30250293",1.78,"BANNER"
"Bracknell Forest Council","http://opendatacommunities.org/id/unitary-authority/bracknell-forest","Bracknell Forest Council","00MA","Service Management & Support Services","Service Management & Support Services","Departmental Office Services","Office Stationery",29/08/2014 00:00:00,"30250293",1.8,"BANNER"
"Bracknell Forest Council","http://opendatacommunities.org/id/unitary-authority/bracknell-forest","Bracknell Forest Council","00MA","Service Management & Support Services","Service Management & Support Services","Departmental Office Services","Office Stationery",29/08/2014 00:00:00,"30250293",1.8,"BANNER"
"Bracknell Forest Council","http://opendatacommunities.org/id/unitary-authority/bracknell-forest","Bracknell Forest Council","00MA","Central Support Services - COF","Customer Service Centre","Cashiers Services","Office Stationery",29/08/2014 00:00:00,"30250293",1.82,"BANNER"
"Bracknell Forest Council","http://opendatacommunities.org/id/unitary-authority/bracknell-forest","Bracknell Forest Council","00MA","Democratic Representation & Management COF","Democratic Representation & Management - COF","Members Services","Office Stationery",29/08/2014 00:00:00,"30250293",1.88,"BANNER"
"Bracknell Forest Council","http://opendatacommunities.org/id/unitary-authority/bracknell-forest","Bracknell Forest Council","00MA","Service Management & Support Services","Service Management & Support Services","Departmental Office Services","Office Stationery",29/08/2014 00:00:00,"30250293",1.9,"BANNER"
"Bracknell Forest Council","http://opendatacommunities.org/id/unitary-authority/bracknell-forest","Bracknell Forest Council","00MA","Social Support - Substance Misuse Support","Social Support - Substance Misuse Support","SM New Hope Running Costs","Office Stationery",29/08/2014 00:00:00,"30250293",1.98,"BANNER"
"Bracknell Forest Council","http://opendatacommunities.org/id/unitary-authority/bracknell-forest","Bracknell Forest Council","00MA","Early Years","Children's Centres","The Oaks Children's Centre","Office Stationery",29/08/2014 00:00:00,"30250293",1.98,"BANNER"
"Bracknell Forest Council","http://opendatacommunities.org/id/unitary-authority/bracknell-forest","Bracknell Forest Council","00MA","Recreation, Sports and Leisure","Indoor Sports & Recreation Facilities","Leisure DSO - Leisure Centre","Office Stationery",29/08/2014 00:00:00,"30250293",1.98,"BANNER"
"Bracknell Forest Council","http://opendatacommunities.org/id/unitary-authority/bracknell-forest","Bracknell Forest Council","00MA","Service Management & Support Services","Service Management & Support Services","Departmental Office Services","Office Stationery",29/08/2014 00:00:00,"30250293",1.98,"BANNER"
"Bracknell Forest Council","http://opendatacommunities.org/id/unitary-authority/bracknell-forest","Bracknell Forest Council","00MA","Community Development","Community Development","Chief Executive Office excl Communications","Office Stationery",29/08/2014 00:00:00,"30250293",1.99,"BANNER"
"Bracknell Forest Council","http://opendatacommunities.org/id/unitary-authority/bracknell-forest","Bracknell Forest Council","00MA","Service Management & Support Services","Service Management & Support Services","Departmental Office Services","Office Stationery",29/08/2014 00:00:00,"30250293",2,"BANNER"
"Bracknell Forest Council","http://opendatacommunities.org/id/unitary-authority/bracknell-forest","Bracknell Forest Council","00MA","Recreation, Sports and Leisure","Indoor Sports & Recreation Facilities","Leisure DSO - Leisure Centre","Office Stationery",29/08/2014 00:00:00,"30250293",2,"BANNER"
"Bracknell Forest Council","http://opendatacommunities.org/id/unitary-authority/bracknell-forest","Bracknell Forest Council","00MA","Management & Administration","Management & Administration","Directorate","Office Stationery",29/08/2014 00:00:00,"30250293",2.01,"BANNER"
"Bracknell Forest Council","http://opendatacommunities.org/id/unitary-authority/bracknell-forest","Bracknell Forest Council","00MA","Service Management & Support Services","Service Management & Support Services","Departmental Office Services","Office Stationery",29/08/2014 00:00:00,"30250293",2.02,"BANNER"
"Bracknell Forest Council","http://opendatacommunities.org/id/unitary-authority/bracknell-forest","Bracknell Forest Council","00MA","Central Support Services - COF","Information Technology","Information Technology - Management","Office Stationery",29/08/2014 00:00:00,"30250293",2.04,"BANNER"
"Bracknell Forest Council","http://opendatacommunities.org/id/unitary-authority/bracknell-forest","Bracknell Forest Council","00MA","Management & Administration","Management & Administration","Directorate","Office Stationery",29/08/2014 00:00:00,"30250293",2.04,"BANNER"
"Bracknell Forest Council","http://opendatacommunities.org/id/unitary-authority/bracknell-forest","Bracknell Forest Council","00MA","Open Spaces","Countryside Recreation & Management","Countryside Sites - Maintenance","Office Stationery",29/08/2014 00:00:00,"30250293",2.04,"BANNER"
"Bracknell Forest Council","http://opendatacommunities.org/id/unitary-authority/bracknell-forest","Bracknell Forest Council","00MA","Central Support Services - COF","Personnel","Personnel Services","Office Stationery",29/08/2014 00:00:00,"30250293",2.12,"BANNER"
"Bracknell Forest Council","http://opendatacommunities.org/id/unitary-authority/bracknell-forest","Bracknell Forest Council","00MA","Early Years","Children's Centres","The Willows Children's Centre","Office Stationery",29/08/2014 00:00:00,"30250293",2.12,"BANNER"
"Bracknell Forest Council","http://opendatacommunities.org/id/unitary-authority/bracknell-forest","Bracknell Forest Council","00MA","Adults (18-64)","Internal Services","Glenfield","Office Stationery",29/08/2014 00:00:00,"30250293",2.13,"BANNER"
"Bracknell Forest Council","http://opendatacommunities.org/id/unitary-authority/bracknell-forest","Bracknell Forest Council","00MA","Commissioning and Social Work","Commissioning and Social Work","Administration Running Costs","Office Stationery",29/08/2014 00:00:00,"30250293",2.13,"BANNER"
"Bracknell Forest Council","http://opendatacommunities.org/id/unitary-authority/bracknell-forest","Bracknell Forest Council","00MA","Central Support Services - COF","Valuers","Property Services","Office Stationery",29/08/2014 00:00:00,"30250293",2.16,"BANNER"
"Bracknell Forest Council","http://opendatacommunities.org/id/unitary-authority/bracknell-forest","Bracknell Forest Council","00MA","Holding Accounts in Budget Book COF","Corporate Services - Office Services","Office Services - General Expenses","Office Stationery",29/08/2014 00:00:00,"30250293",2.16,"BANNER"
"Bracknell Forest Council","http://opendatacommunities.org/id/unitary-authority/bracknell-forest","Bracknell Forest Council","00MA","Family Support Services","Other family support services","Family Centre Running Costs","Office Stationery",29/08/2014 00:00:00,"30250293",2.16,"BANNER"
"Bracknell Forest Council","http://opendatacommunities.org/id/unitary-authority/bracknell-forest","Bracknell Forest Council","00MA","Central Support Services - COF","Legal","Legal Services","Office Stationery",29/08/2014 00:00:00,"30250293",2.17,"BANNER"
"Bracknell Forest Council","http://opendatacommunities.org/id/unitary-authority/bracknell-forest","Bracknell Forest Council","00MA","Management and Support Services - CYPL","Strategy, Resources and Early Interventions","Reception & Office Services","Office Stationery",29/08/2014 00:00:00,"30250293",2.2,"BANNER"
"Bracknell Forest Council","http://opendatacommunities.org/id/unitary-authority/bracknell-forest","Bracknell Forest Council","00MA","Internal Services","Internal Services","Waymead - Short Stay","Office Stationery",29/08/2014 00:00:00,"30250293",2.2,"BANNER"
"Bracknell Forest Council","http://opendatacommunities.org/id/unitary-authority/bracknell-forest","Bracknell Forest Council","00MA","Management & Administration","Management & Administration","Directorate","Office Stationery",29/08/2014 00:00:00,"30250293",2.22,"BANNER"
"Bracknell Forest Council","http://opendatacommunities.org/id/unitary-authority/bracknell-forest","Bracknell Forest Council","00MA","Central Support Services - COF","Finance","Finance Departmental Administration","Office Stationery",29/08/2014 00:00:00,"30250293",2.24,"BANNER"
"Bracknell Forest Council","http://opendatacommunities.org/id/unitary-authority/bracknell-forest","Bracknell Forest Council","00MA","Service Management & Support Services","Service Management & Support Services","Departmental Office Services","Office Stationery",29/08/2014 00:00:00,"30250293",2.3,"BANNER"
"Bracknell Forest Council","http://opendatacommunities.org/id/unitary-authority/bracknell-forest","Bracknell Forest Council","00MA","Holding Accounts in Budget Book COF","Corporate Services - Office Services","Office Services - General Expenses","Office Stationery",29/08/2014 00:00:00,"30250293",2.5,"BANNER"
"Bracknell Forest Council","http://opendatacommunities.org/id/unitary-authority/bracknell-forest","Bracknell Forest Council","00MA","Service Management & Support Services","Service Management & Support Services","Departmental Office Services","Office Stationery",29/08/2014 00:00:00,"30250293",2.55,"BANNER"
"Bracknell Forest Council","http://opendatacommunities.org/id/unitary-authority/bracknell-forest","Bracknell Forest Council","00MA","Holding Accounts in Budget Book COF","Corporate Services - Office Services","Office Services - General Expenses","Office Stationery",29/08/2014 00:00:00,"30250293",2.6,"BANNER"
"Bracknell Forest Council","http://opendatacommunities.org/id/unitary-authority/bracknell-forest","Bracknell Forest Council","00MA","Recreation, Sports and Leisure","Golf Courses","Leisure DSO - Downshire Catering","Cost of Goods Sold",28/07/2014 00:00:00,"30249073",-9.55,"3663"
"Bracknell Forest Council","http://opendatacommunities.org/id/unitary-authority/bracknell-forest","Bracknell Forest Council","00MA","Recreation, Sports and Leisure","Golf Courses","Leisure DSO - Downshire Catering","Cost of Goods Sold",24/07/2014 00:00:00,"30249073",1.6,"3663"
"Bracknell Forest Council","http://opendatacommunities.org/id/unitary-authority/bracknell-forest","Bracknell Forest Council","00MA","Business Support","Premises Development","Easthampstead Park Centre - Catering","Cost of Goods Sold",25/07/2014 00:00:00,"30249073",21.02,"3663"
"Bracknell Forest Council","http://opendatacommunities.org/id/unitary-authority/bracknell-forest","Bracknell Forest Council","00MA","Short Term Support Other","Short Term Support Other","Bridgewell Unit","Cost of Goods Sold",30/07/2014 00:00:00,"30249073",21.52,"3663"
"Bracknell Forest Council","http://opendatacommunities.org/id/unitary-authority/bracknell-forest","Bracknell Forest Council","00MA","Business Support","Premises Development","Easthampstead Park Centre - Catering","Cost of Goods Sold",01/08/2014 00:00:00,"30249073",27.12,"3663"
"Bracknell Forest Council","http://opendatacommunities.org/id/unitary-authority/bracknell-forest","Bracknell Forest Council","00MA","Recreation, Sports and Leisure","Indoor Sports & Recreation Facilities","Leisure Centre - Catering General","Cost of Goods Sold",23/07/2014 00:00:00,"30249073",28.49,"3663"
"Bracknell Forest Council","http://opendatacommunities.org/id/unitary-authority/bracknell-forest","Bracknell Forest Council","00MA","Older People (65+)","Internal Services","Heathlands EPH","Cost of Goods Sold",30/07/2014 00:00:00,"30249073",34.28,"3663"
"Bracknell Forest Council","http://opendatacommunities.org/id/unitary-authority/bracknell-forest","Bracknell Forest Council","00MA","Business Support","Premises Development","Easthampstead Park Centre - Catering","Cost of Goods Sold",05/08/2014 00:00:00,"30249073",36.29,"3663"
"Bracknell Forest Council","http://opendatacommunities.org/id/unitary-authority/bracknell-forest","Bracknell Forest Council","00MA","Recreation, Sports and Leisure","Golf Courses","Leisure DSO - Downshire Catering","Cost of Goods Sold",29/07/2014 00:00:00,"30249073",38.52,"3663"
"Bracknell Forest Council","http://opendatacommunities.org/id/unitary-authority/bracknell-forest","Bracknell Forest Council","00MA","Recreation, Sports and Leisure","Golf Courses","Leisure DSO - Downshire Catering","Cost of Goods Sold",29/07/2014 00:00:00,"30249073",59.8,"3663"
"Bracknell Forest Council","http://opendatacommunities.org/id/unitary-authority/bracknell-forest","Bracknell Forest Council","00MA","Business Support","Premises Development","Easthampstead Park Centre - Catering","Cost of Goods Sold",01/08/2014 00:00:00,"30249073",96.74,"3663"
"Bracknell Forest Council","http://opendatacommunities.org/id/unitary-authority/bracknell-forest","Bracknell Forest Council","00MA","Business Support","Premises Development","Easthampstead Park Centre - Catering","Cost of Goods Sold",31/07/2014 00:00:00,"30249073",115.16,"3663"
"Bracknell Forest Council","http://opendatacommunities.org/id/unitary-authority/bracknell-forest","Bracknell Forest Council","00MA","Business Support","Premises Development","Easthampstead Park Centre - Catering","Cost of Goods Sold",25/07/2014 00:00:00,"30249073",141.47,"3663"
"Bracknell Forest Council","http://opendatacommunities.org/id/unitary-authority/bracknell-forest","Bracknell Forest Council","00MA","Recreation, Sports and Leisure","Indoor Sports & Recreation Facilities","Leisure Centre - Catering General","Cost of Goods Sold",04/08/2014 00:00:00,"30249073",152.95,"3663"
"Bracknell Forest Council","http://opendatacommunities.org/id/unitary-authority/bracknell-forest","Bracknell Forest Council","00MA","Recreation, Sports and Leisure","Indoor Sports & Recreation Facilities","Coral Reef - Catering & Bar","Cost of Goods Sold",30/07/2014 00:00:00,"30249073",181.71,"3663"
"Bracknell Forest Council","http://opendatacommunities.org/id/unitary-authority/bracknell-forest","Bracknell Forest Council","00MA","Short Term Support Other","Short Term Support Other","Bridgewell Unit","Cost of Goods Sold",30/07/2014 00:00:00,"30249073",207.87,"3663"
"Bracknell Forest Council","http://opendatacommunities.org/id/unitary-authority/bracknell-forest","Bracknell Forest Council","00MA","Business Support","Premises Development","Easthampstead Park Centre - Catering","Cost of Goods Sold",31/07/2014 00:00:00,"30249073",256.48,"3663"
"Bracknell Forest Council","http://opendatacommunities.org/id/unitary-authority/bracknell-forest","Bracknell Forest Council","00MA","Business Support","Premises Development","Easthampstead Park Centre - Catering","Cost of Goods Sold",05/08/2014 00:00:00,"30249073",289.71,"3663"
"Bracknell Forest Council","http://opendatacommunities.org/id/unitary-authority/bracknell-forest","Bracknell Forest Council","00MA","Recreation, Sports and Leisure","Indoor Sports & Recreation Facilities","Leisure Centre - Catering General","Cost of Goods Sold",23/07/2014 00:00:00,"30249073",425.56,"3663"
"Bracknell Forest Council","http://opendatacommunities.org/id/unitary-authority/bracknell-forest","Bracknell Forest Council","00MA","Older People (65+)","Internal Services","Heathlands EPH","Cost of Goods Sold",30/07/2014 00:00:00,"30249073",660.79,"3663"
"Bracknell Forest Council","http://opendatacommunities.org/id/unitary-authority/bracknell-forest","Bracknell Forest Council","00MA","Recreation, Sports and Leisure","Golf Courses","Leisure DSO - Downshire Catering","Cost of Goods Sold",24/07/2014 00:00:00,"30249073",719.48,"3663"
"Bracknell Forest Council","http://opendatacommunities.org/id/unitary-authority/bracknell-forest","Bracknell Forest Council","00MA","Recreation, Sports and Leisure","Golf Courses","Leisure DSO - Downshire Catering","Cost of Goods Sold",29/07/2014 00:00:00,"30249073",737.45,"3663"
"Bracknell Forest Council","http://opendatacommunities.org/id/unitary-authority/bracknell-forest","Bracknell Forest Council","00MA","Older People (65+)","Internal Services","Heathlands EPH","Cost of Goods Sold",08/08/2014 00:00:00,"30249377",-7.21,"3663"
"Bracknell Forest Council","http://opendatacommunities.org/id/unitary-authority/bracknell-forest","Bracknell Forest Council","00MA","Business Support","Premises Development","Easthampstead Park Centre - Catering","Cost of Goods Sold",12/08/2014 00:00:00,"30249377",6.02,"3663"
"Bracknell Forest Council","http://opendatacommunities.org/id/unitary-authority/bracknell-forest","Bracknell Forest Council","00MA","Recreation, Sports and Leisure","Golf Courses","Leisure DSO - Downshire Catering","Cost of Goods Sold",05/08/2014 00:00:00,"30249377",8.02,"3663"
"Bracknell Forest Council","http://opendatacommunities.org/id/unitary-authority/bracknell-forest","Bracknell Forest Council","00MA","Short Term Support Other","Short Term Support Other","Bridgewell Unit","Cost of Goods Sold",06/08/2014 00:00:00,"30249377",27.67,"3663"
"Bracknell Forest Council","http://opendatacommunities.org/id/unitary-authority/bracknell-forest","Bracknell Forest Council","00MA","Recreation, Sports and Leisure","Golf Courses","Leisure DSO - Downshire Catering","Cost of Goods Sold",05/08/2014 00:00:00,"30249377",28.02,"3663"
"Bracknell Forest Council","http://opendatacommunities.org/id/unitary-authority/bracknell-forest","Bracknell Forest Council","00MA","Business Support","Premises Development","Easthampstead Park Centre - Catering","Cost of Goods Sold",12/08/2014 00:00:00,"30249377",34.96,"3663"
"Bracknell Forest Council","http://opendatacommunities.org/id/unitary-authority/bracknell-forest","Bracknell Forest Council","00MA","Business Support","Premises Development","Easthampstead Park Centre - Catering","Cost of Goods Sold",11/08/2014 00:00:00,"30249377",50.33,"3663"
"Bracknell Forest Council","http://opendatacommunities.org/id/unitary-authority/bracknell-forest","Bracknell Forest Council","00MA","Recreation, Sports and Leisure","Indoor Sports & Recreation Facilities","Leisure Centre - Catering General","Cost of Goods Sold",08/08/2014 00:00:00,"30249377",54.8,"3663"
"Bracknell Forest Council","http://opendatacommunities.org/id/unitary-authority/bracknell-forest","Bracknell Forest Council","00MA","Older People (65+)","Internal Services","Heathlands EPH","Cost of Goods Sold",06/08/2014 00:00:00,"30249377",73.08,"3663"
"Bracknell Forest Council","http://opendatacommunities.org/id/unitary-authority/bracknell-forest","Bracknell Forest Council","00MA","Business Support","Premises Development","Easthampstead Park Centre - Catering","Cost of Goods Sold",07/08/2014 00:00:00,"30249377",87.95,"3663"
"Bracknell Forest Council","http://opendatacommunities.org/id/unitary-authority/bracknell-forest","Bracknell Forest Council","00MA","Business Support","Premises Development","Easthampstead Park Centre - Catering","Cost of Goods Sold",06/08/2014 00:00:00,"30249377",109.28,"3663"
"Bracknell Forest Council","http://opendatacommunities.org/id/unitary-authority/bracknell-forest","Bracknell Forest Council","00MA","Business Support","Premises Development","Easthampstead Park Centre - Catering","Cost of Goods Sold",12/08/2014 00:00:00,"30249377",132.35,"3663"
"Bracknell Forest Council","http://opendatacommunities.org/id/unitary-authority/bracknell-forest","Bracknell Forest Council","00MA","Recreation, Sports and Leisure","Indoor Sports & Recreation Facilities","Leisure Centre - Catering General","Cost of Goods Sold",08/08/2014 00:00:00,"30249377",134.11,"3663"
"Bracknell Forest Council","http://opendatacommunities.org/id/unitary-authority/bracknell-forest","Bracknell Forest Council","00MA","Recreation, Sports and Leisure","Indoor Sports & Recreation Facilities","Leisure Centre - Catering General","Cost of Goods Sold",11/08/2014 00:00:00,"30249377",150.97,"3663"
"Bracknell Forest Council","http://opendatacommunities.org/id/unitary-authority/bracknell-forest","Bracknell Forest Council","00MA","Business Support","Premises Development","Easthampstead Park Centre - Catering","Cost of Goods Sold",07/08/2014 00:00:00,"30249377",198.77,"3663"
"Bracknell Forest Council","http://opendatacommunities.org/id/unitary-authority/bracknell-forest","Bracknell Forest Council","00MA","Short Term Support Other","Short Term Support Other","Bridgewell Unit","Cost of Goods Sold",06/08/2014 00:00:00,"30249377",268.25,"3663"
"Bracknell Forest Council","http://opendatacommunities.org/id/unitary-authority/bracknell-forest","Bracknell Forest Council","00MA","Older People (65+)","Internal Services","Heathlands EPH","Cost of Goods Sold",06/08/2014 00:00:00,"30249377",288.84,"3663"
"Bracknell Forest Council","http://opendatacommunities.org/id/unitary-authority/bracknell-forest","Bracknell Forest Council","00MA","Business Support","Premises Development","Easthampstead Park Centre - Catering","Cost of Goods Sold",07/08/2014 00:00:00,"30249377",478.33,"3663"
"Bracknell Forest Council","http://opendatacommunities.org/id/unitary-authority/bracknell-forest","Bracknell Forest Council","00MA","Business Support","Premises Development","Easthampstead Park Centre - Catering","Cost of Goods Sold",11/08/2014 00:00:00,"30249377",489.95,"3663"
"Bracknell Forest Council","http://opendatacommunities.org/id/unitary-authority/bracknell-forest","Bracknell Forest Council","00MA","Recreation, Sports and Leisure","Golf Courses","Leisure DSO - Downshire Catering","Cost of Goods Sold",05/08/2014 00:00:00,"30249377",520.03,"3663"
"Bracknell Forest Council","http://opendatacommunities.org/id/unitary-authority/bracknell-forest","Bracknell Forest Council","00MA","Business Support","Premises Development","Easthampstead Park Centre - Catering","Cost of Goods Sold",15/08/2014 00:00:00,"30249757",-23.91,"3663"
"Bracknell Forest Council","http://opendatacommunities.org/id/unitary-authority/bracknell-forest","Bracknell Forest Council","00MA","Recreation, Sports and Leisure","Golf Courses","Leisure DSO - Downshire Catering","Cost of Goods Sold",19/08/2014 00:00:00,"30249757",3.12,"3663"
"Bracknell Forest Council","http://opendatacommunities.org/id/unitary-authority/bracknell-forest","Bracknell Forest Council","00MA","Recreation, Sports and Leisure","Indoor Sports & Recreation Facilities","Leisure Centre - Catering General","Cost of Goods Sold",15/08/2014 00:00:00,"30249757",8.43,"3663"
"Bracknell Forest Council","http://opendatacommunities.org/id/unitary-authority/bracknell-forest","Bracknell Forest Council","00MA","Business Support","Premises Development","Easthampstead Park Centre - Catering","Cost of Goods Sold",02/07/2014 00:00:00,"30249757",8.63,"3663"
"Bracknell Forest Council","http://opendatacommunities.org/id/unitary-authority/bracknell-forest","Bracknell Forest Council","00MA","Short Term Support Other","Short Term Support Other","Bridgewell Unit","Cost of Goods Sold",13/08/2014 00:00:00,"30249757",11.19,"3663"
"Bracknell Forest Council","http://opendatacommunities.org/id/unitary-authority/bracknell-forest","Bracknell Forest Council","00MA","Business Support","Premises Development","Easthampstead Park Centre - Catering","Cost of Goods Sold",15/08/2014 00:00:00,"30249757",12.06,"3663"
"Bracknell Forest Council","http://opendatacommunities.org/id/unitary-authority/bracknell-forest","Bracknell Forest Council","00MA","Recreation, Sports and Leisure","Golf Courses","Leisure DSO - Downshire Catering","Cost of Goods Sold",12/08/2014 00:00:00,"30249757",42.49,"3663"
"Bracknell Forest Council","http://opendatacommunities.org/id/unitary-authority/bracknell-forest","Bracknell Forest Council","00MA","Recreation, Sports and Leisure","Golf Courses","Leisure DSO - Downshire Catering","Cost of Goods Sold",19/08/2014 00:00:00,"30249757",56.09,"3663"
"Bracknell Forest Council","http://opendatacommunities.org/id/unitary-authority/bracknell-forest","Bracknell Forest Council","00MA","Business Support","Premises Development","Easthampstead Park Centre - Catering","Cost of Goods Sold",19/08/2014 00:00:00,"30249757",78.83,"3663"
"Bracknell Forest Council","http://opendatacommunities.org/id/unitary-authority/bracknell-forest","Bracknell Forest Council","00MA","Recreation, Sports and Leisure","Golf Courses","Leisure DSO - Downshire Catering","Cost of Goods Sold",12/08/2014 00:00:00,"30249757",81.41,"3663"
"Bracknell Forest Council","http://opendatacommunities.org/id/unitary-authority/bracknell-forest","Bracknell Forest Council","00MA","Short Term Support Other","Short Term Support Other","Bridgewell Unit","Cost of Goods Sold",13/08/2014 00:00:00,"30249757",92.25,"3663"
"Bracknell Forest Council","http://opendatacommunities.org/id/unitary-authority/bracknell-forest","Bracknell Forest Council","00MA","Business Support","Premises Development","Easthampstead Park Centre - Catering","Cost of Goods Sold",02/07/2014 00:00:00,"30249757",208.67,"3663"
"Bracknell Forest Council","http://opendatacommunities.org/id/unitary-authority/bracknell-forest","Bracknell Forest Council","00MA","Recreation, Sports and Leisure","Indoor Sports & Recreation Facilities","Coral Reef - Catering & Bar","Cost of Goods Sold",01/08/2014 00:00:00,"30249073",203.24,"BRAKE BROS FOODSERVICE LTD"
"Bracknell Forest Council","http://opendatacommunities.org/id/unitary-authority/bracknell-forest","Bracknell Forest Council","00MA","Business Support","Premises Development","Easthampstead Park Centre - Catering","Cost of Goods Sold",24/07/2014 00:00:00,"30249073",215.67,"BRAKE BROS FOODSERVICE LTD"
"Bracknell Forest Council","http://opendatacommunities.org/id/unitary-authority/bracknell-forest","Bracknell Forest Council","00MA","Business Support","Premises Development","Easthampstead Park Centre - Catering","Cost of Goods Sold",31/07/2014 00:00:00,"30249073",227.67,"BRAKE BROS FOODSERVICE LTD"
"Bracknell Forest Council","http://opendatacommunities.org/id/unitary-authority/bracknell-forest","Bracknell Forest Council","00MA","Recreation, Sports and Leisure","Indoor Sports & Recreation Facilities","Coral Reef - Catering & Bar","Cost of Goods Sold",24/07/2014 00:00:00,"30249073",375.6,"BRAKE BROS FOODSERVICE LTD"
"Bracknell Forest Council","http://opendatacommunities.org/id/unitary-authority/bracknell-forest","Bracknell Forest Council","00MA","Recreation, Sports and Leisure","Indoor Sports & Recreation Facilities","Coral Reef - Catering & Bar","Cost of Goods Sold",29/07/2014 00:00:00,"30249073",391.12,"BRAKE BROS FOODSERVICE LTD"
"Bracknell Forest Council","http://opendatacommunities.org/id/unitary-authority/bracknell-forest","Bracknell Forest Council","00MA","Recreation, Sports and Leisure","Indoor Sports & Recreation Facilities","Coral Reef - Catering & Bar","Cost of Goods Sold",22/07/2014 00:00:00,"30249073",440.41,"BRAKE BROS FOODSERVICE LTD"
"Bracknell Forest Council","http://opendatacommunities.org/id/unitary-authority/bracknell-forest","Bracknell Forest Council","00MA","Business Support","Premises Development","Easthampstead Park Centre - Catering","Cost of Goods Sold",06/08/2014 00:00:00,"30249377",2.45,"BRAKE BROS FOODSERVICE LTD"
"Bracknell Forest Council","http://opendatacommunities.org/id/unitary-authority/bracknell-forest","Bracknell Forest Council","00MA","Business Support","Premises Development","Easthampstead Park Centre - Catering","Cost of Goods Sold",06/08/2014 00:00:00,"30249377",43.62,"BRAKE BROS FOODSERVICE LTD"
"Bracknell Forest Council","http://opendatacommunities.org/id/unitary-authority/bracknell-forest","Bracknell Forest Council","00MA","Business Support","Premises Development","Easthampstead Park Centre - Catering","Cost of Goods Sold",06/08/2014 00:00:00,"30249377",51.28,"BRAKE BROS FOODSERVICE LTD"
"Bracknell Forest Council","http://opendatacommunities.org/id/unitary-authority/bracknell-forest","Bracknell Forest Council","00MA","Business Support","Premises Development","Easthampstead Park Centre - Catering","Cost of Goods Sold",06/08/2014 00:00:00,"30249377",106,"BRAKE BROS FOODSERVICE LTD"
"Bracknell Forest Council","http://opendatacommunities.org/id/unitary-authority/bracknell-forest","Bracknell Forest Council","00MA","Recreation, Sports and Leisure","Indoor Sports & Recreation Facilities","Coral Reef - Catering & Bar","Cost of Goods Sold",08/08/2014 00:00:00,"30249377",109.09,"BRAKE BROS FOODSERVICE LTD"
"Bracknell Forest Council","http://opendatacommunities.org/id/unitary-authority/bracknell-forest","Bracknell Forest Council","00MA","Business Support","Premises Development","Easthampstead Park Centre - Catering","Cost of Goods Sold",05/08/2014 00:00:00,"30249377",120.51,"BRAKE BROS FOODSERVICE LTD"
"Bracknell Forest Council","http://opendatacommunities.org/id/unitary-authority/bracknell-forest","Bracknell Forest Council","00MA","Business Support","Premises Development","Easthampstead Park Centre - Catering","Cost of Goods Sold",06/08/2014 00:00:00,"30249377",173.7,"BRAKE BROS FOODSERVICE LTD"
"Bracknell Forest Council","http://opendatacommunities.org/id/unitary-authority/bracknell-forest","Bracknell Forest Council","00MA","Business Support","Premises Development","Easthampstead Park Centre - Catering","Cost of Goods Sold",19/08/2014 00:00:00,"30249757",265.35,"3663"
"Bracknell Forest Council","http://opendatacommunities.org/id/unitary-authority/bracknell-forest","Bracknell Forest Council","00MA","Recreation, Sports and Leisure","Indoor Sports & Recreation Facilities","Leisure Centre - Catering General","Cost of Goods Sold",15/08/2014 00:00:00,"30249757",280.38,"3663"
"Bracknell Forest Council","http://opendatacommunities.org/id/unitary-authority/bracknell-forest","Bracknell Forest Council","00MA","Business Support","Premises Development","Easthampstead Park Centre - Catering","Cost of Goods Sold",15/08/2014 00:00:00,"30249757",327.27,"3663"
"Bracknell Forest Council","http://opendatacommunities.org/id/unitary-authority/bracknell-forest","Bracknell Forest Council","00MA","Recreation, Sports and Leisure","Golf Courses","Leisure DSO - Downshire Catering","Cost of Goods Sold",19/08/2014 00:00:00,"30249757",516.25,"3663"
"Bracknell Forest Council","http://opendatacommunities.org/id/unitary-authority/bracknell-forest","Bracknell Forest Council","00MA","Recreation, Sports and Leisure","Golf Courses","Leisure DSO - Downshire Catering","Cost of Goods Sold",12/08/2014 00:00:00,"30249757",615.23,"3663"
"Bracknell Forest Council","http://opendatacommunities.org/id/unitary-authority/bracknell-forest","Bracknell Forest Council","00MA","Recreation, Sports and Leisure","Golf Courses","Leisure DSO - Downshire Catering","Cost of Goods Sold",26/08/2014 00:00:00,"30250050",5.89,"3663"
"Bracknell Forest Council","http://opendatacommunities.org/id/unitary-authority/bracknell-forest","Bracknell Forest Council","00MA","Recreation, Sports and Leisure","Golf Courses","Leisure DSO - Downshire Catering","Cost of Goods Sold",26/08/2014 00:00:00,"30250050",8.03,"3663"
"Bracknell Forest Council","http://opendatacommunities.org/id/unitary-authority/bracknell-forest","Bracknell Forest Council","00MA","Business Support","Premises Development","Easthampstead Park Centre - Catering","Cost of Goods Sold",20/08/2014 00:00:00,"30250050",25.44,"3663"
"Bracknell Forest Council","http://opendatacommunities.org/id/unitary-authority/bracknell-forest","Bracknell Forest Council","00MA","Older People (65+)","Internal Services","Heathlands EPH","Cost of Goods Sold",20/08/2014 00:00:00,"30250050",37.09,"3663"
"Bracknell Forest Council","http://opendatacommunities.org/id/unitary-authority/bracknell-forest","Bracknell Forest Council","00MA","Recreation, Sports and Leisure","Golf Courses","Leisure DSO - Downshire Catering","Cost of Goods Sold",26/08/2014 00:00:00,"30250050",42.39,"3663"
"Bracknell Forest Council","http://opendatacommunities.org/id/unitary-authority/bracknell-forest","Bracknell Forest Council","00MA","Older People (65+)","Internal Services","Heathlands EPH","Cost of Goods Sold",13/08/2014 00:00:00,"30250050",80.85,"3663"
"Bracknell Forest Council","http://opendatacommunities.org/id/unitary-authority/bracknell-forest","Bracknell Forest Council","00MA","Business Support","Premises Development","Easthampstead Park Centre - Catering","Cost of Goods Sold",21/08/2014 00:00:00,"30250050",88.29,"3663"
"Bracknell Forest Council","http://opendatacommunities.org/id/unitary-authority/bracknell-forest","Bracknell Forest Council","00MA","Business Support","Premises Development","Easthampstead Park Centre - Catering","Cost of Goods Sold",21/08/2014 00:00:00,"30250050",216.48,"3663"
"Bracknell Forest Council","http://opendatacommunities.org/id/unitary-authority/bracknell-forest","Bracknell Forest Council","00MA","Recreation, Sports and Leisure","Indoor Sports & Recreation Facilities","Coral Reef - Catering & Bar","Cost of Goods Sold",20/08/2014 00:00:00,"30250050",300.18,"3663"
"Bracknell Forest Council","http://opendatacommunities.org/id/unitary-authority/bracknell-forest","Bracknell Forest Council","00MA","Older People (65+)","Internal Services","Heathlands EPH","Cost of Goods Sold",20/08/2014 00:00:00,"30250050",373.64,"3663"
"Bracknell Forest Council","http://opendatacommunities.org/id/unitary-authority/bracknell-forest","Bracknell Forest Council","00MA","Recreation, Sports and Leisure","Indoor Sports & Recreation Facilities","Leisure Centre - Catering General","Cost of Goods Sold",20/08/2014 00:00:00,"30250050",464.68,"3663"
"Bracknell Forest Council","http://opendatacommunities.org/id/unitary-authority/bracknell-forest","Bracknell Forest Council","00MA","Business Support","Premises Development","Easthampstead Park Centre - Catering","Cost of Goods Sold",08/08/2014 00:00:00,"30249377",207.4,"BRAKE BROS FOODSERVICE LTD"
"Bracknell Forest Council","http://opendatacommunities.org/id/unitary-authority/bracknell-forest","Bracknell Forest Council","00MA","Recreation, Sports and Leisure","Indoor Sports & Recreation Facilities","Coral Reef - Catering & Bar","Cost of Goods Sold",05/08/2014 00:00:00,"30249377",333.82,"BRAKE BROS FOODSERVICE LTD"
"Bracknell Forest Council","http://opendatacommunities.org/id/unitary-authority/bracknell-forest","Bracknell Forest Council","00MA","Recreation, Sports and Leisure","Indoor Sports & Recreation Facilities","Coral Reef - Catering & Bar","Cost of Goods Sold",07/08/2014 00:00:00,"30249377",520.71,"BRAKE BROS FOODSERVICE LTD"
"Bracknell Forest Council","http://opendatacommunities.org/id/unitary-authority/bracknell-forest","Bracknell Forest Council","00MA","Business Support","Premises Development","Easthampstead Park Centre - Catering","Cost of Goods Sold",11/08/2014 00:00:00,"30249757",-20.77,"BRAKE BROS FOODSERVICE LTD"
"Bracknell Forest Council","http://opendatacommunities.org/id/unitary-authority/bracknell-forest","Bracknell Forest Council","00MA","Business Support","Premises Development","Easthampstead Park Centre - Catering","Cost of Goods Sold",11/08/2014 00:00:00,"30249757",-19.76,"BRAKE BROS FOODSERVICE LTD"
"Bracknell Forest Council","http://opendatacommunities.org/id/unitary-authority/bracknell-forest","Bracknell Forest Council","00MA","Business Support","Premises Development","Easthampstead Park Centre - Catering","Cost of Goods Sold",11/08/2014 00:00:00,"30249757",-6.34,"BRAKE BROS FOODSERVICE LTD"
"Bracknell Forest Council","http://opendatacommunities.org/id/unitary-authority/bracknell-forest","Bracknell Forest Council","00MA","Recreation, Sports and Leisure","Indoor Sports & Recreation Facilities","Coral Reef - Catering & Bar","Cost of Goods Sold",12/08/2014 00:00:00,"30249757",3.5,"BRAKE BROS FOODSERVICE LTD"
"Bracknell Forest Council","http://opendatacommunities.org/id/unitary-authority/bracknell-forest","Bracknell Forest Council","00MA","Business Support","Premises Development","Easthampstead Park Centre - Catering","Cost of Goods Sold",12/08/2014 00:00:00,"30249757",4.9,"BRAKE BROS FOODSERVICE LTD"
"Bracknell Forest Council","http://opendatacommunities.org/id/unitary-authority/bracknell-forest","Bracknell Forest Council","00MA","Recreation, Sports and Leisure","Indoor Sports & Recreation Facilities","Coral Reef - Catering & Bar","Cost of Goods Sold",14/08/2014 00:00:00,"30249757",7,"BRAKE BROS FOODSERVICE LTD"
"Bracknell Forest Council","http://opendatacommunities.org/id/unitary-authority/bracknell-forest","Bracknell Forest Council","00MA","Business Support","Premises Development","Easthampstead Park Centre - Catering","Cost of Goods Sold",28/04/2014 00:00:00,"30249757",14.05,"BRAKE BROS FOODSERVICE LTD"
"Bracknell Forest Council","http://opendatacommunities.org/id/unitary-authority/bracknell-forest","Bracknell Forest Council","00MA","Business Support","Premises Development","Easthampstead Park Centre - Catering","Cost of Goods Sold",14/08/2014 00:00:00,"30249757",84.05,"BRAKE BROS FOODSERVICE LTD"
"Bracknell Forest Council","http://opendatacommunities.org/id/unitary-authority/bracknell-forest","Bracknell Forest Council","00MA","Business Support","Premises Development","Easthampstead Park Centre - Catering","Cost of Goods Sold",12/08/2014 00:00:00,"30249757",137.3,"BRAKE BROS FOODSERVICE LTD"
"Bracknell Forest Council","http://opendatacommunities.org/id/unitary-authority/bracknell-forest","Bracknell Forest Council","00MA","Recreation, Sports and Leisure","Indoor Sports & Recreation Facilities","Coral Reef - Catering & Bar","Cost of Goods Sold",14/08/2014 00:00:00,"30249757",215.83,"BRAKE BROS FOODSERVICE LTD"
"Bracknell Forest Council","http://opendatacommunities.org/id/unitary-authority/bracknell-forest","Bracknell Forest Council","00MA","Recreation, Sports and Leisure","Golf Courses","Leisure DSO - Downshire Catering","Cost of Goods Sold",26/08/2014 00:00:00,"30250050",675.81,"3663"
"Bracknell Forest Council","http://opendatacommunities.org/id/unitary-authority/bracknell-forest","Bracknell Forest Council","00MA","Older People (65+)","Internal Services","Heathlands EPH","Cost of Goods Sold",13/08/2014 00:00:00,"30250050",987.47,"3663"
"Bracknell Forest Council","http://opendatacommunities.org/id/unitary-authority/bracknell-forest","Bracknell Forest Council","00MA","Business Support","Premises Development","Easthampstead Park Centre - Catering","Cost of Goods Sold",02/09/2014 00:00:00,"30250619",-41.41,"3663"
"Bracknell Forest Council","http://opendatacommunities.org/id/unitary-authority/bracknell-forest","Bracknell Forest Council","00MA","Short Term Support Other","Short Term Support Other","Bridgewell Unit","Cost of Goods Sold",20/08/2014 00:00:00,"30250619",7.57,"3663"
"Bracknell Forest Council","http://opendatacommunities.org/id/unitary-authority/bracknell-forest","Bracknell Forest Council","00MA","Business Support","Premises Development","Easthampstead Park Centre - Catering","Cost of Goods Sold",01/09/2014 00:00:00,"30250619",9.9,"3663"
"Bracknell Forest Council","http://opendatacommunities.org/id/unitary-authority/bracknell-forest","Bracknell Forest Council","00MA","Recreation, Sports and Leisure","Golf Courses","Leisure DSO - Downshire Catering","Cost of Goods Sold",02/09/2014 00:00:00,"30250619",20.27,"3663"
"Bracknell Forest Council","http://opendatacommunities.org/id/unitary-authority/bracknell-forest","Bracknell Forest Council","00MA","Recreation, Sports and Leisure","Indoor Sports & Recreation Facilities","Leisure Centre - Catering General","Cost of Goods Sold",29/08/2014 00:00:00,"30250619",30.7,"3663"
"Bracknell Forest Council","http://opendatacommunities.org/id/unitary-authority/bracknell-forest","Bracknell Forest Council","00MA","Recreation, Sports and Leisure","Golf Courses","Leisure DSO - Downshire Catering","Cost of Goods Sold",02/09/2014 00:00:00,"30250619",53.06,"3663"
"Bracknell Forest Council","http://opendatacommunities.org/id/unitary-authority/bracknell-forest","Bracknell Forest Council","00MA","Business Support","Premises Development","Easthampstead Park Centre - Catering","Cost of Goods Sold",01/09/2014 00:00:00,"30250619",66.27,"3663"
"Bracknell Forest Council","http://opendatacommunities.org/id/unitary-authority/bracknell-forest","Bracknell Forest Council","00MA","Business Support","Premises Development","Easthampstead Park Centre - Catering","Cost of Goods Sold",02/09/2014 00:00:00,"30250619",72.52,"3663"
"Bracknell Forest Council","http://opendatacommunities.org/id/unitary-authority/bracknell-forest","Bracknell Forest Council","00MA","Older People (65+)","Internal Services","Heathlands EPH","Cost of Goods Sold",27/08/2014 00:00:00,"30250619",76.5,"3663"
"Bracknell Forest Council","http://opendatacommunities.org/id/unitary-authority/bracknell-forest","Bracknell Forest Council","00MA","Business Support","Premises Development","Easthampstead Park Centre - Catering","Cost of Goods Sold",07/07/2014 00:00:00,"30250619",77.8,"3663"
"Bracknell Forest Council","http://opendatacommunities.org/id/unitary-authority/bracknell-forest","Bracknell Forest Council","00MA","Recreation, Sports and Leisure","Golf Courses","Leisure DSO - Downshire Catering","Cost of Goods Sold",02/09/2014 00:00:00,"30250619",91.17,"3663"
"Bracknell Forest Council","http://opendatacommunities.org/id/unitary-authority/bracknell-forest","Bracknell Forest Council","00MA","Short Term Support Other","Short Term Support Other","Bridgewell Unit","Cost of Goods Sold",20/08/2014 00:00:00,"30250619",155.01,"3663"
"Bracknell Forest Council","http://opendatacommunities.org/id/unitary-authority/bracknell-forest","Bracknell Forest Council","00MA","Recreation, Sports and Leisure","Indoor Sports & Recreation Facilities","Leisure Centre - Catering General","Cost of Goods Sold",29/08/2014 00:00:00,"30250619",247.22,"3663"
"Bracknell Forest Council","http://opendatacommunities.org/id/unitary-authority/bracknell-forest","Bracknell Forest Council","00MA","Business Support","Premises Development","Easthampstead Park Centre - Catering","Cost of Goods Sold",02/09/2014 00:00:00,"30250619",276.14,"3663"
"Bracknell Forest Council","http://opendatacommunities.org/id/unitary-authority/bracknell-forest","Bracknell Forest Council","00MA","Business Support","Premises Development","Easthampstead Park Centre - Catering","Cost of Goods Sold",26/08/2014 00:00:00,"30250619",412.85,"3663"
"Bracknell Forest Council","http://opendatacommunities.org/id/unitary-authority/bracknell-forest","Bracknell Forest Council","00MA","Older People (65+)","Internal Services","Heathlands EPH","Cost of Goods Sold",27/08/2014 00:00:00,"30250619",429.01,"3663"
"Bracknell Forest Council","http://opendatacommunities.org/id/unitary-authority/bracknell-forest","Bracknell Forest Council","00MA","Business Support","Premises Development","Easthampstead Park Centre - Catering","Cost of Goods Sold",07/07/2014 00:00:00,"30250619",464.91,"3663"
"Bracknell Forest Council","http://opendatacommunities.org/id/unitary-authority/bracknell-forest","Bracknell Forest Council","00MA","Recreation, Sports and Leisure","Golf Courses","Leisure DSO - Downshire Catering","Cost of Goods Sold",02/09/2014 00:00:00,"30250619",789.56,"3663"
"Bracknell Forest Council","http://opendatacommunities.org/id/unitary-authority/bracknell-forest","Bracknell Forest Council","00MA","Adults (18-64)","Long term Support - Residential","MH Adults 18-64 Long Term Support - Residential","Contracted Services",28/08/2014 00:00:00,"30250131",2388.24,"2 CARE"
"Bracknell Forest Council","http://opendatacommunities.org/id/unitary-authority/bracknell-forest","Bracknell Forest Council","00MA","Adults (18-64)","Long term Support - Residential","MH Adults 18-64 Long Term Support - Residential","Contracted Services",28/08/2014 00:00:00,"30250131",2388.32,"2 CARE"
"Bracknell Forest Council","http://opendatacommunities.org/id/unitary-authority/bracknell-forest","Bracknell Forest Council","00MA","","","Places for 2 year olds","Grants Paid",06/08/2014 00:00:00,"6555682",2500,"2ND EASTHAMPSTEAD SCOUT GROUP"
"Bracknell Forest Council","http://opendatacommunities.org/id/unitary-authority/bracknell-forest","Bracknell Forest Council","00MA","Central Support Services - COF","Policy Unit","Communications Admin","Other Fees for Bought-in Services",23/07/2014 00:00:00,"6555672",600,"360SWIFT.COM"
"Bracknell Forest Council","http://opendatacommunities.org/id/unitary-authority/bracknell-forest","Bracknell Forest Council","00MA","","","S106 Parks & Open Spaces Improvements Programme","Construction - Other Direct Expenses",04/08/2014 00:00:00,"6556537",2000,"3DWOOD"
"Bracknell Forest Council","http://opendatacommunities.org/id/unitary-authority/bracknell-forest","Bracknell Forest Council","00MA","","","Disabled Facilities Grant","Grants Paid",13/08/2014 00:00:00,"6556214",2139.18,"A & B BUILDERS"
"Bracknell Forest Council","http://opendatacommunities.org/id/unitary-authority/bracknell-forest","Bracknell Forest Council","00MA","Assistive Equipment & Technology","Assistive Equipment & Technology","Assistive Equipment & Technology","Equipment - Purchase",13/06/2014 00:00:00,"6556326",550,"A & B BUILDERS"
"Bracknell Forest Council","http://opendatacommunities.org/id/unitary-authority/bracknell-forest","Bracknell Forest Council","00MA","Open Spaces","Community Parks & Open Spaces","Play Areas","R&M - Planned",30/07/2014 00:00:00,"6555814",738,"ABA (CONSTRUCTION) LTD T/A ARD PLAYGROUNDS"
"Bracknell Forest Council","http://opendatacommunities.org/id/unitary-authority/bracknell-forest","Bracknell Forest Council","00MA","Supporting People","Supporting People","Supporting People Payments","Transfer Payments - Supporting People",18/08/2014 00:00:00,"6556336",624.23,"ABILITY HOUSING ASSOCIATION"
"Bracknell Forest Council","http://opendatacommunities.org/id/unitary-authority/bracknell-forest","Bracknell Forest Council","00MA","Commissioning and Social Work","Commissioning and Social Work","Children's Participation","Voluntary Sector Service Providers",31/07/2014 00:00:00,"6555845",848.73,"ACTION FOR CHILDREN SERVICES LTD"
"Bracknell Forest Council","http://opendatacommunities.org/id/unitary-authority/bracknell-forest","Bracknell Forest Council","00MA","Management and Support Services - CYPL","Unallocated Schools Budget Related Expenditure","Supporting SEN - Post 16","Voluntary Sector Service Providers",31/07/2014 00:00:00,"6557118",39561,"ACTIVATE LEARNING"
"Bracknell Forest Council","http://opendatacommunities.org/id/unitary-authority/bracknell-forest","Bracknell Forest Council","00MA","Recreation, Sports and Leisure","Golf Courses","Leisure DSO - Downshire Golf Shop","Cost of Goods Sold",04/04/2014 00:00:00,"6556025",663.48,"ACUSHNET EUROPE LTD"
"Bracknell Forest Council","http://opendatacommunities.org/id/unitary-authority/bracknell-forest","Bracknell Forest Council","00MA","Recreation, Sports and Leisure","Golf Courses","Leisure DSO - Downshire Golf Shop","Cost of Goods Sold",01/04/2014 00:00:00,"6556119",756.89,"ACUSHNET EUROPE LTD"
"Bracknell Forest Council","http://opendatacommunities.org/id/unitary-authority/bracknell-forest","Bracknell Forest Council","00MA","Recreation, Sports and Leisure","Golf Courses","Leisure DSO - Downshire Golf Shop","Cost of Goods Sold",02/06/2014 00:00:00,"6556461",945.75,"ACUSHNET EUROPE LTD"
"Bracknell Forest Council","http://opendatacommunities.org/id/unitary-authority/bracknell-forest","Bracknell Forest Council","00MA","Recreation, Sports and Leisure","Golf Courses","Leisure DSO - Downshire Golf Shop","Cost of Goods Sold",05/06/2014 00:00:00,"6556464",1929.8,"ACUSHNET EUROPE LTD"
"Bracknell Forest Council","http://opendatacommunities.org/id/unitary-authority/bracknell-forest","Bracknell Forest Council","00MA","Central Support Services - COF","Information Technology","Technical  Services","Contracted Services",10/07/2014 00:00:00,"6556035",15243,"ADAM CONTINUITY LIMITED"
"Bracknell Forest Council","http://opendatacommunities.org/id/unitary-authority/bracknell-forest","Bracknell Forest Council","00MA","","","Disabled Facilities Grant","Grants Paid",13/08/2014 00:00:00,"6556084",3940,"ADAPTABLE BUILDING SERVICES"
"Bracknell Forest Council","http://opendatacommunities.org/id/unitary-authority/bracknell-forest","Bracknell Forest Council","00MA","Services to Young People","Other Services to Young People","NEET Reduction Funding","Contracted Services",31/07/2014 00:00:00,"6557237",36423.16,"ADVIZA PARTNERSHIP"
"Bracknell Forest Council","http://opendatacommunities.org/id/unitary-authority/bracknell-forest","Bracknell Forest Council","00MA","Children Looked After","Education of LAC","Educational Attainment for Looked After Children","Contracted Services",31/07/2014 00:00:00,"6557237",1872.67,"ADVIZA PARTNERSHIP"
"Bracknell Forest Council","http://opendatacommunities.org/id/unitary-authority/bracknell-forest","Bracknell Forest Council","00MA","Adults (18-64)","Long term Support - Residential","LD Adults 18-64 Long Term Support - Residential","Contracted Services",28/08/2014 00:00:00,"30250131",4760,"AFFINITY TRUST"
"Bracknell Forest Council","http://opendatacommunities.org/id/unitary-authority/bracknell-forest","Bracknell Forest Council","00MA","Recreation, Sports and Leisure","Community Centres","Community Centres Support","Water & Sewerage",09/08/2014 00:00:00,"6557089",515.77,"AFFINITY WATER"
"Bracknell Forest Council","http://opendatacommunities.org/id/unitary-authority/bracknell-forest","Bracknell Forest Council","00MA","Older People (65+)","Long Term Support - Community:Supported Living","MC Older People 65+ Long Term Support - Community:Supported Living","Contracted Services",02/09/2014 00:00:00,"30250461",46,"AGE CONCERN BRACKNELL FOREST"
"Bracknell Forest Council","http://opendatacommunities.org/id/unitary-authority/bracknell-forest","Bracknell Forest Council","00MA","Older People (65+)","Long Term Support - Community:Supported Living","PS Older People 65+ Long Term Support - Community:Supported Living","Contracted Services",02/09/2014 00:00:00,"30250461",92,"AGE CONCERN BRACKNELL FOREST"
"Bracknell Forest Council","http://opendatacommunities.org/id/unitary-authority/bracknell-forest","Bracknell Forest Council","00MA","Older People (65+)","Long Term Support - Community:Supported Living","MC Older People 65+ Long Term Support - Community:Supported Living","Contracted Services",02/09/2014 00:00:00,"30250461",92,"AGE CONCERN BRACKNELL FOREST"
"Bracknell Forest Council","http://opendatacommunities.org/id/unitary-authority/bracknell-forest","Bracknell Forest Council","00MA","Adults (18-64)","Long Term Support - Community:Supported Living","MC Adults 18-64 Long Term Support - Community:Supported Living","Contracted Services",02/09/2014 00:00:00,"30250461",92,"AGE CONCERN BRACKNELL FOREST"
"Bracknell Forest Council","http://opendatacommunities.org/id/unitary-authority/bracknell-forest","Bracknell Forest Council","00MA","Older People (65+)","Long Term Support - Community:Supported Living","PS Older People 65+ Long Term Support - Community:Supported Living","Contracted Services",02/09/2014 00:00:00,"30250461",184,"AGE CONCERN BRACKNELL FOREST"
"Bracknell Forest Council","http://opendatacommunities.org/id/unitary-authority/bracknell-forest","Bracknell Forest Council","00MA","Older People (65+)","Long Term Support - Community:Supported Living","MC Older People 65+ Long Term Support - Community:Supported Living","Contracted Services",02/09/2014 00:00:00,"30250461",184,"AGE CONCERN BRACKNELL FOREST"
"Bracknell Forest Council","http://opendatacommunities.org/id/unitary-authority/bracknell-forest","Bracknell Forest Council","00MA","Older People (65+)","Long Term Support - Community:Supported Living","MC Older People 65+ Long Term Support - Community:Supported Living","Contracted Services",02/09/2014 00:00:00,"30250461",184,"AGE CONCERN BRACKNELL FOREST"
"Bracknell Forest Council","http://opendatacommunities.org/id/unitary-authority/bracknell-forest","Bracknell Forest Council","00MA","Older People (65+)","Long Term Support - Community:Supported Living","MC Older People 65+ Long Term Support - Community:Supported Living","Contracted Services",02/09/2014 00:00:00,"30250461",230,"AGE CONCERN BRACKNELL FOREST"
"Bracknell Forest Council","http://opendatacommunities.org/id/unitary-authority/bracknell-forest","Bracknell Forest Council","00MA","Older People (65+)","Long Term Support - Nursing","MC Older People 65+ Long Term Support - Nursing","Contracted Services",28/08/2014 00:00:00,"30250131",2800.44,"AMBERBROOK MANAGEMENT LTD"
"Bracknell Forest Council","http://opendatacommunities.org/id/unitary-authority/bracknell-forest","Bracknell Forest Council","00MA","Older People (65+)","Long Term Support - Community:Supported Living","PS Older People 65+ Long Term Support - Community:Supported Living","Contracted Services",02/09/2014 00:00:00,"30250461",276,"AGE CONCERN BRACKNELL FOREST"
"Bracknell Forest Council","http://opendatacommunities.org/id/unitary-authority/bracknell-forest","Bracknell Forest Council","00MA","Older People (65+)","Long Term Support - Community:Supported Living","MC Older People 65+ Long Term Support - Community:Supported Living","Contracted Services",02/09/2014 00:00:00,"30250461",276,"AGE CONCERN BRACKNELL FOREST"
"Bracknell Forest Council","http://opendatacommunities.org/id/unitary-authority/bracknell-forest","Bracknell Forest Council","00MA","Older People (65+)","Long Term Support - Community:Supported Living","MC Older People 65+ Long Term Support - Community:Supported Living","Contracted Services",02/09/2014 00:00:00,"30250461",276,"AGE CONCERN BRACKNELL FOREST"
"Bracknell Forest Council","http://opendatacommunities.org/id/unitary-authority/bracknell-forest","Bracknell Forest Council","00MA","Older People (65+)","Long Term Support - Community:Supported Living","MC Older People 65+ Long Term Support - Community:Supported Living","Contracted Services",02/09/2014 00:00:00,"30250461",368,"AGE CONCERN BRACKNELL FOREST"
"Bracknell Forest Council","http://opendatacommunities.org/id/unitary-authority/bracknell-forest","Bracknell Forest Council","00MA","Older People (65+)","Long Term Support - Community:Supported Living","MC Older People 65+ Long Term Support - Community:Supported Living","Contracted Services",02/09/2014 00:00:00,"30250461",368,"AGE CONCERN BRACKNELL FOREST"
"Bracknell Forest Council","http://opendatacommunities.org/id/unitary-authority/bracknell-forest","Bracknell Forest Council","00MA","Recreation, Sports and Leisure","Indoor Sports & Recreation Facilities","Leisure DSO - Leisure Centre Maintenance","Swimming Pool Chemicals",30/07/2014 00:00:00,"6556648",2639.14,"AIR PRODUCTS PLC"
"Bracknell Forest Council","http://opendatacommunities.org/id/unitary-authority/bracknell-forest","Bracknell Forest Council","00MA","Adults (18-64)","Long term Support - Residential","MH Adults 18-64 Long Term Support - Residential","Contracted Services",28/08/2014 00:00:00,"30250131",1276.12,"ALDWICK RESIDENTIAL CARE HOME"
"Bracknell Forest Council","http://opendatacommunities.org/id/unitary-authority/bracknell-forest","Bracknell Forest Council","00MA","Traffic Management & Road Safety","Traffic Management","Traffic Management","Contracted Services",31/07/2014 00:00:00,"6556019",889.26,"ALEXANDER ADVERTISING(INT)LTD"
"Bracknell Forest Council","http://opendatacommunities.org/id/unitary-authority/bracknell-forest","Bracknell Forest Council","00MA","Traffic Management & Road Safety","Traffic Management","Traffic Management","Contracted Services",31/07/2014 00:00:00,"6556020",889.26,"ALEXANDER ADVERTISING(INT)LTD"
"Bracknell Forest Council","http://opendatacommunities.org/id/unitary-authority/bracknell-forest","Bracknell Forest Council","00MA","Business Support","Premises Development","Easthampstead Park Centre - Catering","Cleaning materials",29/07/2014 00:00:00,"30249377",94.45,"ALLIANCE DISPOSABLES LTD"
"Bracknell Forest Council","http://opendatacommunities.org/id/unitary-authority/bracknell-forest","Bracknell Forest Council","00MA","Business Support","Premises Development","Easthampstead Park Centre - Catering","Cleaning materials",24/07/2014 00:00:00,"30249377",1056.22,"ALLIANCE DISPOSABLES LTD"
"Bracknell Forest Council","http://opendatacommunities.org/id/unitary-authority/bracknell-forest","Bracknell Forest Council","00MA","Business Support","Premises Development","Easthampstead Park Centre - Catering","Cleaning materials",19/08/2014 00:00:00,"30250619",30.07,"ALLIANCE DISPOSABLES LTD"
"Bracknell Forest Council","http://opendatacommunities.org/id/unitary-authority/bracknell-forest","Bracknell Forest Council","00MA","Business Support","Premises Development","Easthampstead Park Centre - Catering","Cleaning materials",18/08/2014 00:00:00,"30250619",834.32,"ALLIANCE DISPOSABLES LTD"
"Bracknell Forest Council","http://opendatacommunities.org/id/unitary-authority/bracknell-forest","Bracknell Forest Council","00MA","Adults (18-64)","Long Term Support - Community:Supported Living","LD Adults 18-64 Long Term Support - Community:Supported Living","Contracted Services",07/08/2014 00:00:00,"30249097",2878.33,"ALLIED HEALTHCARE GROUP LTD"
"Bracknell Forest Council","http://opendatacommunities.org/id/unitary-authority/bracknell-forest","Bracknell Forest Council","00MA","Adults (18-64)","Long Term Support - Community:Supported Living","LD Adults 18-64 Long Term Support - Community:Supported Living","Contracted Services",07/08/2014 00:00:00,"30249097",3533.52,"ALLIED HEALTHCARE GROUP LTD"
"Bracknell Forest Council","http://opendatacommunities.org/id/unitary-authority/bracknell-forest","Bracknell Forest Council","00MA","Adults (18-64)","Long Term Support - Community:Supported Living","LD Adults 18-64 Long Term Support - Community:Supported Living","Contracted Services",07/08/2014 00:00:00,"30249097",3850.75,"ALLIED HEALTHCARE GROUP LTD"
"Bracknell Forest Council","http://opendatacommunities.org/id/unitary-authority/bracknell-forest","Bracknell Forest Council","00MA","Adults (18-64)","Long Term Support - Community:Supported Living","LD Adults 18-64 Long Term Support - Community:Supported Living","Contracted Services",07/08/2014 00:00:00,"30249097",3895.91,"ALLIED HEALTHCARE GROUP LTD"
"Bracknell Forest Council","http://opendatacommunities.org/id/unitary-authority/bracknell-forest","Bracknell Forest Council","00MA","Adults (18-64)","Long term Support - Community:Homecare","LD Adults 18-64 Long Term Support - Community:Homecare","Contracted Services",07/08/2014 00:00:00,"30249098",3707.33,"ALLIED HEALTHCARE GROUP LTD"
"Bracknell Forest Council","http://opendatacommunities.org/id/unitary-authority/bracknell-forest","Bracknell Forest Council","00MA","Adults (18-64)","Long term Support - Community:Homecare","LD Adults 18-64 Long Term Support - Community:Homecare","Contracted Services",07/08/2014 00:00:00,"30249098",3900.38,"ALLIED HEALTHCARE GROUP LTD"
"Bracknell Forest Council","http://opendatacommunities.org/id/unitary-authority/bracknell-forest","Bracknell Forest Council","00MA","Adults (18-64)","Long term Support - Community:Homecare","LD Adults 18-64 Long Term Support - Community:Homecare","Contracted Services",07/08/2014 00:00:00,"30249129",778.4,"ALLIED HEALTHCARE GROUP LTD"
"Bracknell Forest Council","http://opendatacommunities.org/id/unitary-authority/bracknell-forest","Bracknell Forest Council","00MA","Adults (18-64)","Long term Support - Community:Homecare","LD Adults 18-64 Long Term Support - Community:Homecare","Contracted Services",02/09/2014 00:00:00,"30250461",2893.26,"ALLIED HEALTHCARE GROUP LTD"
"Bracknell Forest Council","http://opendatacommunities.org/id/unitary-authority/bracknell-forest","Bracknell Forest Council","00MA","Vehicles &  Plant","Vehicles and Plant Summary Account","Vehicles and Plant","Operating Lease Charge",01/08/2014 00:00:00,"6556912",2659.88,"ALPHABET (GB) LTD"
"Bracknell Forest Council","http://opendatacommunities.org/id/unitary-authority/bracknell-forest","Bracknell Forest Council","00MA","Older People (65+)","Long term Support - Residential","PS Older People 65+ Long Term Support - Residential","Contracted Services",28/08/2014 00:00:00,"30250131",1936.12,"AMBERBROOK MANAGEMENT LTD"
"Bracknell Forest Council","http://opendatacommunities.org/id/unitary-authority/bracknell-forest","Bracknell Forest Council","00MA","Older People (65+)","Long term Support - Residential","MH Older People 65+ Long Term Support - Residential","Contracted Services",28/08/2014 00:00:00,"30250131",2047.4,"AMBERBROOK MANAGEMENT LTD"
"Bracknell Forest Council","http://opendatacommunities.org/id/unitary-authority/bracknell-forest","Bracknell Forest Council","00MA","Older People (65+)","Long term Support - Residential","MC Older People 65+ Long Term Support - Residential","Contracted Services",28/08/2014 00:00:00,"30250131",2047.4,"AMBERBROOK MANAGEMENT LTD"
"Bracknell Forest Council","http://opendatacommunities.org/id/unitary-authority/bracknell-forest","Bracknell Forest Council","00MA","Older People (65+)","Long term Support - Residential","MC Older People 65+ Long Term Support - Residential","Contracted Services",28/08/2014 00:00:00,"30250131",2047.4,"AMBERBROOK MANAGEMENT LTD"
"Bracknell Forest Council","http://opendatacommunities.org/id/unitary-authority/bracknell-forest","Bracknell Forest Council","00MA","Older People (65+)","Long term Support - Residential","MC Older People 65+ Long Term Support - Residential","Contracted Services",28/08/2014 00:00:00,"30250131",2047.4,"AMBERBROOK MANAGEMENT LTD"
"Bracknell Forest Council","http://opendatacommunities.org/id/unitary-authority/bracknell-forest","Bracknell Forest Council","00MA","Older People (65+)","Long term Support - Residential","PS Older People 65+ Long Term Support - Residential","Contracted Services",28/08/2014 00:00:00,"30250131",2047.4,"AMBERBROOK MANAGEMENT LTD"
"Bracknell Forest Council","http://opendatacommunities.org/id/unitary-authority/bracknell-forest","Bracknell Forest Council","00MA","Older People (65+)","Long term Support - Residential","MC Older People 65+ Long Term Support - Residential","Contracted Services",28/08/2014 00:00:00,"30250131",2047.4,"AMBERBROOK MANAGEMENT LTD"
"Bracknell Forest Council","http://opendatacommunities.org/id/unitary-authority/bracknell-forest","Bracknell Forest Council","00MA","Older People (65+)","Long Term Support - Nursing","PS Older People 65+ Long Term Support - Nursing","Contracted Services",28/08/2014 00:00:00,"30250131",2502.24,"AMBERBROOK MANAGEMENT LTD"
"Bracknell Forest Council","http://opendatacommunities.org/id/unitary-authority/bracknell-forest","Bracknell Forest Council","00MA","Older People (65+)","Long Term Support - Nursing","PS Older People 65+ Long Term Support - Nursing","Contracted Services",28/08/2014 00:00:00,"30250131",2502.24,"AMBERBROOK MANAGEMENT LTD"
"Bracknell Forest Council","http://opendatacommunities.org/id/unitary-authority/bracknell-forest","Bracknell Forest Council","00MA","Older People (65+)","Long Term Support - Nursing","PS Older People 65+ Long Term Support - Nursing","Contracted Services",28/08/2014 00:00:00,"30250131",2502.24,"AMBERBROOK MANAGEMENT LTD"
"Bracknell Forest Council","http://opendatacommunities.org/id/unitary-authority/bracknell-forest","Bracknell Forest Council","00MA","Older People (65+)","Long Term Support - Nursing","PS Older People 65+ Long Term Support - Nursing","Contracted Services",28/08/2014 00:00:00,"30250131",2502.24,"AMBERBROOK MANAGEMENT LTD"
"Bracknell Forest Council","http://opendatacommunities.org/id/unitary-authority/bracknell-forest","Bracknell Forest Council","00MA","Older People (65+)","Long Term Support - Nursing","MC Older People 65+ Long Term Support - Nursing","Contracted Services",28/08/2014 00:00:00,"30250131",2502.24,"AMBERBROOK MANAGEMENT LTD"
"Bracknell Forest Council","http://opendatacommunities.org/id/unitary-authority/bracknell-forest","Bracknell Forest Council","00MA","Older People (65+)","Long Term Support - Nursing","MC Older People 65+ Long Term Support - Nursing","Contracted Services",28/08/2014 00:00:00,"30250131",2502.24,"AMBERBROOK MANAGEMENT LTD"
"Bracknell Forest Council","http://opendatacommunities.org/id/unitary-authority/bracknell-forest","Bracknell Forest Council","00MA","Older People (65+)","Long Term Support - Nursing","MC Older People 65+ Long Term Support - Nursing","Contracted Services",28/08/2014 00:00:00,"30250131",2502.24,"AMBERBROOK MANAGEMENT LTD"
"Bracknell Forest Council","http://opendatacommunities.org/id/unitary-authority/bracknell-forest","Bracknell Forest Council","00MA","Older People (65+)","Long Term Support - Nursing","PS Older People 65+ Long Term Support - Nursing","Contracted Services",28/08/2014 00:00:00,"30250131",2502.24,"AMBERBROOK MANAGEMENT LTD"
"Bracknell Forest Council","http://opendatacommunities.org/id/unitary-authority/bracknell-forest","Bracknell Forest Council","00MA","Adults (18-64)","Long Term Support - Nursing","PS Adults 18-64 Long Term Support - Nursing","Contracted Services",28/08/2014 00:00:00,"30250131",2502.32,"AMBERBROOK MANAGEMENT LTD"
"Bracknell Forest Council","http://opendatacommunities.org/id/unitary-authority/bracknell-forest","Bracknell Forest Council","00MA","Older People (65+)","Long Term Support - Nursing","MC Older People 65+ Long Term Support - Nursing","Contracted Services",28/08/2014 00:00:00,"30250131",2716.3,"AMBERBROOK MANAGEMENT LTD"
"Bracknell Forest Council","http://opendatacommunities.org/id/unitary-authority/bracknell-forest","Bracknell Forest Council","00MA","Adults (18-64)","Long Term Support - Nursing","MH Adults 18-64 Long Term Support - Nursing","Contracted Services",28/08/2014 00:00:00,"30250131",2800.48,"AMBERBROOK MANAGEMENT LTD"
"Bracknell Forest Council","http://opendatacommunities.org/id/unitary-authority/bracknell-forest","Bracknell Forest Council","00MA","Older People (65+)","Long Term Support - Nursing","MC Older People 65+ Long Term Support - Nursing","Contracted Services",28/08/2014 00:00:00,"30250131",2800.48,"AMBERBROOK MANAGEMENT LTD"
"Bracknell Forest Council","http://opendatacommunities.org/id/unitary-authority/bracknell-forest","Bracknell Forest Council","00MA","Older People (65+)","Long Term Support - Nursing","MH Older People 65+ Long Term Support - Nursing","Contracted Services",28/08/2014 00:00:00,"30250131",5302.72,"AMBERBROOK MANAGEMENT LTD"
"Bracknell Forest Council","http://opendatacommunities.org/id/unitary-authority/bracknell-forest","Bracknell Forest Council","00MA","Service Management & Support Services","Service Management & Support Services","Departmental Office Services","Furniture - Purchase",30/07/2014 00:00:00,"6555501",766,"AMG OFFICE FURNITURE LIMITED"
"Bracknell Forest Council","http://opendatacommunities.org/id/unitary-authority/bracknell-forest","Bracknell Forest Council","00MA","Older People (65+)","Long term Support - Residential","PS Older People 65+ Long Term Support - Residential","Contracted Services",28/08/2014 00:00:00,"30250131",1763.56,"ANCHOR TRUST"
"Bracknell Forest Council","http://opendatacommunities.org/id/unitary-authority/bracknell-forest","Bracknell Forest Council","00MA","Open Spaces","Community Parks & Open Spaces","Tree Service","Consultants Fees",14/08/2014 00:00:00,"6556603",2298.72,"ANDREW PARRY"
"Bracknell Forest Council","http://opendatacommunities.org/id/unitary-authority/bracknell-forest","Bracknell Forest Council","00MA","Adults (18-64)","Long Term Support - Nursing","MH Adults 18-64 Long Term Support - Nursing","Contracted Services",28/08/2014 00:00:00,"30250131",4400,"APPLE HILL NURSING HOME"
"Bracknell Forest Council","http://opendatacommunities.org/id/unitary-authority/bracknell-forest","Bracknell Forest Council","00MA","Open Spaces","Countryside Recreation & Management","Countryside Sites - Maintenance","R&M - Planned",31/07/2014 00:00:00,"6556574",650,"ARBORFIELD TREE CARE"
"Bracknell Forest Council","http://opendatacommunities.org/id/unitary-authority/bracknell-forest","Bracknell Forest Council","00MA","Other School Related Education Services","Special Education","SEN Reform","Computer Consumables",10/08/2014 00:00:00,"6556066",1155.16,"ARGOS BUSINESS SOLUTIONS"
"Bracknell Forest Council","http://opendatacommunities.org/id/unitary-authority/bracknell-forest","Bracknell Forest Council","00MA","Management and Support Services - CYPL","Strategy, Resources and Early Interventions","Family Information Service","Computer -Purchase",10/08/2014 00:00:00,"6556067",620.71,"ARGOS BUSINESS SOLUTIONS"
"Bracknell Forest Council","http://opendatacommunities.org/id/unitary-authority/bracknell-forest","Bracknell Forest Council","00MA","Libraries","Branch Libraries","Libraries General Running Expenses","Publicity & Marketing",04/08/2014 00:00:00,"6556356",1600,"ARMCHAIR PUPPET THEATRE"
"Bracknell Forest Council","http://opendatacommunities.org/id/unitary-authority/bracknell-forest","Bracknell Forest Council","00MA","Management & Administration","Management & Administration","MH Management & Administration","Agency",09/07/2014 00:00:00,"6555149",1273.65,"ARTHUR RAI MEDICAL SERVICES"
"Bracknell Forest Council","http://opendatacommunities.org/id/unitary-authority/bracknell-forest","Bracknell Forest Council","00MA","Management & Administration","Management & Administration","MH Management & Administration","Agency",16/07/2014 00:00:00,"6555150",968.1,"ARTHUR RAI MEDICAL SERVICES"
"Bracknell Forest Council","http://opendatacommunities.org/id/unitary-authority/bracknell-forest","Bracknell Forest Council","00MA","Management & Administration","Management & Administration","MH Management & Administration","Agency",23/07/2014 00:00:00,"6555341",993.02,"ARTHUR RAI MEDICAL SERVICES"
"Bracknell Forest Council","http://opendatacommunities.org/id/unitary-authority/bracknell-forest","Bracknell Forest Council","00MA","Management & Administration","Management & Administration","MH Management & Administration","Agency",01/07/2014 00:00:00,"6555852",1113.85,"ARTHUR RAI MEDICAL SERVICES"
"Bracknell Forest Council","http://opendatacommunities.org/id/unitary-authority/bracknell-forest","Bracknell Forest Council","00MA","Management & Administration","Management & Administration","MH Management & Administration","Agency",25/06/2014 00:00:00,"6555921",1210.13,"ARTHUR RAI MEDICAL SERVICES"
"Bracknell Forest Council","http://opendatacommunities.org/id/unitary-authority/bracknell-forest","Bracknell Forest Council","00MA","Adults (18-64)","Long Term Support - Nursing","MH Adults 18-64 Long Term Support - Nursing","Contracted Services",28/08/2014 00:00:00,"30250131",2652.92,"ASCOT NURSING HOME LTD"
"Bracknell Forest Council","http://opendatacommunities.org/id/unitary-authority/bracknell-forest","Bracknell Forest Council","00MA","Older People (65+)","Long Term Support - Nursing","MH Older People 65+ Long Term Support - Nursing","Contracted Services",28/08/2014 00:00:00,"30250131",4311.08,"ASCOT NURSING HOME LTD"
"Bracknell Forest Council","http://opendatacommunities.org/id/unitary-authority/bracknell-forest","Bracknell Forest Council","00MA","Adults (18-64)","Long Term Support - Nursing","PS Adults 18-64 Long Term Support - Nursing","Contracted Services",28/08/2014 00:00:00,"30250131",4431.84,"ASCOT NURSING HOME LTD"
"Bracknell Forest Council","http://opendatacommunities.org/id/unitary-authority/bracknell-forest","Bracknell Forest Council","00MA","Older People (65+)","Long term Support - Residential","PS Older People 65+ Long Term Support - Residential","Contracted Services",28/08/2014 00:00:00,"30250131",2520.56,"ASCOT RESIDENTIAL HOMES LTD"
"Bracknell Forest Council","http://opendatacommunities.org/id/unitary-authority/bracknell-forest","Bracknell Forest Council","00MA","Older People (65+)","Long Term Support - Nursing","PS Older People 65+ Long Term Support - Nursing","Contracted Services",28/08/2014 00:00:00,"30250131",3290.16,"ASCOT RESIDENTIAL HOMES LTD"
"Bracknell Forest Council","http://opendatacommunities.org/id/unitary-authority/bracknell-forest","Bracknell Forest Council","00MA","Service Management & Support Services","Service Management & Support Services","Departmental Office Services","Office Stationery",29/08/2014 00:00:00,"30250293",2.6,"BANNER"
"Bracknell Forest Council","http://opendatacommunities.org/id/unitary-authority/bracknell-forest","Bracknell Forest Council","00MA","Management and Support Services - CYPL","Strategy, Resources and Early Interventions","Reception & Office Services","Office Stationery",29/08/2014 00:00:00,"30250293",2.6,"BANNER"
"Bracknell Forest Council","http://opendatacommunities.org/id/unitary-authority/bracknell-forest","Bracknell Forest Council","00MA","Commissioning and Social Work","Commissioning and Social Work","Administration Running Costs","Office Stationery",29/08/2014 00:00:00,"30250293",2.6,"BANNER"
"Bracknell Forest Council","http://opendatacommunities.org/id/unitary-authority/bracknell-forest","Bracknell Forest Council","00MA","Central Support Services - COF","Legal","Legal Services","Office Stationery",29/08/2014 00:00:00,"30250293",2.61,"BANNER"
"Bracknell Forest Council","http://opendatacommunities.org/id/unitary-authority/bracknell-forest","Bracknell Forest Council","00MA","Management and Support Services - CYPL","Strategy, Resources and Early Interventions","Reception & Office Services","Office Stationery",29/08/2014 00:00:00,"30250293",2.64,"BANNER"
"Bracknell Forest Council","http://opendatacommunities.org/id/unitary-authority/bracknell-forest","Bracknell Forest Council","00MA","Other Welfare Services","Other Welfare Services","Forestcare - Operational","Office Stationery",29/08/2014 00:00:00,"30250293",2.78,"BANNER"
"Bracknell Forest Council","http://opendatacommunities.org/id/unitary-authority/bracknell-forest","Bracknell Forest Council","00MA","Recreation, Sports and Leisure","Indoor Sports & Recreation Facilities","Leisure DSO - Leisure Centre","Office Stationery",29/08/2014 00:00:00,"30250293",2.78,"BANNER"
"Bracknell Forest Council","http://opendatacommunities.org/id/unitary-authority/bracknell-forest","Bracknell Forest Council","00MA","Management and Support Services - CYPL","Strategy, Resources and Early Interventions","Reception & Office Services","Office Stationery",29/08/2014 00:00:00,"30250293",2.8,"BANNER"
"Bracknell Forest Council","http://opendatacommunities.org/id/unitary-authority/bracknell-forest","Bracknell Forest Council","00MA","Early Years","Children's Centres","The Willows Children's Centre","Office Stationery",29/08/2014 00:00:00,"30250293",2.82,"BANNER"
"Bracknell Forest Council","http://opendatacommunities.org/id/unitary-authority/bracknell-forest","Bracknell Forest Council","00MA","Recreation, Sports and Leisure","Indoor Sports & Recreation Facilities","Leisure DSO - Leisure Centre","Office Stationery",29/08/2014 00:00:00,"30250293",3,"BANNER"
"Bracknell Forest Council","http://opendatacommunities.org/id/unitary-authority/bracknell-forest","Bracknell Forest Council","00MA","Business Support","Premises Development","Easthampstead Park Centre - Catering","Cost of Goods Sold",28/04/2014 00:00:00,"30249757",229.7,"BRAKE BROS FOODSERVICE LTD"
"Bracknell Forest Council","http://opendatacommunities.org/id/unitary-authority/bracknell-forest","Bracknell Forest Council","00MA","Recreation, Sports and Leisure","Indoor Sports & Recreation Facilities","Coral Reef - Catering & Bar","Cost of Goods Sold",15/08/2014 00:00:00,"30249757",255.94,"BRAKE BROS FOODSERVICE LTD"
"Bracknell Forest Council","http://opendatacommunities.org/id/unitary-authority/bracknell-forest","Bracknell Forest Council","00MA","Recreation, Sports and Leisure","Indoor Sports & Recreation Facilities","Coral Reef - Catering & Bar","Cost of Goods Sold",12/08/2014 00:00:00,"30249757",423.5,"BRAKE BROS FOODSERVICE LTD"
"Bracknell Forest Council","http://opendatacommunities.org/id/unitary-authority/bracknell-forest","Bracknell Forest Council","00MA","Business Support","Premises Development","Easthampstead Park Centre - Catering","Cost of Goods Sold",20/08/2014 00:00:00,"30250050",61.24,"BRAKE BROS FOODSERVICE LTD"
"Bracknell Forest Council","http://opendatacommunities.org/id/unitary-authority/bracknell-forest","Bracknell Forest Council","00MA","Business Support","Premises Development","Easthampstead Park Centre - Catering","Cost of Goods Sold",20/08/2014 00:00:00,"30250050",72.7,"BRAKE BROS FOODSERVICE LTD"
"Bracknell Forest Council","http://opendatacommunities.org/id/unitary-authority/bracknell-forest","Bracknell Forest Council","00MA","Business Support","Premises Development","Easthampstead Park Centre - Catering","Cost of Goods Sold",20/08/2014 00:00:00,"30250050",85.98,"BRAKE BROS FOODSERVICE LTD"
"Bracknell Forest Council","http://opendatacommunities.org/id/unitary-authority/bracknell-forest","Bracknell Forest Council","00MA","Business Support","Premises Development","Easthampstead Park Centre - Catering","Cost of Goods Sold",22/08/2014 00:00:00,"30250050",220.06,"BRAKE BROS FOODSERVICE LTD"
"Bracknell Forest Council","http://opendatacommunities.org/id/unitary-authority/bracknell-forest","Bracknell Forest Council","00MA","Recreation, Sports and Leisure","Indoor Sports & Recreation Facilities","Coral Reef - Catering & Bar","Cost of Goods Sold",19/08/2014 00:00:00,"30250050",243.06,"BRAKE BROS FOODSERVICE LTD"
"Bracknell Forest Council","http://opendatacommunities.org/id/unitary-authority/bracknell-forest","Bracknell Forest Council","00MA","Recreation, Sports and Leisure","Indoor Sports & Recreation Facilities","Coral Reef - Catering & Bar","Cost of Goods Sold",18/08/2014 00:00:00,"30250050",269.32,"BRAKE BROS FOODSERVICE LTD"
"Bracknell Forest Council","http://opendatacommunities.org/id/unitary-authority/bracknell-forest","Bracknell Forest Council","00MA","Business Support","Premises Development","Easthampstead Park Centre - Catering","Cost of Goods Sold",19/08/2014 00:00:00,"30250050",277.02,"BRAKE BROS FOODSERVICE LTD"
"Bracknell Forest Council","http://opendatacommunities.org/id/unitary-authority/bracknell-forest","Bracknell Forest Council","00MA","Recreation, Sports and Leisure","Indoor Sports & Recreation Facilities","Coral Reef - Catering & Bar","Cost of Goods Sold",22/08/2014 00:00:00,"30250050",414.41,"BRAKE BROS FOODSERVICE LTD"
"Bracknell Forest Council","http://opendatacommunities.org/id/unitary-authority/bracknell-forest","Bracknell Forest Council","00MA","Recreation, Sports and Leisure","Indoor Sports & Recreation Facilities","Coral Reef - Catering & Bar","Cost of Goods Sold",29/08/2014 00:00:00,"30250619",3.5,"BRAKE BROS FOODSERVICE LTD"
"Bracknell Forest Council","http://opendatacommunities.org/id/unitary-authority/bracknell-forest","Bracknell Forest Council","00MA","Business Support","Premises Development","Easthampstead Park Centre - Catering","Cost of Goods Sold",27/08/2014 00:00:00,"30250619",51.22,"BRAKE BROS FOODSERVICE LTD"
"Bracknell Forest Council","http://opendatacommunities.org/id/unitary-authority/bracknell-forest","Bracknell Forest Council","00MA","Recreation, Sports and Leisure","Indoor Sports & Recreation Facilities","Leisure DSO - Leisure Centre","Office Stationery",29/08/2014 00:00:00,"30250293",3.01,"BANNER"
"Bracknell Forest Council","http://opendatacommunities.org/id/unitary-authority/bracknell-forest","Bracknell Forest Council","00MA","Services to Young People","Other Services to Young People","Coopers Hill Youth Centre","Office Stationery",29/08/2014 00:00:00,"30250293",3.03,"BANNER"
"Bracknell Forest Council","http://opendatacommunities.org/id/unitary-authority/bracknell-forest","Bracknell Forest Council","00MA","Early Years","Children's Centres","The Alders Children's Centre","Office Stationery",29/08/2014 00:00:00,"30250293",3.15,"BANNER"
"Bracknell Forest Council","http://opendatacommunities.org/id/unitary-authority/bracknell-forest","Bracknell Forest Council","00MA","Early Years","Children's Centres","The Rowans Children's Centre","Office Stationery",29/08/2014 00:00:00,"30250293",3.18,"BANNER"
"Bracknell Forest Council","http://opendatacommunities.org/id/unitary-authority/bracknell-forest","Bracknell Forest Council","00MA","Service Management & Support Services","Service Management & Support Services","Departmental Office Services","Office Stationery",29/08/2014 00:00:00,"30250293",3.26,"BANNER"
"Bracknell Forest Council","http://opendatacommunities.org/id/unitary-authority/bracknell-forest","Bracknell Forest Council","00MA","Registration Births, Deaths & Marriages","Registration births, deaths and marriages","Registration  Births","Office Stationery",29/08/2014 00:00:00,"30250293",3.26,"BANNER"
"Bracknell Forest Council","http://opendatacommunities.org/id/unitary-authority/bracknell-forest","Bracknell Forest Council","00MA","Management & Administration","Management & Administration","Directorate","Office Stationery",29/08/2014 00:00:00,"30250293",3.28,"BANNER"
"Bracknell Forest Council","http://opendatacommunities.org/id/unitary-authority/bracknell-forest","Bracknell Forest Council","00MA","Holding Accounts in Budget Book COF","Corporate Services - Office Services","Office Services - General Expenses","Office Stationery",29/08/2014 00:00:00,"30250293",3.33,"BANNER"
"Bracknell Forest Council","http://opendatacommunities.org/id/unitary-authority/bracknell-forest","Bracknell Forest Council","00MA","Central Support Services - COF","Legal","Legal Services","Office Stationery",29/08/2014 00:00:00,"30250293",3.34,"BANNER"
"Bracknell Forest Council","http://opendatacommunities.org/id/unitary-authority/bracknell-forest","Bracknell Forest Council","00MA","Service Management & Support Services","Service Management & Support Services","Departmental Office Services","Office Stationery",29/08/2014 00:00:00,"30250293",3.39,"BANNER"
"Bracknell Forest Council","http://opendatacommunities.org/id/unitary-authority/bracknell-forest","Bracknell Forest Council","00MA","Other Welfare Services","Other Welfare Services","Forestcare - Operational","Office Stationery",29/08/2014 00:00:00,"30250293",3.49,"BANNER"
"Bracknell Forest Council","http://opendatacommunities.org/id/unitary-authority/bracknell-forest","Bracknell Forest Council","00MA","Recreation, Sports and Leisure","Indoor Sports & Recreation Facilities","Leisure DSO - Leisure Centre","Office Stationery",29/08/2014 00:00:00,"30250293",3.5,"BANNER"
"Bracknell Forest Council","http://opendatacommunities.org/id/unitary-authority/bracknell-forest","Bracknell Forest Council","00MA","Central Support Services - COF","Personnel","Personnel Services","Office Stationery",29/08/2014 00:00:00,"30250293",3.5,"BANNER"
"Bracknell Forest Council","http://opendatacommunities.org/id/unitary-authority/bracknell-forest","Bracknell Forest Council","00MA","Short Term Support Other","Short Term Support Other","Bridgewell Unit","Office Stationery",29/08/2014 00:00:00,"30250293",3.52,"BANNER"
"Bracknell Forest Council","http://opendatacommunities.org/id/unitary-authority/bracknell-forest","Bracknell Forest Council","00MA","Management & Administration","Management & Administration","Directorate","Office Stationery",29/08/2014 00:00:00,"30250293",3.52,"BANNER"
"Bracknell Forest Council","http://opendatacommunities.org/id/unitary-authority/bracknell-forest","Bracknell Forest Council","00MA","Business Support","Premises Development","Easthampstead Park Centre - Catering","Cost of Goods Sold",27/08/2014 00:00:00,"30250619",72.7,"BRAKE BROS FOODSERVICE LTD"
"Bracknell Forest Council","http://opendatacommunities.org/id/unitary-authority/bracknell-forest","Bracknell Forest Council","00MA","Business Support","Premises Development","Easthampstead Park Centre - Catering","Cost of Goods Sold",26/08/2014 00:00:00,"30250619",165.64,"BRAKE BROS FOODSERVICE LTD"
"Bracknell Forest Council","http://opendatacommunities.org/id/unitary-authority/bracknell-forest","Bracknell Forest Council","00MA","Business Support","Premises Development","Easthampstead Park Centre - Catering","Cost of Goods Sold",29/08/2014 00:00:00,"30250619",175.97,"BRAKE BROS FOODSERVICE LTD"
"Bracknell Forest Council","http://opendatacommunities.org/id/unitary-authority/bracknell-forest","Bracknell Forest Council","00MA","Business Support","Premises Development","Easthampstead Park Centre - Catering","Cost of Goods Sold",28/08/2014 00:00:00,"30250619",262.91,"BRAKE BROS FOODSERVICE LTD"
"Bracknell Forest Council","http://opendatacommunities.org/id/unitary-authority/bracknell-forest","Bracknell Forest Council","00MA","Recreation, Sports and Leisure","Indoor Sports & Recreation Facilities","Coral Reef - Catering & Bar","Cost of Goods Sold",26/08/2014 00:00:00,"30250619",369.88,"BRAKE BROS FOODSERVICE LTD"
"Bracknell Forest Council","http://opendatacommunities.org/id/unitary-authority/bracknell-forest","Bracknell Forest Council","00MA","Recreation, Sports and Leisure","Indoor Sports & Recreation Facilities","Coral Reef - Catering & Bar","Cost of Goods Sold",29/08/2014 00:00:00,"30250619",415.14,"BRAKE BROS FOODSERVICE LTD"
"Bracknell Forest Council","http://opendatacommunities.org/id/unitary-authority/bracknell-forest","Bracknell Forest Council","00MA","Older People (65+)","Long term Support - Community:Homecare","MH Older People 65+ Long Term Support - Community:Homecare","Contracted Services",21/08/2014 00:00:00,"30249811",472.14,"BRIDGES HOME CARE LTD"
"Bracknell Forest Council","http://opendatacommunities.org/id/unitary-authority/bracknell-forest","Bracknell Forest Council","00MA","Adults (18-64)","Long term Support - Community:Homecare","MH Adults 18-64 Long Term Support - Community:Homecare","Contracted Services",21/08/2014 00:00:00,"30249811",572.76,"BRIDGES HOME CARE LTD"
"Bracknell Forest Council","http://opendatacommunities.org/id/unitary-authority/bracknell-forest","Bracknell Forest Council","00MA","Older People (65+)","Long term Support - Community:Homecare","MC Older People 65+ Long Term Support - Community:Homecare","Contracted Services",21/08/2014 00:00:00,"30249811",2593.26,"BRIDGES HOME CARE LTD"
"Bracknell Forest Council","http://opendatacommunities.org/id/unitary-authority/bracknell-forest","Bracknell Forest Council","00MA","Adults (18-64)","Long term Support - Community:Homecare","PS Adults 18-64 Long Term Support - Community:Homecare","Contracted Services",21/08/2014 00:00:00,"30249811",7275.6,"BRIDGES HOME CARE LTD"
"Bracknell Forest Council","http://opendatacommunities.org/id/unitary-authority/bracknell-forest","Bracknell Forest Council","00MA","Older People (65+)","Long term Support - Community:Homecare","PS Older People 65+ Long Term Support - Community:Homecare","Contracted Services",21/08/2014 00:00:00,"30249811",10717.29,"BRIDGES HOME CARE LTD"
"Bracknell Forest Council","http://opendatacommunities.org/id/unitary-authority/bracknell-forest","Bracknell Forest Council","00MA","Older People (65+)","Long term Support - Community:Homecare","PS Older People 65+ Long Term Support - Community:Homecare","Contracted Services",02/09/2014 00:00:00,"30250461",7.74,"BRIDGES HOME CARE LTD"
"Bracknell Forest Council","http://opendatacommunities.org/id/unitary-authority/bracknell-forest","Bracknell Forest Council","00MA","Central Support Services - COF","Construction and Property","Easthampstead House","Office Stationery",29/08/2014 00:00:00,"30250293",3.52,"BANNER"
"Bracknell Forest Council","http://opendatacommunities.org/id/unitary-authority/bracknell-forest","Bracknell Forest Council","00MA","Commissioning and Social Work","Commissioning and Social Work","Administration Running Costs","Office Stationery",29/08/2014 00:00:00,"30250293",3.6,"BANNER"
"Bracknell Forest Council","http://opendatacommunities.org/id/unitary-authority/bracknell-forest","Bracknell Forest Council","00MA","Service Management & Support Services","Service Management & Support Services","Departmental Office Services","Office Stationery",29/08/2014 00:00:00,"30250293",3.63,"BANNER"
"Bracknell Forest Council","http://opendatacommunities.org/id/unitary-authority/bracknell-forest","Bracknell Forest Council","00MA","Open Spaces","Countryside Recreation & Management","Countryside Sites - Maintenance","Office Stationery",29/08/2014 00:00:00,"30250293",3.63,"BANNER"
"Bracknell Forest Council","http://opendatacommunities.org/id/unitary-authority/bracknell-forest","Bracknell Forest Council","00MA","Central Support Services - COF","Finance","Finance Departmental Administration","Office Stationery",29/08/2014 00:00:00,"30250293",3.68,"BANNER"
"Bracknell Forest Council","http://opendatacommunities.org/id/unitary-authority/bracknell-forest","Bracknell Forest Council","00MA","Adults (18-64)","Internal Services","Glenfield","Office Stationery",29/08/2014 00:00:00,"30250293",3.69,"BANNER"
"Bracknell Forest Council","http://opendatacommunities.org/id/unitary-authority/bracknell-forest","Bracknell Forest Council","00MA","Central Support Services - COF","Personnel","Personnel Services","Office Stationery",29/08/2014 00:00:00,"30250293",3.76,"BANNER"
"Bracknell Forest Council","http://opendatacommunities.org/id/unitary-authority/bracknell-forest","Bracknell Forest Council","00MA","Management and Support Services - CYPL","Holding Codes - net nil","Education Library Service","Office Stationery",29/08/2014 00:00:00,"30250293",3.83,"BANNER"
"Bracknell Forest Council","http://opendatacommunities.org/id/unitary-authority/bracknell-forest","Bracknell Forest Council","00MA","Central Support Services - COF","Finance","Finance Departmental Administration","Office Stationery",29/08/2014 00:00:00,"30250293",3.87,"BANNER"
"Bracknell Forest Council","http://opendatacommunities.org/id/unitary-authority/bracknell-forest","Bracknell Forest Council","00MA","Central Support Services - COF","Finance","Finance Departmental Administration","Office Stationery",29/08/2014 00:00:00,"30250293",3.89,"BANNER"
"Bracknell Forest Council","http://opendatacommunities.org/id/unitary-authority/bracknell-forest","Bracknell Forest Council","00MA","Culture and Heritage","Heritage Museums & Galleries","The Look Out","Office Stationery",29/08/2014 00:00:00,"30250293",3.9,"BANNER"
"Bracknell Forest Council","http://opendatacommunities.org/id/unitary-authority/bracknell-forest","Bracknell Forest Council","00MA","Management and Support Services - CYPL","Strategy, Resources and Early Interventions","Reception & Office Services","Office Stationery",29/08/2014 00:00:00,"30250293",3.92,"BANNER"
"Bracknell Forest Council","http://opendatacommunities.org/id/unitary-authority/bracknell-forest","Bracknell Forest Council","00MA","Management & Administration","Management & Administration","Directorate","Office Stationery",29/08/2014 00:00:00,"30250293",3.97,"BANNER"
"Bracknell Forest Council","http://opendatacommunities.org/id/unitary-authority/bracknell-forest","Bracknell Forest Council","00MA","Management & Administration","Management & Administration","Directorate","Office Stationery",29/08/2014 00:00:00,"30250293",3.99,"BANNER"
"Bracknell Forest Council","http://opendatacommunities.org/id/unitary-authority/bracknell-forest","Bracknell Forest Council","00MA","Holding Accounts in Budget Book COF","Corporate Services - Office Services","Office Services - General Expenses","Office Stationery",29/08/2014 00:00:00,"30250293",4,"BANNER"
"Bracknell Forest Council","http://opendatacommunities.org/id/unitary-authority/bracknell-forest","Bracknell Forest Council","00MA","Management and Support Services - CYPL","Strategy, Resources and Early Interventions","Reception & Office Services","Office Stationery",29/08/2014 00:00:00,"30250293",4.03,"BANNER"
"Bracknell Forest Council","http://opendatacommunities.org/id/unitary-authority/bracknell-forest","Bracknell Forest Council","00MA","Central Support Services - COF","Valuers","Property Services","Office Stationery",29/08/2014 00:00:00,"30250293",4.08,"BANNER"
"Bracknell Forest Council","http://opendatacommunities.org/id/unitary-authority/bracknell-forest","Bracknell Forest Council","00MA","Community Development","Community Development","Chief Executive Office excl Communications","Office Stationery",29/08/2014 00:00:00,"30250293",4.11,"BANNER"
"Bracknell Forest Council","http://opendatacommunities.org/id/unitary-authority/bracknell-forest","Bracknell Forest Council","00MA","Early Years","Children's Centres","The Alders Children's Centre","Office Stationery",29/08/2014 00:00:00,"30250293",4.11,"BANNER"
"Bracknell Forest Council","http://opendatacommunities.org/id/unitary-authority/bracknell-forest","Bracknell Forest Council","00MA","Central Support Services - COF","Valuers","Property Services","Office Stationery",29/08/2014 00:00:00,"30250293",4.26,"BANNER"
"Bracknell Forest Council","http://opendatacommunities.org/id/unitary-authority/bracknell-forest","Bracknell Forest Council","00MA","Commissioning and Social Work","Commissioning and Social Work","Administration Running Costs","Office Stationery",29/08/2014 00:00:00,"30250293",4.32,"BANNER"
"Bracknell Forest Council","http://opendatacommunities.org/id/unitary-authority/bracknell-forest","Bracknell Forest Council","00MA","Central Support Services - COF","Finance","Finance Departmental Administration","Office Stationery",29/08/2014 00:00:00,"30250293",4.37,"BANNER"
"Bracknell Forest Council","http://opendatacommunities.org/id/unitary-authority/bracknell-forest","Bracknell Forest Council","00MA","Central Support Services - COF","Finance","Finance Departmental Administration","Office Stationery",29/08/2014 00:00:00,"30250293",4.37,"BANNER"
"Bracknell Forest Council","http://opendatacommunities.org/id/unitary-authority/bracknell-forest","Bracknell Forest Council","00MA","Central Support Services - COF","Legal","Legal Services","Office Stationery",29/08/2014 00:00:00,"30250293",4.37,"BANNER"
"Bracknell Forest Council","http://opendatacommunities.org/id/unitary-authority/bracknell-forest","Bracknell Forest Council","00MA","Service Management & Support Services","Service Management & Support Services","Departmental Office Services","Office Stationery",29/08/2014 00:00:00,"30250293",4.37,"BANNER"
"Bracknell Forest Council","http://opendatacommunities.org/id/unitary-authority/bracknell-forest","Bracknell Forest Council","00MA","Community Development","Community Development","Chief Executive Office excl Communications","Office Stationery",29/08/2014 00:00:00,"30250293",4.41,"BANNER"
"Bracknell Forest Council","http://opendatacommunities.org/id/unitary-authority/bracknell-forest","Bracknell Forest Council","00MA","Management & Administration","Management & Administration","Directorate","Office Stationery",29/08/2014 00:00:00,"30250293",4.54,"BANNER"
"Bracknell Forest Council","http://opendatacommunities.org/id/unitary-authority/bracknell-forest","Bracknell Forest Council","00MA","Service Management & Support Services","Service Management & Support Services","Departmental Office Services","Office Stationery",29/08/2014 00:00:00,"30250293",4.68,"BANNER"
"Bracknell Forest Council","http://opendatacommunities.org/id/unitary-authority/bracknell-forest","Bracknell Forest Council","00MA","Early Years","Children's Centres","The Rowans Children's Centre","Office Stationery",29/08/2014 00:00:00,"30250293",4.88,"BANNER"
"Bracknell Forest Council","http://opendatacommunities.org/id/unitary-authority/bracknell-forest","Bracknell Forest Council","00MA","Service Management & Support Services","Service Management & Support Services","Departmental Office Services","Office Stationery",29/08/2014 00:00:00,"30250293",4.89,"BANNER"
"Bracknell Forest Council","http://opendatacommunities.org/id/unitary-authority/bracknell-forest","Bracknell Forest Council","00MA","Democratic Representation & Management COF","Democratic Representation & Management - COF","Committee Servicing","Office Stationery",29/08/2014 00:00:00,"30250293",4.89,"BANNER"
"Bracknell Forest Council","http://opendatacommunities.org/id/unitary-authority/bracknell-forest","Bracknell Forest Council","00MA","Management & Administration","Management & Administration","Directorate","Office Stationery",29/08/2014 00:00:00,"30250293",4.89,"BANNER"
"Bracknell Forest Council","http://opendatacommunities.org/id/unitary-authority/bracknell-forest","Bracknell Forest Council","00MA","Democratic Representation & Management COF","Democratic Representation & Management - COF","Members Services","Office Stationery",29/08/2014 00:00:00,"30250293",4.9,"BANNER"
"Bracknell Forest Council","http://opendatacommunities.org/id/unitary-authority/bracknell-forest","Bracknell Forest Council","00MA","Management and Support Services - CYPL","Holding Codes - net nil","Education Library Service","Office Stationery",29/08/2014 00:00:00,"30250293",4.93,"BANNER"
"Bracknell Forest Council","http://opendatacommunities.org/id/unitary-authority/bracknell-forest","Bracknell Forest Council","00MA","Corporate Management COF","Dir of Corporate Services Support & Admin","Director Corporate Services & Support","Office Stationery",29/08/2014 00:00:00,"30250293",5.07,"BANNER"
"Bracknell Forest Council","http://opendatacommunities.org/id/unitary-authority/bracknell-forest","Bracknell Forest Council","00MA","Management & Administration","Management & Administration","Directorate","Office Stationery",29/08/2014 00:00:00,"30250293",5.13,"BANNER"
"Bracknell Forest Council","http://opendatacommunities.org/id/unitary-authority/bracknell-forest","Bracknell Forest Council","00MA","Service Management & Support Services","Service Management & Support Services","Departmental Office Services","Office Stationery",29/08/2014 00:00:00,"30250293",5.13,"BANNER"
"Bracknell Forest Council","http://opendatacommunities.org/id/unitary-authority/bracknell-forest","Bracknell Forest Council","00MA","Management & Administration","Management & Administration","Directorate","Office Stationery",29/08/2014 00:00:00,"30250293",5.2,"BANNER"
"Bracknell Forest Council","http://opendatacommunities.org/id/unitary-authority/bracknell-forest","Bracknell Forest Council","00MA","Holding Accounts in Budget Book COF","Corporate Services - Office Services","Office Services - General Expenses","Office Stationery",29/08/2014 00:00:00,"30250293",5.23,"BANNER"
"Bracknell Forest Council","http://opendatacommunities.org/id/unitary-authority/bracknell-forest","Bracknell Forest Council","00MA","Libraries","Library Management & Administration","Library Administration","Office Stationery",29/08/2014 00:00:00,"30250293",5.25,"BANNER"
"Bracknell Forest Council","http://opendatacommunities.org/id/unitary-authority/bracknell-forest","Bracknell Forest Council","00MA","Management and Support Services - CYPL","Holding Codes - net nil","Education Library Service","Office Stationery",29/08/2014 00:00:00,"30250293",5.39,"BANNER"
"Bracknell Forest Council","http://opendatacommunities.org/id/unitary-authority/bracknell-forest","Bracknell Forest Council","00MA","Management & Administration","Management & Administration","Directorate","Office Stationery",29/08/2014 00:00:00,"30250293",5.39,"BANNER"
"Bracknell Forest Council","http://opendatacommunities.org/id/unitary-authority/bracknell-forest","Bracknell Forest Council","00MA","Other Welfare Services","Other Welfare Services","Forestcare - Operational","Office Stationery",29/08/2014 00:00:00,"30250293",5.44,"BANNER"
"Bracknell Forest Council","http://opendatacommunities.org/id/unitary-authority/bracknell-forest","Bracknell Forest Council","00MA","Management & Administration","Management & Administration","Directorate","Office Stationery",29/08/2014 00:00:00,"30250293",5.44,"BANNER"
"Bracknell Forest Council","http://opendatacommunities.org/id/unitary-authority/bracknell-forest","Bracknell Forest Council","00MA","Central Support Services - COF","Fleet","Integrated Transport Unit","Office Stationery",29/08/2014 00:00:00,"30250293",5.47,"BANNER"
"Bracknell Forest Council","http://opendatacommunities.org/id/unitary-authority/bracknell-forest","Bracknell Forest Council","00MA","Central Support Services - COF","Valuers","Property Services","Office Stationery",29/08/2014 00:00:00,"30250293",5.53,"BANNER"
"Bracknell Forest Council","http://opendatacommunities.org/id/unitary-authority/bracknell-forest","Bracknell Forest Council","00MA","Service Management & Support Services","Service Management & Support Services","Departmental Office Services","Office Stationery",29/08/2014 00:00:00,"30250293",5.53,"BANNER"
"Bracknell Forest Council","http://opendatacommunities.org/id/unitary-authority/bracknell-forest","Bracknell Forest Council","00MA","Early Years","Children's Centres","The Willows Children's Centre","Office Stationery",29/08/2014 00:00:00,"30250293",5.54,"BANNER"
"Bracknell Forest Council","http://opendatacommunities.org/id/unitary-authority/bracknell-forest","Bracknell Forest Council","00MA","Service Management & Support Services","Service Management & Support Services","Departmental Office Services","Office Stationery",29/08/2014 00:00:00,"30250293",5.62,"BANNER"
"Bracknell Forest Council","http://opendatacommunities.org/id/unitary-authority/bracknell-forest","Bracknell Forest Council","00MA","Service Management & Support Services","Service Management & Support Services","Departmental Office Services","Office Stationery",29/08/2014 00:00:00,"30250293",5.62,"BANNER"
"Bracknell Forest Council","http://opendatacommunities.org/id/unitary-authority/bracknell-forest","Bracknell Forest Council","00MA","Internal Services","Internal Services","Waymead - Short Stay","Office Stationery",29/08/2014 00:00:00,"30250293",5.64,"BANNER"
"Bracknell Forest Council","http://opendatacommunities.org/id/unitary-authority/bracknell-forest","Bracknell Forest Council","00MA","Open Spaces","Countryside Recreation & Management","Countryside Sites - Maintenance","Office Stationery",29/08/2014 00:00:00,"30250293",5.64,"BANNER"
"Bracknell Forest Council","http://opendatacommunities.org/id/unitary-authority/bracknell-forest","Bracknell Forest Council","00MA","Service Management & Support Services","Service Management & Support Services","Departmental Office Services","Office Stationery",29/08/2014 00:00:00,"30250293",5.7,"BANNER"
"Bracknell Forest Council","http://opendatacommunities.org/id/unitary-authority/bracknell-forest","Bracknell Forest Council","00MA","Service Management & Support Services","Service Management & Support Services","Departmental Office Services","Office Stationery",29/08/2014 00:00:00,"30250293",5.8,"BANNER"
"Bracknell Forest Council","http://opendatacommunities.org/id/unitary-authority/bracknell-forest","Bracknell Forest Council","00MA","Service Management & Support Services","Service Management & Support Services","Departmental Office Services","Office Stationery",29/08/2014 00:00:00,"30250293",5.9,"BANNER"
"Bracknell Forest Council","http://opendatacommunities.org/id/unitary-authority/bracknell-forest","Bracknell Forest Council","00MA","Short Term Support Other","Short Term Support Other","Bridgewell Unit","Office Stationery",29/08/2014 00:00:00,"30250293",5.9,"BANNER"
"Bracknell Forest Council","http://opendatacommunities.org/id/unitary-authority/bracknell-forest","Bracknell Forest Council","00MA","Holding Accounts in Budget Book COF","Corporate Services - Office Services","Office Services - General Expenses","Office Stationery",29/08/2014 00:00:00,"30250293",6,"BANNER"
"Bracknell Forest Council","http://opendatacommunities.org/id/unitary-authority/bracknell-forest","Bracknell Forest Council","00MA","Services to Young People","Other Services to Young People","Coopers Hill Youth Centre","Office Stationery",29/08/2014 00:00:00,"30250293",6.03,"BANNER"
"Bracknell Forest Council","http://opendatacommunities.org/id/unitary-authority/bracknell-forest","Bracknell Forest Council","00MA","Early Years","Children's Centres","The Alders Children's Centre","Office Stationery",29/08/2014 00:00:00,"30250293",6.06,"BANNER"
"Bracknell Forest Council","http://opendatacommunities.org/id/unitary-authority/bracknell-forest","Bracknell Forest Council","00MA","Management & Administration","Management & Administration","Directorate","Office Stationery",29/08/2014 00:00:00,"30250293",6.08,"BANNER"
"Bracknell Forest Council","http://opendatacommunities.org/id/unitary-authority/bracknell-forest","Bracknell Forest Council","00MA","Management & Administration","Management & Administration","Directorate","Office Stationery",29/08/2014 00:00:00,"30250293",6.08,"BANNER"
"Bracknell Forest Council","http://opendatacommunities.org/id/unitary-authority/bracknell-forest","Bracknell Forest Council","00MA","Management & Administration","Management & Administration","Directorate","Office Stationery",29/08/2014 00:00:00,"30250293",6.08,"BANNER"
"Bracknell Forest Council","http://opendatacommunities.org/id/unitary-authority/bracknell-forest","Bracknell Forest Council","00MA","Management & Administration","Management & Administration","Directorate","Office Stationery",29/08/2014 00:00:00,"30250293",6.12,"BANNER"
"Bracknell Forest Council","http://opendatacommunities.org/id/unitary-authority/bracknell-forest","Bracknell Forest Council","00MA","Adults (18-64)","Internal Services","Glenfield","Office Stationery",29/08/2014 00:00:00,"30250293",6.15,"BANNER"
"Bracknell Forest Council","http://opendatacommunities.org/id/unitary-authority/bracknell-forest","Bracknell Forest Council","00MA","Service Management & Support Services","Service Management & Support Services","Departmental Office Services","Office Stationery",29/08/2014 00:00:00,"30250293",6.15,"BANNER"
"Bracknell Forest Council","http://opendatacommunities.org/id/unitary-authority/bracknell-forest","Bracknell Forest Council","00MA","Management & Administration","Management & Administration","Directorate","Office Stationery",29/08/2014 00:00:00,"30250293",6.24,"BANNER"
"Bracknell Forest Council","http://opendatacommunities.org/id/unitary-authority/bracknell-forest","Bracknell Forest Council","00MA","Open Spaces","Countryside Recreation & Management","Countryside Sites - Maintenance","Office Stationery",29/08/2014 00:00:00,"30250293",6.26,"BANNER"
"Bracknell Forest Council","http://opendatacommunities.org/id/unitary-authority/bracknell-forest","Bracknell Forest Council","00MA","Service Management & Support Services","Service Management & Support Services","Departmental Office Services","Office Stationery",29/08/2014 00:00:00,"30250293",6.29,"BANNER"
"Bracknell Forest Council","http://opendatacommunities.org/id/unitary-authority/bracknell-forest","Bracknell Forest Council","00MA","Management and Support Services - CYPL","Holding Codes - net nil","Education Library Service","Office Stationery",29/08/2014 00:00:00,"30250293",6.29,"BANNER"
"Bracknell Forest Council","http://opendatacommunities.org/id/unitary-authority/bracknell-forest","Bracknell Forest Council","00MA","Other Welfare Services","Other Welfare Services","Forestcare - Operational","Office Stationery",29/08/2014 00:00:00,"30250293",6.29,"BANNER"
"Bracknell Forest Council","http://opendatacommunities.org/id/unitary-authority/bracknell-forest","Bracknell Forest Council","00MA","Community Development","Community Development","Chief Executive Office excl Communications","Office Stationery",29/08/2014 00:00:00,"30250293",6.36,"BANNER"
"Bracknell Forest Council","http://opendatacommunities.org/id/unitary-authority/bracknell-forest","Bracknell Forest Council","00MA","Central Support Services - COF","Valuers","Property Services","Office Stationery",29/08/2014 00:00:00,"30250293",6.38,"BANNER"
"Bracknell Forest Council","http://opendatacommunities.org/id/unitary-authority/bracknell-forest","Bracknell Forest Council","00MA","Community Development","Community Development","Chief Executive Office excl Communications","Office Stationery",29/08/2014 00:00:00,"30250293",6.45,"BANNER"
"Bracknell Forest Council","http://opendatacommunities.org/id/unitary-authority/bracknell-forest","Bracknell Forest Council","00MA","Holding Accounts in Budget Book COF","Corporate Services - Office Services","Office Services - General Expenses","Office Stationery",29/08/2014 00:00:00,"30250293",6.57,"BANNER"
"Bracknell Forest Council","http://opendatacommunities.org/id/unitary-authority/bracknell-forest","Bracknell Forest Council","00MA","Older People (65+)","Internal Services","Heathlands EPH","Office Stationery",29/08/2014 00:00:00,"30250293",6.57,"BANNER"
"Bracknell Forest Council","http://opendatacommunities.org/id/unitary-authority/bracknell-forest","Bracknell Forest Council","00MA","Family Support Services","Other family support services","Family Centre Running Costs","Office Stationery",29/08/2014 00:00:00,"30250293",6.6,"BANNER"
"Bracknell Forest Council","http://opendatacommunities.org/id/unitary-authority/bracknell-forest","Bracknell Forest Council","00MA","Management and Support Services - CYPL","Strategy, Resources and Early Interventions","Reception & Office Services","Office Stationery",29/08/2014 00:00:00,"30250293",6.61,"BANNER"
"Bracknell Forest Council","http://opendatacommunities.org/id/unitary-authority/bracknell-forest","Bracknell Forest Council","00MA","Management and Support Services - CYPL","Strategy, Resources and Early Interventions","Reception & Office Services","Office Stationery",29/08/2014 00:00:00,"30250293",6.67,"BANNER"
"Bracknell Forest Council","http://opendatacommunities.org/id/unitary-authority/bracknell-forest","Bracknell Forest Council","00MA","Adults (18-64)","Internal Services","Glenfield","Office Stationery",29/08/2014 00:00:00,"30250293",6.76,"BANNER"
"Bracknell Forest Council","http://opendatacommunities.org/id/unitary-authority/bracknell-forest","Bracknell Forest Council","00MA","Management & Administration","Management & Administration","Directorate","Office Stationery",29/08/2014 00:00:00,"30250293",6.8,"BANNER"
"Bracknell Forest Council","http://opendatacommunities.org/id/unitary-authority/bracknell-forest","Bracknell Forest Council","00MA","Service Management & Support Services","Service Management & Support Services","Departmental Office Services","Office Stationery",29/08/2014 00:00:00,"30250293",6.8,"BANNER"
"Bracknell Forest Council","http://opendatacommunities.org/id/unitary-authority/bracknell-forest","Bracknell Forest Council","00MA","Management & Administration","Management & Administration","Directorate","Office Stationery",29/08/2014 00:00:00,"30250293",6.87,"BANNER"
"Bracknell Forest Council","http://opendatacommunities.org/id/unitary-authority/bracknell-forest","Bracknell Forest Council","00MA","Management & Administration","Management & Administration","Directorate","Office Stationery",29/08/2014 00:00:00,"30250293",6.87,"BANNER"
"Bracknell Forest Council","http://opendatacommunities.org/id/unitary-authority/bracknell-forest","Bracknell Forest Council","00MA","Miscellaneous Public Health Services","Miscellaneous Public Health Services","Internal Public Health Project Grants","Office Stationery",29/08/2014 00:00:00,"30250293",6.98,"BANNER"
"Bracknell Forest Council","http://opendatacommunities.org/id/unitary-authority/bracknell-forest","Bracknell Forest Council","00MA","Central Support Services - COF","Customer Service Centre","Customer Services","Office Stationery",29/08/2014 00:00:00,"30250293",6.98,"BANNER"
"Bracknell Forest Council","http://opendatacommunities.org/id/unitary-authority/bracknell-forest","Bracknell Forest Council","00MA","Adults (18-64)","Internal Services","Glenfield","Office Stationery",29/08/2014 00:00:00,"30250293",7.04,"BANNER"
"Bracknell Forest Council","http://opendatacommunities.org/id/unitary-authority/bracknell-forest","Bracknell Forest Council","00MA","Service Management & Support Services","Service Management & Support Services","Departmental Office Services","Office Stationery",29/08/2014 00:00:00,"30250293",7.09,"BANNER"
"Bracknell Forest Council","http://opendatacommunities.org/id/unitary-authority/bracknell-forest","Bracknell Forest Council","00MA","Service Management & Support Services","Service Management & Support Services","Departmental Office Services","Office Stationery",29/08/2014 00:00:00,"30250293",7.12,"BANNER"
"Bracknell Forest Council","http://opendatacommunities.org/id/unitary-authority/bracknell-forest","Bracknell Forest Council","00MA","Management & Administration","Management & Administration","Directorate","Office Stationery",29/08/2014 00:00:00,"30250293",7.2,"BANNER"
"Bracknell Forest Council","http://opendatacommunities.org/id/unitary-authority/bracknell-forest","Bracknell Forest Council","00MA","Management & Administration","Management & Administration","Directorate","Office Stationery",29/08/2014 00:00:00,"30250293",7.2,"BANNER"
"Bracknell Forest Council","http://opendatacommunities.org/id/unitary-authority/bracknell-forest","Bracknell Forest Council","00MA","Service Management & Support Services","Service Management & Support Services","Departmental Office Services","Office Stationery",29/08/2014 00:00:00,"30250293",7.2,"BANNER"
"Bracknell Forest Council","http://opendatacommunities.org/id/unitary-authority/bracknell-forest","Bracknell Forest Council","00MA","Service Management & Support Services","Service Management & Support Services","Departmental Office Services","Office Stationery",29/08/2014 00:00:00,"30250293",7.2,"BANNER"
"Bracknell Forest Council","http://opendatacommunities.org/id/unitary-authority/bracknell-forest","Bracknell Forest Council","00MA","Adults (18-64)","Internal Services","Glenfield","Office Stationery",29/08/2014 00:00:00,"30250293",7.39,"BANNER"
"Bracknell Forest Council","http://opendatacommunities.org/id/unitary-authority/bracknell-forest","Bracknell Forest Council","00MA","Service Management & Support Services","Service Management & Support Services","Departmental Office Services","Office Stationery",29/08/2014 00:00:00,"30250293",7.4,"BANNER"
"Bracknell Forest Council","http://opendatacommunities.org/id/unitary-authority/bracknell-forest","Bracknell Forest Council","00MA","Management & Administration","Management & Administration","Directorate","Office Stationery",29/08/2014 00:00:00,"30250293",7.4,"BANNER"
"Bracknell Forest Council","http://opendatacommunities.org/id/unitary-authority/bracknell-forest","Bracknell Forest Council","00MA","Service Management & Support Services","Service Management & Support Services","Departmental Office Services","Office Stationery",29/08/2014 00:00:00,"30250293",7.47,"BANNER"
"Bracknell Forest Council","http://opendatacommunities.org/id/unitary-authority/bracknell-forest","Bracknell Forest Council","00MA","Libraries","Library Management & Administration","Library Administration","Office Stationery",29/08/2014 00:00:00,"30250293",7.55,"BANNER"
"Bracknell Forest Council","http://opendatacommunities.org/id/unitary-authority/bracknell-forest","Bracknell Forest Council","00MA","Central Support Services - COF","Legal","Legal Services","Office Stationery",29/08/2014 00:00:00,"30250293",7.62,"BANNER"
"Bracknell Forest Council","http://opendatacommunities.org/id/unitary-authority/bracknell-forest","Bracknell Forest Council","00MA","Commissioning and Social Work","Commissioning and Social Work","Administration Running Costs","Office Stationery",29/08/2014 00:00:00,"30250293",7.78,"BANNER"
"Bracknell Forest Council","http://opendatacommunities.org/id/unitary-authority/bracknell-forest","Bracknell Forest Council","00MA","Management and Support Services - CYPL","Strategy, Resources and Early Interventions","Reception & Office Services","Office Stationery",29/08/2014 00:00:00,"30250293",7.8,"BANNER"
"Bracknell Forest Council","http://opendatacommunities.org/id/unitary-authority/bracknell-forest","Bracknell Forest Council","00MA","Short Term Support Other","Short Term Support Other","Bridgewell Unit","Office Stationery",29/08/2014 00:00:00,"30250293",7.86,"BANNER"
"Bracknell Forest Council","http://opendatacommunities.org/id/unitary-authority/bracknell-forest","Bracknell Forest Council","00MA","Miscellaneous Public Health Services","Public Health Teams","Public Health - Berkshire Shared Team","Office Stationery",29/08/2014 00:00:00,"30250293",7.9,"BANNER"
"Bracknell Forest Council","http://opendatacommunities.org/id/unitary-authority/bracknell-forest","Bracknell Forest Council","00MA","Early Years","Children's Centres","The Rowans Children's Centre","Office Stationery",29/08/2014 00:00:00,"30250293",7.92,"BANNER"
"Bracknell Forest Council","http://opendatacommunities.org/id/unitary-authority/bracknell-forest","Bracknell Forest Council","00MA","Management and Support Services - CYPL","Strategy, Resources and Early Interventions","Reception & Office Services","Office Stationery",29/08/2014 00:00:00,"30250293",7.94,"BANNER"
"Bracknell Forest Council","http://opendatacommunities.org/id/unitary-authority/bracknell-forest","Bracknell Forest Council","00MA","Older People (65+)","Internal Services","Heathlands EPH","Office Stationery",29/08/2014 00:00:00,"30250293",7.96,"BANNER"
"Bracknell Forest Council","http://opendatacommunities.org/id/unitary-authority/bracknell-forest","Bracknell Forest Council","00MA","Central Support Services - COF","Finance","Finance Departmental Administration","Office Stationery",29/08/2014 00:00:00,"30250293",8.12,"BANNER"
"Bracknell Forest Council","http://opendatacommunities.org/id/unitary-authority/bracknell-forest","Bracknell Forest Council","00MA","Service Management & Support Services","Service Management & Support Services","Departmental Office Services","Office Stationery",29/08/2014 00:00:00,"30250293",8.12,"BANNER"
"Bracknell Forest Council","http://opendatacommunities.org/id/unitary-authority/bracknell-forest","Bracknell Forest Council","00MA","Central Support Services - COF","Valuers","Property Services","Office Stationery",29/08/2014 00:00:00,"30250293",8.16,"BANNER"
"Bracknell Forest Council","http://opendatacommunities.org/id/unitary-authority/bracknell-forest","Bracknell Forest Council","00MA","Central Support Services - COF","Legal","Legal Services","Office Stationery",29/08/2014 00:00:00,"30250293",8.18,"BANNER"
"Bracknell Forest Council","http://opendatacommunities.org/id/unitary-authority/bracknell-forest","Bracknell Forest Council","00MA","Management & Administration","Management & Administration","Directorate","Office Stationery",29/08/2014 00:00:00,"30250293",8.26,"BANNER"
"Bracknell Forest Council","http://opendatacommunities.org/id/unitary-authority/bracknell-forest","Bracknell Forest Council","00MA","Management & Administration","Management & Administration","Directorate","Office Stationery",29/08/2014 00:00:00,"30250293",8.42,"BANNER"
"Bracknell Forest Council","http://opendatacommunities.org/id/unitary-authority/bracknell-forest","Bracknell Forest Council","00MA","Older People (65+)","Internal Services","Heathlands EPH","Office Stationery",29/08/2014 00:00:00,"30250293",8.43,"BANNER"
"Bracknell Forest Council","http://opendatacommunities.org/id/unitary-authority/bracknell-forest","Bracknell Forest Council","00MA","Management & Administration","Management & Administration","Directorate","Office Stationery",29/08/2014 00:00:00,"30250293",8.52,"BANNER"
"Bracknell Forest Council","http://opendatacommunities.org/id/unitary-authority/bracknell-forest","Bracknell Forest Council","00MA","Management & Administration","Management & Administration","Directorate","Office Stationery",29/08/2014 00:00:00,"30250293",8.57,"BANNER"
"Bracknell Forest Council","http://opendatacommunities.org/id/unitary-authority/bracknell-forest","Bracknell Forest Council","00MA","Management & Administration","Management & Administration","LD Employment Service","Office Stationery",29/08/2014 00:00:00,"30250293",8.61,"BANNER"
"Bracknell Forest Council","http://opendatacommunities.org/id/unitary-authority/bracknell-forest","Bracknell Forest Council","00MA","Service Management & Support Services","Service Management & Support Services","Departmental Office Services","Office Stationery",29/08/2014 00:00:00,"30250293",8.62,"BANNER"
"Bracknell Forest Council","http://opendatacommunities.org/id/unitary-authority/bracknell-forest","Bracknell Forest Council","00MA","Recreation, Sports and Leisure","Indoor Sports & Recreation Facilities","Leisure DSO - Leisure Centre","Office Stationery",29/08/2014 00:00:00,"30250293",8.64,"BANNER"
"Bracknell Forest Council","http://opendatacommunities.org/id/unitary-authority/bracknell-forest","Bracknell Forest Council","00MA","Social Support - Substance Misuse Support","Social Support - Substance Misuse Support","SM New Hope Running Costs","Office Stationery",29/08/2014 00:00:00,"30250293",8.66,"BANNER"
"Bracknell Forest Council","http://opendatacommunities.org/id/unitary-authority/bracknell-forest","Bracknell Forest Council","00MA","Service Management & Support Services","Service Management & Support Services","Departmental Office Services","Office Stationery",29/08/2014 00:00:00,"30250293",8.74,"BANNER"
"Bracknell Forest Council","http://opendatacommunities.org/id/unitary-authority/bracknell-forest","Bracknell Forest Council","00MA","Service Management & Support Services","Service Management & Support Services","Departmental Office Services","Office Stationery",29/08/2014 00:00:00,"30250293",8.8,"BANNER"
"Bracknell Forest Council","http://opendatacommunities.org/id/unitary-authority/bracknell-forest","Bracknell Forest Council","00MA","Internal Services","Internal Services","Waymead - Short Stay","Office Stationery",29/08/2014 00:00:00,"30250293",8.96,"BANNER"
"Bracknell Forest Council","http://opendatacommunities.org/id/unitary-authority/bracknell-forest","Bracknell Forest Council","00MA","Early Years","Children's Centres","The Oaks Children's Centre","Office Stationery",29/08/2014 00:00:00,"30250293",9.03,"BANNER"
"Bracknell Forest Council","http://opendatacommunities.org/id/unitary-authority/bracknell-forest","Bracknell Forest Council","00MA","Management & Administration","Management & Administration","Directorate","Office Stationery",29/08/2014 00:00:00,"30250293",9.08,"BANNER"
"Bracknell Forest Council","http://opendatacommunities.org/id/unitary-authority/bracknell-forest","Bracknell Forest Council","00MA","Early Years","Children's Centres","The Alders Children's Centre","Office Stationery",29/08/2014 00:00:00,"30250293",9.1,"BANNER"
"Bracknell Forest Council","http://opendatacommunities.org/id/unitary-authority/bracknell-forest","Bracknell Forest Council","00MA","Holding Accounts in Budget Book COF","Corporate Services - Office Services","Office Services - General Expenses","Office Stationery",29/08/2014 00:00:00,"30250293",9.16,"BANNER"
"Bracknell Forest Council","http://opendatacommunities.org/id/unitary-authority/bracknell-forest","Bracknell Forest Council","00MA","Social Support - Substance Misuse Support","Social Support - Substance Misuse Support","SM New Hope Running Costs","Office Stationery",29/08/2014 00:00:00,"30250293",9.2,"BANNER"
"Bracknell Forest Council","http://opendatacommunities.org/id/unitary-authority/bracknell-forest","Bracknell Forest Council","00MA","Management and Support Services - CYPL","Strategy, Resources and Early Interventions","Reception & Office Services","Office Stationery",29/08/2014 00:00:00,"30250293",9.22,"BANNER"
"Bracknell Forest Council","http://opendatacommunities.org/id/unitary-authority/bracknell-forest","Bracknell Forest Council","00MA","Management and Support Services - CYPL","Holding Codes - net nil","Education Library Service","Office Stationery",29/08/2014 00:00:00,"30250293",9.5,"BANNER"
"Bracknell Forest Council","http://opendatacommunities.org/id/unitary-authority/bracknell-forest","Bracknell Forest Council","00MA","Central Support Services - COF","Valuers","Property Services","Office Stationery",29/08/2014 00:00:00,"30250293",9.5,"BANNER"
"Bracknell Forest Council","http://opendatacommunities.org/id/unitary-authority/bracknell-forest","Bracknell Forest Council","00MA","Adults (18-64)","Internal Services","Glenfield","Office Stationery",29/08/2014 00:00:00,"30250293",9.57,"BANNER"
"Bracknell Forest Council","http://opendatacommunities.org/id/unitary-authority/bracknell-forest","Bracknell Forest Council","00MA","Management & Administration","Management & Administration","Directorate","Office Stationery",29/08/2014 00:00:00,"30250293",9.62,"BANNER"
"Bracknell Forest Council","http://opendatacommunities.org/id/unitary-authority/bracknell-forest","Bracknell Forest Council","00MA","Management and Support Services - CYPL","Strategy, Resources and Early Interventions","Reception & Office Services","Office Stationery",29/08/2014 00:00:00,"30250293",9.65,"BANNER"
"Bracknell Forest Council","http://opendatacommunities.org/id/unitary-authority/bracknell-forest","Bracknell Forest Council","00MA","Libraries","Library Management & Administration","Library Administration","Office Stationery",29/08/2014 00:00:00,"30250293",9.65,"BANNER"
"Bracknell Forest Council","http://opendatacommunities.org/id/unitary-authority/bracknell-forest","Bracknell Forest Council","00MA","Service Management & Support Services","Service Management & Support Services","Departmental Office Services","Office Stationery",29/08/2014 00:00:00,"30250293",9.78,"BANNER"
"Bracknell Forest Council","http://opendatacommunities.org/id/unitary-authority/bracknell-forest","Bracknell Forest Council","00MA","Adults (18-64)","Long term Support - Community:Homecare","PS Adults 18-64 Long Term Support - Community:Homecare","Contracted Services",02/09/2014 00:00:00,"30250461",15.48,"BRIDGES HOME CARE LTD"
"Bracknell Forest Council","http://opendatacommunities.org/id/unitary-authority/bracknell-forest","Bracknell Forest Council","00MA","Older People (65+)","Long term Support - Community:Homecare","PS Older People 65+ Long Term Support - Community:Homecare","Contracted Services",02/09/2014 00:00:00,"30250461",30.96,"BRIDGES HOME CARE LTD"
"Bracknell Forest Council","http://opendatacommunities.org/id/unitary-authority/bracknell-forest","Bracknell Forest Council","00MA","Older People (65+)","Long term Support - Community:Homecare","PS Older People 65+ Long Term Support - Community:Homecare","Contracted Services",02/09/2014 00:00:00,"30250461",61.92,"BRIDGES HOME CARE LTD"
"Bracknell Forest Council","http://opendatacommunities.org/id/unitary-authority/bracknell-forest","Bracknell Forest Council","00MA","Older People (65+)","Long term Support - Community:Homecare","PS Older People 65+ Long Term Support - Community:Homecare","Contracted Services",02/09/2014 00:00:00,"30250461",387,"BRIDGES HOME CARE LTD"
"Bracknell Forest Council","http://opendatacommunities.org/id/unitary-authority/bracknell-forest","Bracknell Forest Council","00MA","Older People (65+)","Long term Support - Community:Homecare","MH Older People 65+ Long Term Support - Community:Homecare","Contracted Services",28/08/2014 00:00:00,"30250133",61.92,"BRIGHT YELLOW SOLUTIONS LTD"
"Bracknell Forest Council","http://opendatacommunities.org/id/unitary-authority/bracknell-forest","Bracknell Forest Council","00MA","Older People (65+)","Long term Support - Community:Homecare","MH Older People 65+ Long Term Support - Community:Homecare","Contracted Services",28/08/2014 00:00:00,"30250133",115.89,"BRIGHT YELLOW SOLUTIONS LTD"
"Bracknell Forest Council","http://opendatacommunities.org/id/unitary-authority/bracknell-forest","Bracknell Forest Council","00MA","Older People (65+)","Long term Support - Community:Homecare","PS Older People 65+ Long Term Support - Community:Homecare","Contracted Services",28/08/2014 00:00:00,"30250133",139.32,"BRIGHT YELLOW SOLUTIONS LTD"
"Bracknell Forest Council","http://opendatacommunities.org/id/unitary-authority/bracknell-forest","Bracknell Forest Council","00MA","Older People (65+)","Long term Support - Community:Homecare","PS Older People 65+ Long Term Support - Community:Homecare","Contracted Services",28/08/2014 00:00:00,"30250133",216.72,"BRIGHT YELLOW SOLUTIONS LTD"
"Bracknell Forest Council","http://opendatacommunities.org/id/unitary-authority/bracknell-forest","Bracknell Forest Council","00MA","Adults (18-64)","Long term Support - Community:Homecare","MH Adults 18-64 Long Term Support - Community:Homecare","Contracted Services",28/08/2014 00:00:00,"30250133",286.38,"BRIGHT YELLOW SOLUTIONS LTD"
"Bracknell Forest Council","http://opendatacommunities.org/id/unitary-authority/bracknell-forest","Bracknell Forest Council","00MA","Older People (65+)","Long term Support - Community:Homecare","PS Older People 65+ Long Term Support - Community:Homecare","Contracted Services",28/08/2014 00:00:00,"30250133",390.87,"BRIGHT YELLOW SOLUTIONS LTD"
"Bracknell Forest Council","http://opendatacommunities.org/id/unitary-authority/bracknell-forest","Bracknell Forest Council","00MA","Adults (18-64)","Long term Support - Community:Homecare","PS Adults 18-64 Long Term Support - Community:Homecare","Contracted Services",28/08/2014 00:00:00,"30250133",433.44,"BRIGHT YELLOW SOLUTIONS LTD"
"Bracknell Forest Council","http://opendatacommunities.org/id/unitary-authority/bracknell-forest","Bracknell Forest Council","00MA","Older People (65+)","Long term Support - Community:Homecare","PS Older People 65+ Long Term Support - Community:Homecare","Contracted Services",28/08/2014 00:00:00,"30250133",557.28,"BRIGHT YELLOW SOLUTIONS LTD"
"Bracknell Forest Council","http://opendatacommunities.org/id/unitary-authority/bracknell-forest","Bracknell Forest Council","00MA","Older People (65+)","Long term Support - Community:Homecare","PS Older People 65+ Long Term Support - Community:Homecare","Contracted Services",28/08/2014 00:00:00,"30250133",611.46,"BRIGHT YELLOW SOLUTIONS LTD"
"Bracknell Forest Council","http://opendatacommunities.org/id/unitary-authority/bracknell-forest","Bracknell Forest Council","00MA","Older People (65+)","Long term Support - Community:Homecare","PS Older People 65+ Long Term Support - Community:Homecare","Contracted Services",28/08/2014 00:00:00,"30250133",619.2,"BRIGHT YELLOW SOLUTIONS LTD"
